Workbook

Sheet اعدادى
AC1: أجر مكمل 5% 2022
A5: 1 | B5: 2 | C5: 3 | D5: 1 | E5: 2 | F5: 3 | G5: 4 | H5: 5 | I5: 6 | J5: 7 | K5: 8 | L5: 9 | M5: 10 | N5: 11 | O5: 12 | P5: 13 | Q5: 14 | R5: 15 | S5: 16 | T5: 17 | U5: 18 | V5: 19 | W5: 20 | X5: 21 | Y5: 22 | Z5: 23 | AA5: 24 | AB5: 25 | AC5: 26 | AD5: 27 | AE5: 28 | AF5: 29 | AG5: 30 | AH5: 31 | AI5: 32 | AJ5: 33 | AK5: 34 | AL5: 35 | AM5: 36 | AN5: 37 | AO5: 38 | AP5: 39 | AQ5: 40 | AR5: 41 | AS5: 42 | AT5: 43 | AU5: 44 | AV5: 45 | AW5: 46 | AX5: 47 | AY5: 48 | AZ5: 49 | BA5: 50 | BB5: 51 | BC5: 52 | BD5: 53 | BE5: 54 | BF5: 55 | BG5: 56 | BH5: 57 | BI5: 58 | BJ5: 59 | BK5: 60 | BL5: 61 | BM5: 62 | BN5: 63 | BO5: 64 | BP5: 65 | BQ5: 66 | BR5: 67 | BS5: 68 | BT5: 69 | BU5: 70 | BV5: 71 | BW5: 72 | BX5: 73 | BY5: 74 | BZ5: 75 | CA5: 76 | CB5: 77 | CD5: 10000
F6: اعدادى 1 | V6: 1 | AB6: 1 | BL6: اعدادى 1 | CD6: 5000
D7: مسلسل | E7: الحالة الاجتماعية | F7: المرتب الأساسى | G7: ابريل2022 | AJ7: جـــــــــــــــــــــــــــــــــــــــــــــــــــــــــــــــارى ضرائـــــــــــــــــــــــــــــــــــــــــــــــــــــــب | AT7: إستحقــــــــــــــــــــــــــــاق هيئــــــــــــــــــــــــــــــــــــــــــــــــــــــــــــــــــــــــــــــات وشــــــــــــــــــــــــــــــــــــــــــــــــــــــركـــــــــــــــــــــــــــــــــــــات | BK7: جملة الاستقطاعات | BL7: صافى المقتضى صرفه | BM7: اسم الموظف | BN7: الدرجة | BO7: التوقيع بالاستلام | CD7: 1000
C8: اساسى 2014 | G8: 10% 2014 | H8: 10% 2015 | I8: حافز 25% | J8: أداء | K8: كادر | L8: كادرين | M8: تطوير | N8: أعباء | O8: 2019 | P8: 2020 | Q8: 2021 | R8: حافز تكميلى | S8: بدل تعليم | T8: حافز أداء | U8: مكافئة مدرس | V8: مكافئة ادارى | W8: اجتماعية | X8: اضافية | Y8: حافز دمج | Z8: حافز مدير وكيل | AA8: الأجر الوظيفى | AB8: الأجر المكمل | AC8: أجر مكمل 5% 2022 | AD8: الحافز التعويضى | AE8: 0.915 | AF8: الحد الأدنى | AG8: دكتوراه | AH8: المنحة | AI8: جملة المبالغ المستحقة | AJ8: حصة الحكومة 12% | AK8: إشتراك موظف 9% | AL8: أقساط المدة السابقة | AM8: 0.01 | AN8: إدخار 1% | AO8: 2% رعاية | AP8: 0.02 | AQ8: بدل إعارة | AR8: كسب عمل | AS8: دمغة عادية | AT8: قسط شريحة | AU8: صندوق الشهداء | AV8: نقابة مهن تعليمية | AW8: رعاية صحية | AX8: تأمين اجتماعى | AY8: نادى معلمين | AZ8: رابطة جامعيين | BA8: صندوق زمالة | BB8: مهن تطبيقية | BC8: نقابة مهن تعليمية | BD8: لجنة نقابة | BE8: صندوق زمالة | BF8: بحث علمى | BG8: مهن زراعية | BH8: جزاءات | BI8: استبعاد حافز أداء | BJ8: كسر القرش | BS8: مقطوعة مجمعة | BT8: اساسى وهمى | CD8: 500
AH9: 10 | AV9: 4.5 | AW9: 2 | AX9: 0.25 | AY9: 3 | AZ9: 0.5 | BC9: قرض | CD9: 250
B10: =BM10 -> وصال حسين بلحه | C10: 695.46 | D10: 1 | F10: 2144.3 | G10: 65.35 | H10: =IF(BQ10="مدرس",ROUND(C10*10%,2),"") -> 69.55 | I10: =IF(BQ10="مدرس",ROUND(C10*25%,2),"") -> 173.87 | J10: =IF(BQ10="مدرس",IF(BN10="كبير",ROUND(C10*25%,2),IF(BN10="كبير ا",ROUND(C10*25%,2),IF(BN10="اولى",ROUND(C10*25%,2),IF(BN10="ثانيه",ROUND(C10*50%,2),IF(BN10="ثالثه",ROUND(C10*75%,2),IF(BN10="م م",ROUND(C10*125%,2))))))),"") -> 173.87 | K10: =IF(BQ10="مدرس",ROUND(C10*50%,2),"") -> 347.73 | L10: 1390.92 | N10: =IF(BQ10="مدرس",IF(BN10="كبير ا",300,IF(BN10="كبير",325,IF(BN10="اولى",350,IF(BN10="ثانيه",375,IF(BN10="ثالثه",400,""))))),"") -> 300 | O10: 150 | P10: 350 | Q10: =IF(BN10="","",IF(BN10="كبير ا",375,IF(BN10="كبير",350,IF(BN10="اولى",325,IF(BN10="ثانيه",275,IF(BN10="ثالثه",225,IF(BN10="خامسه",175))))))) -> 375 | S10: =IF(BQ10="مدرس",IF(BN10="كبير ا",180,IF(BN10="كبير",165,IF(BN10="اولى",125,IF(BN10="ثانيه",100,IF(BN10="ثالثه",75,))))),"") -> 180 | T10: =IF(BQ10="مدرس",IF(BN10="كبير ا",140,IF(BN10="كبير",145,IF(BN10="اولى",150,IF(BN10="ثانيه",165,IF(BN10="ثالثه",185,))))),"") -> 140 | U10: =IF(BQ10="مدرس",IF(BN10="كبير ا",155,IF(BN10="كبير",140,IF(BN10="اولى",120,IF(BN10="ثانيه",85,IF(BN10="ثالثه",65,))))),"") -> 155 | V10: =IF(BQ10="مدرس","",IF(BN10="اولى",85,IF(BN10="ثانيه",65,IF(BN10="ثالثه",55,IF(BN10="رابعه",50,IF(BN10="خامسه",50,)))))) ->  | W10: 2 | X10: 4 | AH10: =IF(BQ10="مدرس",$AH$9,"") -> 10 | AI10: =SUM(F10:AH10) -> 6031.59 | AK10: =ROUND(BY10*9%,2) -> 541.94 | AM10: =ROUND(BY10*1%,2) -> 60.22 | AN10: =ROUND(BY10*1%,2) -> 60.22 | AO10: 9.5 | AP10: =IF(BQ10="مدرس",IF(BN10="كبير ا",3.1,IF(BN10="كبير",2.8,IF(BN10="اولى",2.4,IF(BN10="ثانيه",1.7,IF(BN10="ثالثه",1.3,))))),"") -> 3.1 | AR10: 193.7 | AS10: 36.6 | AU10: 2.5 | AV10: =IF($BQ10="مدرس",$AV$9,"") -> 4.5 | AW10: =IF($BQ10="مدرس",$AW$9,"") -> 2 | AX10: =IF($BQ10="مدرس",$AX$9,"") -> 0.25 | AY10: =IF($BQ10="مدرس",$AY$9,"") -> 3 | AZ10: =IF($BQ10="مدرس",$AZ$9,"") -> 0.5 | BA10: =IF(BQ10="مدرس",ROUND(F10*7%,2),"") -> 150.1 | BJ10: 0.01 | BK10: =SUM(AJ10:BJ10) -> 1068.14 | BL10: =AI10-BK10 -> 4963.45 | BM10: وصال حسين بلحه | BN10: كبير ا | BQ10: مدرس | BR10: كبير معلمين | BS10: =SUM(O10:Q10) -> 875 | BV10: كبير ا | BY10: =SUM(F10:AG10) -> 6021.59 | CD10: ceiling(round(if(bl10>10000;(ai10-10000)*0.003+(10000-50)*0.008;if(bl10>5000;(ai10-50)*0.008;if(bl10>1000;(ai10-50)*0.0075;if(bl10>500;(ai10-50)*0.007;if(bl10>250;(ai10-50)*0.0065;if(bl10>50;(ai10-50)*0.006;0))))));2);.05)
B11: =BM11 -> عاطف عبدالعظيم النجار | C11: 576.69 | D11: 2 | F11: 1821.07 | G11: 53.6 | H11: =IF(BQ11="مدرس",ROUND(C11*10%,2),"") -> 57.67 | I11: =IF(BQ11="مدرس",ROUND(C11*25%,2),"") -> 144.17 | J11: =IF(BQ11="مدرس",IF(BN11="كبير",ROUND(C11*25%,2),IF(BN11="كبير ا",ROUND(C11*25%,2),IF(BN11="اولى",ROUND(C11*25%,2),IF(BN11="ثانيه",ROUND(C11*50%,2),IF(BN11="ثالثه",ROUND(C11*75%,2),IF(BN11="م م",ROUND(C11*125%,2))))))),"") -> 144.17 | K11: =IF(BQ11="مدرس",ROUND(C11*50%,2),"") -> 288.35 | L11: 1197.37 | N11: =IF(BQ11="مدرس",IF(BN11="كبير ا",300,IF(BN11="كبير",325,IF(BN11="اولى",350,IF(BN11="ثانيه",375,IF(BN11="ثالثه",400,""))))),"") -> 300 | O11: 150 | P11: 325 | Q11: =IF(BN11="","",IF(BN11="كبير ا",375,IF(BN11="كبير",350,IF(BN11="اولى",325,IF(BN11="ثانيه",275,IF(BN11="ثالثه",225,IF(BN11="خامسه",175))))))) -> 375 | S11: 180 | T11: =IF(BQ11="مدرس",IF(BN11="كبير ا",140,IF(BN11="كبير",145,IF(BN11="اولى",150,IF(BN11="ثانيه",165,IF(BN11="ثالثه",185,))))),"") -> 140 | U11: =IF(BQ11="مدرس",IF(BN11="كبير ا",155,IF(BN11="كبير",140,IF(BN11="اولى",120,IF(BN11="ثانيه",85,IF(BN11="ثالثه",65,))))),"") -> 155 | V11: =IF(BQ11="مدرس","",IF(BN11="اولى",85,IF(BN11="ثانيه",65,IF(BN11="ثالثه",55,IF(BN11="رابعه",50,IF(BN11="خامسه",50,)))))) ->  | W11: 6 | X11: 4 | AH11: =IF(BQ11="مدرس",$AH$9,"") -> 10 | AI11: =SUM(F11:AH11) -> 5351.4 | AK11: =ROUND(BY11*9%,2) -> 480.73 | AM11: =ROUND(BY11*1%,2) -> 53.41 | AN11: =ROUND(BY11*1%,2) -> 53.41 | AO11: 9.5 | AP11: =IF(BQ11="مدرس",IF(BN11="كبير ا",3.1,IF(BN11="كبير",2.8,IF(BN11="اولى",2.4,IF(BN11="ثانيه",1.7,IF(BN11="ثالثه",1.3,))))),"") -> 3.1 | AR11: 159 | AS11: 32.8 | AU11: 2 | AV11: =IF($BQ11="مدرس",$AV$9,"") -> 4.5 | AW11: =IF($BQ11="مدرس",$AW$9,"") -> 2 | AX11: =IF($BQ11="مدرس",$AX$9,"") -> 0.25 | AY11: =IF($BQ11="مدرس",$AY$9,"") -> 3 | AZ11: =IF($BQ11="مدرس",$AZ$9,"") -> 0.5 | BA11: =IF(BQ11="مدرس",ROUND(F11*7%,2),"") -> 127.47 | BJ11: 0.03 | BK11: =SUM(AJ11:BJ11) -> 931.7 | BL11: =AI11-BK11 -> 4419.7 | BM11: عاطف عبدالعظيم النجار | BN11: كبير ا | BQ11: مدرس | BR11: كبير معلمين | BS11: 850 | BV11: كبير | BY11: =SUM(F11:AG11) -> 5341.4
B12: مسعد ونس عبدالحميد | C12: 599.09 | D12: 3 | F12: 1882.83 | G12: 55.72 | H12: 59.91 | I12: 149.77 | J12: 149.77 | K12: 299.55 | L12: 1198.17 | N12: 300 | O12: 150 | P12: 325 | Q12: 375 | S12: 180 | T12: 140 | U12: 155 | W12: 6 | X12: 4 | AH12: 10 | AI12: 5440.72 | AK12: 488.76 | AL12: 2.82 | AM12: 54.31 | AN12: 54.31 | AO12: 9.5 | AP12: 3.1 | AQ12: 90 | AR12: 142.1 | AS12: 33.2 | AU12: 2 | AV12: 4.5 | AW12: 2 | AX12: 0.25 | AY12: 3 | AZ12: 0.5 | BA12: 131.8 | BC12: 250 | BJ12: 0.02 | BK12: 1272.17 | BL12: 4168.55 | BM12: مسعد ونس عبدالحميد | BN12: كبير ا | BQ12: مدرس | BR12: كبير معلمين | BS12: 850 | BV12: اولى | BY12: 5430.72
B13: محمد صالحين محمد | C13: 578.31 | D13: 4 | F13: 1825.4 | G13: 53.76 | H13: 57.83 | I13: 144.58 | J13: 144.58 | K13: 289.16 | L13: 1156.6 | N13: 300 | O13: 150 | P13: 325 | Q13: 375 | S13: 180 | T13: 140 | U13: 155 | W13: 6 | X13: 4 | AH13: 10 | AI13: 5316.91 | AK13: 477.62 | AM13: 53.07 | AN13: 53.07 | AO13: 9.5 | AP13: 3.1 | AR13: 157 | AS13: 32.5 | AU13: 2 | AV13: 4.5 | AW13: 2 | AX13: 0.25 | AY13: 3 | AZ13: 0.5 | BA13: 127.78 | BJ13: 0.02 | BK13: 925.91 | BL13: 4391 | BM13: محمد صالحين محمد | BN13: كبير ا | BQ13: مدرس | BR13: كبير معلمين | BS13: 850 | BV13: ثانيه | BY13: 5306.91
B14: لبنى حمدى محمد | C14: 695.31 | D14: 5 | F14: 2142.44 | G14: 65.34 | H14: 69.53 | I14: 173.83 | J14: 173.83 | K14: 347.66 | L14: 1390.6 | N14: 300 | O14: 150 | P14: 350 | Q14: 375 | S14: 180 | T14: 140 | U14: 155 | W14: 2 | X14: 4 | Y14: 173.82 | AH14: 10 | AI14: 6203.05 | AK14: 557.37 | AM14: 61.93 | AN14: 61.93 | AO14: 9.5 | AP14: 3.1 | AR14: 197 | AS14: 40.45 | AU14: 2.5 | AV14: 4.5 | AW14: 2 | AX14: 0.25 | AY14: 3 | AZ14: 0.5 | BA14: 149.97 | BI14: 279.3 | BK14: 1373.3 | BL14: 4829.75 | BM14: لبنى حمدى محمد | BN14: كبير ا | BQ14: مدرس | BR14: كبير معلمين | BS14: 875 | BV14: ثالثه | BY14: 6193.05
B15: جيهان فتحى محمود | C15: 548.4 | D15: 6 | F15: 1773.67 | G15: 51.55 | H15: 54.84 | I15: 137.1 | J15: 137.1 | K15: 274.2 | L15: 959.7 | N15: 325 | O15: 150 | P15: 325 | Q15: 350 | S15: 165 | T15: 145 | U15: 140 | W15: 2 | X15: 4 | Z15: 250 | AH15: 10 | AI15: 5254.16 | AK15: 471.97 | AM15: 52.44 | AN15: 52.44 | AO15: 9 | AP15: 2.8 | AR15: 139.6 | AS15: 30.3 | AU15: 2 | AV15: 4.5 | AW15: 2 | AX15: 0.25 | AY15: 3 | AZ15: 0.5 | BA15: 124.16 | BK15: 894.96 | BL15: 4359.2 | BM15: جيهان فتحى محمود | BN15: كبير | BQ15: مدرس | BR15: معلم خبير | BS15: 825 | BV15: رابعه | BY15: 5244.16
B16: محمد نجاح نصر | C16: 531.62 | D16: 7 | F16: 1723.35 | G16: 49.98 | H16: 53.16 | I16: 132.91 | J16: 132.91 | K16: 265.81 | L16: 930.35 | N16: 325 | O16: 150 | P16: 325 | Q16: 350 | S16: 165 | T16: 145 | U16: 140 | W16: 6 | X16: 4 | AH16: 10 | AI16: 4908.47 | AK16: 440.86 | AM16: 48.98 | AN16: 48.98 | AO16: 9 | AP16: 2.8 | AR16: 135 | AS16: 29.8 | AU16: 2 | AV16: 4.5 | AW16: 2 | AX16: 0.25 | AY16: 3 | AZ16: 0.5 | BA16: 120.63 | BJ16: 0.02 | BK16: 848.32 | BL16: 4060.15 | BM16: محمد نجاح نصر | BN16: كبير | BQ16: مدرس | BR16: معلم خبير | BS16: 825 | BV16: خامسه | BY16: 4898.47
B17: زينات البيلى حسب الله | C17: 507.94 | D17: 8 | F17: 1667.05 | G17: 47.77 | H17: 50.79 | I17: 126.99 | J17: 126.99 | K17: 253.97 | L17: 888.83 | N17: 325 | O17: 150 | P17: 325 | Q17: 350 | S17: 165 | T17: 145 | U17: 140 | W17: 2 | X17: 4 | AH17: 10 | AI17: 4778.39 | AK17: 429.16 | AM17: 47.68 | AN17: 47.68 | AO17: 9 | AP17: 2.8 | AR17: 128 | AS17: 29 | AU17: 2 | AV17: 4.5 | AW17: 2 | AX17: 0.25 | AY17: 3 | AZ17: 0.5 | BA17: 116.69 | BJ17: 0.03 | BK17: 822.29 | BL17: 3956.1 | BM17: زينات البيلى حسب الله | BN17: كبير | BQ17: مدرس | BR17: معلم خبير | BS17: 825 | BV17: سادسه | BY17: 4768.39
B18: هاله المغازى محمد | C18: 487.1 | D18: 9 | F18: 1618.99 | G18: 45.8 | H18: 48.71 | I18: 121.78 | J18: 121.78 | K18: 243.55 | L18: 852.42 | N18: 325 | O18: 150 | P18: 325 | Q18: 350 | S18: 165 | T18: 145 | U18: 140 | W18: 2 | X18: 4 | AH18: 10 | AI18: 4669.03 | AK18: 419.31 | AM18: 46.59 | AN18: 46.59 | AO18: 9 | AP18: 2.8 | AR18: 96 | AS18: 28.4 | AU18: 2 | AV18: 4.5 | AW18: 2 | AX18: 0.25 | AY18: 3 | AZ18: 0.5 | BA18: 113.33 | BJ18: 0.01 | BK18: 774.28 | BL18: 3894.75 | BM18: هاله المغازى محمد | BN18: كبير | BQ18: مدرس | BR18: معلم خبير | BS18: 825 | BY18: 4659.03
B19: خالد ابوالنصر ميسره | C19: 471.09 | D19: 10 | F19: 1586.83 | G19: 44.29 | H19: 47.11 | I19: 117.77 | J19: 117.77 | K19: 235.55 | L19: 824.4 | N19: 325 | O19: 150 | P19: 325 | Q19: 350 | S19: 165 | T19: 145 | U19: 140 | W19: 2 | X19: 4 | AH19: 10 | AI19: 4589.72 | AK19: 412.17 | AM19: 45.8 | AN19: 45.8 | AO19: 9 | AP19: 2.8 | AR19: 92.6 | AS19: 27.9 | AU19: 2 | AV19: 4.5 | AW19: 2 | AX19: 0.25 | AY19: 3 | AZ19: 0.5 | BA19: 111.08 | BB19: 9 | BJ19: 0.02 | BK19: 768.42 | BL19: 3821.3 | BM19: خالد ابوالنصر ميسره | BN19: كبير | BQ19: مدرس | BR19: معلم خبير | BS19: 825 | BY19: 4579.72
B20: سماح حجازى بدر | C20: 462.97 | D20: 11 | F20: 1563.14 | G20: 42.51 | H20: 46.3 | I20: 115.74 | J20: 115.74 | K20: 231.49 | L20: 810.19 | N20: 325 | O20: 150 | P20: 300 | Q20: 350 | S20: 165 | T20: 145 | U20: 140 | W20: 2 | X20: 4 | AH20: 10 | AI20: 4516.11 | AK20: 405.55 | AM20: 45.06 | AN20: 45.06 | AO20: 9 | AP20: 2.8 | AR20: 89.7 | AS20: 27.5 | AU20: 2 | AV20: 4.5 | AW20: 2 | AX20: 0.25 | AY20: 3 | AZ20: 0.5 | BA20: 109.42 | BJ20: 0.02 | BK20: 746.36 | BL20: 3769.75 | BM20: سماح حجازى بدر | BN20: كبير | BQ20: مدرس | BR20: معلم خبير | BS20: 800 | BY20: 4506.11
B21: علاء ابراهيم النمراوى | C21: 445.42 | D21: 12 | F21: 1526.75 | G21: 40.85 | H21: 44.54 | I21: 111.36 | J21: 111.36 | K21: 222.71 | L21: 779.48 | N21: 325 | O21: 150 | P21: 300 | Q21: 350 | S21: 165 | T21: 145 | U21: 140 | W21: 6 | X21: 4 | AH21: 10 | AI21: 4432.05 | AK21: 397.98 | AM21: 44.22 | AN21: 44.22 | AO21: 9 | AP21: 2.8 | AR21: 86.3 | AS21: 27 | AU21: 2 | AV21: 4.5 | AW21: 2 | AX21: 0.25 | AY21: 3 | AZ21: 0.5 | BA21: 106.87 | BJ21: 0.01 | BK21: 730.65 | BL21: 3701.4 | BM21: علاء ابراهيم النمراوى | BN21: كبير | BQ21: مدرس | BR21: معلم خبير | BS21: 800 | BY21: 4422.05
B22: سمير محمود البيلى | C22: 526.06 | D22: 13 | F22: 1710.95 | G22: 49.43 | H22: 52.61 | I22: 131.52 | J22: 131.52 | K22: 263.03 | L22: 920.6 | N22: 325 | O22: 150 | P22: 325 | Q22: 350 | S22: 165 | T22: 145 | U22: 140 | W22: 6 | X22: 4 | AH22: 10 | AI22: 4879.66 | AK22: 438.27 | AM22: 48.7 | AN22: 48.7 | AO22: 9 | AP22: 2.8 | AR22: 133 | AS22: 29.6 | AU22: 2 | AV22: 4.5 | AW22: 2 | AX22: 0.25 | AY22: 3 | AZ22: 0.5 | BA22: 119.77 | BJ22: 0.02 | BK22: 842.11 | BL22: 4037.55 | BM22: سمير محمود البيلى | BN22: كبير | BQ22: مدرس | BR22: معلم خبير | BS22: 825 | BY22: 4869.66
B23: محمد رجب حسن | C23: 482.1 | D23: 14 | F23: 1615.58 | G23: 45.3 | H23: 48.21 | I23: 120.53 | J23: 120.53 | K23: 241.05 | L23: 843.67 | N23: 325 | O23: 150 | P23: 325 | Q23: 350 | S23: 165 | T23: 145 | U23: 140 | W23: 6 | X23: 4 | AH23: 10 | AI23: 4654.87 | AK23: 418.04 | AM23: 46.45 | AN23: 46.45 | AO23: 9 | AP23: 2.8 | AR23: 95.5 | AS23: 28.3 | AU23: 2 | AV23: 4.5 | AW23: 2 | AX23: 0.25 | AY23: 3 | AZ23: 0.5 | BA23: 113.09 | BJ23: 0.04 | BK23: 771.92 | BL23: 3882.95 | BM23: محمد رجب حسن | BN23: كبير | BQ23: مدرس | BR23: معلم خبير | BS23: 825 | BY23: 4644.87
B24: مجدى يوسف الجندى | C24: 639.7 | D24: 15 | F24: 1989.73 | G24: 60.07 | H24: 63.97 | I24: 159.93 | J24: 159.93 | K24: 319.85 | L24: 1119.49 | N24: 325 | O24: 150 | P24: 325 | Q24: 350 | S24: 165 | T24: 145 | U24: 140 | W24: 6 | X24: 4 | AH24: 10 | AI24: 5492.97 | AK24: 493.47 | AM24: 54.83 | AN24: 54.83 | AO24: 9 | AP24: 2.8 | AR24: 165 | AS24: 33.15 | AU24: 2.5 | AV24: 4.5 | AW24: 2 | AX24: 0.25 | AY24: 3 | AZ24: 0.5 | BA24: 139.28 | BJ24: 0.01 | BK24: 965.12 | BL24: 4527.85 | BM24: مجدى يوسف الجندى | BN24: كبير | BQ24: مدرس | BR24: معلم خبير | BS24: 825 | BY24: 5482.97
B25: عاصم احمد عاصم | C25: 356.96 | D25: 16 | F25: 1340.08 | G25: 33.05 | H25: 35.7 | I25: 89.24 | J25: 89.24 | K25: 178.48 | L25: 535.44 | N25: 350 | O25: 150 | P25: 300 | Q25: 325 | R25: 303 | S25: 125 | T25: 150 | U25: 120 | X25: 4 | AH25: 10 | AI25: 4138.23 | AK25: 371.54 | AM25: 41.28 | AN25: 41.28 | AO25: 7.9 | AP25: 2.4 | AR25: 74.7 | AS25: 25.5 | AU25: 1.5 | AV25: 4.5 | AW25: 2 | AX25: 0.25 | AY25: 3 | AZ25: 0.5 | BA25: 93.81 | BJ25: 0.02 | BK25: 670.18 | BL25: 3468.05 | BM25: عاصم احمد عاصم | BN25: اولى | BQ25: مدرس | BR25: معلم أول أ | BS25: 775 | BY25: 4128.23
B26: نهاد عبدالعزيز بدير | C26: 359.9 | D26: 17 | F26: 1354.27 | G26: 33.84 | H26: 35.99 | I26: 89.98 | J26: 89.98 | K26: 179.95 | L26: 539.85 | N26: 350 | O26: 150 | P26: 300 | Q26: 325 | R26: 281 | S26: 125 | T26: 150 | U26: 120 | W26: 2 | X26: 4 | AH26: 10 | AI26: 4140.86 | AK26: 371.78 | AM26: 41.31 | AN26: 41.31 | AO26: 7.9 | AP26: 2.4 | AR26: 74.7 | AS26: 25.4 | AU26: 1.5 | AV26: 4.5 | AW26: 2 | AX26: 0.25 | AY26: 3 | AZ26: 0.5 | BA26: 94.8 | BJ26: 0.01 | BK26: 671.36 | BL26: 3469.5 | BM26: نهاد عبدالعزيز بدير | BN26: اولى | BQ26: مدرس | BR26: معلم أول أ | BS26: 775 | BY26: 4130.86
B27: محمود شحاته محمد | C27: 356.96 | D27: 18 | F27: 1347.73 | G27: 33.54 | H27: 35.7 | I27: 89.24 | J27: 89.24 | K27: 178.48 | L27: 535.44 | N27: 350 | O27: 150 | P27: 300 | Q27: 325 | R27: 290 | S27: 125 | T27: 150 | U27: 120 | W27: 6 | X27: 4 | AH27: 10 | AI27: 4139.37 | AK27: 371.64 | AM27: 41.29 | AN27: 41.29 | AO27: 7.9 | AP27: 2.4 | AR27: 74.7 | AS27: 25.4 | AU27: 1.5 | AV27: 4.5 | AW27: 2 | AX27: 0.25 | AY27: 3 | AZ27: 0.5 | BA27: 94.34 | BJ27: 0.01 | BK27: 670.72 | BL27: 3468.65 | BM27: محمود شحاته محمد | BN27: اولى | BQ27: مدرس | BR27: معلم أول أ | BS27: 775 | BY27: 4129.37
B28: محمد الحايس البدراوى | C28: 507.57 | D28: 19 | F28: 1671.01 | G28: 47.67 | H28: 50.76 | I28: 126.89 | J28: 253.79 | K28: 253.79 | L28: 634.46 | N28: 375 | O28: 150 | P28: 250 | Q28: 275 | S28: 100 | T28: 165 | U28: 85 | W28: 2 | X28: 4 | AH28: 10 | AI28: 4454.37 | AK28: 399.99 | AM28: 44.44 | AN28: 44.44 | AO28: 7 | AP28: 1.7 | AR28: 86.8 | AS28: 26.6 | AU28: 2 | AV28: 4.5 | AW28: 2 | AX28: 0.25 | AY28: 3 | AZ28: 0.5 | BA28: 116.97 | BJ28: 0.03 | BK28: 740.22 | BL28: 3714.15 | BM28: محمد الحايس البدراوى | BN28: ثانيه | BQ28: مدرس | BR28: معلم أول | BS28: 675 | BY28: 4444.37
B29: شيماء رأفت محمد | C29: 258 | D29: 20 | F29: 1131.33 | G29: 24.92 | H29: 25.8 | I29: 64.5 | J29: 129 | K29: 129 | L29: 322.5 | N29: 375 | O29: 150 | P29: 250 | Q29: 275 | R29: 387 | S29: 100 | T29: 165 | U29: 85 | W29: 2 | X29: 4 | AH29: 10 | AI29: 3630.05 | AK29: 325.8 | AM29: 36.2 | AN29: 36.2 | AO29: 7 | AP29: 1.7 | AR29: 35.8 | AS29: 22.4 | AU29: 1.5 | AV29: 4.5 | AW29: 2 | AX29: 0.25 | AY29: 3 | AZ29: 0.5 | BA29: 79.19 | BJ29: 0.01 | BK29: 556.05 | BL29: 3074 | BM29: شيماء رأفت محمد | BN29: ثانيه | BQ29: مدرس | BR29: معلم أول | BS29: 675 | BY29: 3620.05
B30: شهيره السعيد عبدالغنى | C30: 262 | D30: 21 | F30: 1166.61 | G30: 25.32 | H30: 26.2 | I30: 65.5 | J30: 131 | K30: 131 | L30: 327.5 | N30: 375 | O30: 150 | P30: 250 | Q30: 275 | R30: 336 | S30: 100 | T30: 165 | U30: 85 | W30: 2 | X30: 4 | AH30: 10 | AI30: 3625.13 | AK30: 325.36 | AM30: 36.15 | AN30: 36.15 | AO30: 7 | AP30: 1.7 | AR30: 35.8 | AS30: 22.25 | AU30: 1.5 | AV30: 4.5 | AW30: 2 | AX30: 0.25 | AY30: 3 | AZ30: 0.5 | BA30: 81.66 | BJ30: 0.01 | BK30: 557.83 | BL30: 3067.3 | BM30: شهيره السعيد عبدالغنى | BN30: ثانيه | BQ30: مدرس | BR30: معلم أول | BS30: 675 | BY30: 3615.13
B31: هبه عبدالعزيز صلاح | C31: 262 | D31: 22 | F31: 1166.61 | G31: 25.32 | H31: 26.2 | I31: 65.5 | J31: 131 | K31: 131 | L31: 327.5 | N31: 375 | O31: 150 | P31: 250 | Q31: 275 | R31: 336 | S31: 100 | T31: 165 | U31: 85 | W31: 2 | X31: 4 | AH31: 10 | AI31: 3625.13 | AK31: 325.36 | AM31: 36.15 | AN31: 36.15 | AO31: 7 | AP31: 1.7 | AR31: 35.8 | AS31: 22.25 | AU31: 1.5 | AV31: 4.5 | AW31: 2 | AX31: 0.25 | AY31: 3 | AZ31: 0.5 | BA31: 81.66 | BJ31: 0.01 | BK31: 557.83 | BL31: 3067.3 | BM31: هبه عبدالعزيز صلاح | BN31: ثانيه | BQ31: مدرس | BR31: معلم أول | BS31: 675 | BY31: 3615.13
B32: 0 | S32: =IF(BQ32="مدرس",IF(BN32="كبير ا",180,IF(BN32="كبير",165,IF(BN32="اولى",125,IF(BN32="ثانيه",100,IF(BN32="ثالثه",75,))))),"") ->  | V32: 0 | AI32: 0 | AK32: 0 | AM32: 0 | AN32: 0 | BK32: 0 | BL32: 0 | BS32: 0 | BY32: 0
B33: 0 | G33: =C33*10% -> 0 | H33: =IF(BQ33="مدرس",TRUNC(C33*10%,2),"") ->  | L33: =IF(BN33="كبير ا",C33*200%,IF(BN33="كبير",C33*175%,IF(BN33="اولى",C33*150%,IF(BN33="ثانيه",C33*100%,IF(BN33="ثالثه",C33*75%,))))) -> 0 | V33: 0 | AH33: =IF(BQ33="مدرس",AH32,"") ->  | AI33: =TRUNC(SUM(F33:AH33),2) -> 0 | AK33: 0 | AM33: 0 | AN33: 0 | AV33: =IF($BQ33="مدرس",AV32,"") ->  | AW33: =IF($BQ33="مدرس",AW32,"") ->  | AX33: =IF($BQ33="مدرس",AX32,"") ->  | AY33: =IF($BQ33="مدرس",AY32,"") ->  | AZ33: =IF($BQ33="مدرس",AZ32,"") ->  | BA33: =IF(BQ33="مدرس",TRUNC(F33*7%,2),"") ->  | BK33: 0 | BL33: =TRUNC(AI33-BK33,2) -> 0 | BS33: 0 | BY33: 0
B34: 0 | G34: =C34*10% -> 0 | L34: =IF(BN34="كبير ا",C34*200%,IF(BN34="كبير",C34*175%,IF(BN34="اولى",C34*150%,IF(BN34="ثانيه",C34*100%,IF(BN34="ثالثه",C34*75%,))))) -> 0 | V34: 0 | AI34: 0 | AK34: 0 | AM34: 0 | AN34: 0 | BK34: 0 | BL34: 0 | BS34: 0 | BY34: 0
F35: =SUM(F10:F34) -> 35769.72 | G35: 994.98 | H35: 1061.08 | I35: 2652.7 | J35: 2975.1 | L35: 18485.48 | M35: 0 | N35: 7300 | O35: 3300 | P35: 6775 | Q35: 7450 | R35: 1933 | S35: 3325 | T35: 3260 | U35: 2875 | V35: 0 | W35: 78 | X35: 88 | Y35: 173.82 | Z35: 250 | AA35: 0 | AB35: 0 | AD35: 0 | AE35: 0 | AF35: 0 | AG35: 0 | AH35: 220 | AI35: 104272.24 | AJ35: 0 | AK35: 9364.67 | AL35: 2.82 | AM35: 1040.51 | AN35: 1040.51 | AO35: =SUM(AO10:AO34) -> 189.2 | AP35: =SUM(AP10:AP34) -> 57.5 | AQ35: 90 | AR35: 2427.8 | AS35: 636.3 | AT35: 0 | AU35: 42.5 | AV35: 99 | AW35: 44 | AX35: 5.5 | AY35: 66 | AZ35: 11 | BA35: 2503.87 | BB35: 9 | BC35: 250 | BD35: 0 | BE35: 0 | BF35: 0 | BG35: 0 | BH35: 0 | BI35: =SUM(BI10:BI34) -> 279.3 | BJ35: 0.36 | BK35: =SUM(BK10:BK34) -> 18159.84 | BL35: =SUM(BL10:BL34) -> 86112.4 | BS35: 17525
BS36: 0
BS37: 0
BS38: 0
BS39: 0
BS40: 0
BS41: 0
B42: =BM42 -> ابراهيم كمال ايوب | C42: ='اعدادى 1'!C10 -> 458.32 | D42: 23 | F42: ='اعدادى 1'!F10 -> 1550.31 | G42: ='اعدادى 1'!G10 -> 42.54 | H42: ='اعدادى 1'!H10 -> 45.33 | I42: ='اعدادى 1'!I10 -> 114.58 | J42: ='اعدادى 1'!J10 -> 114.58 | K42: ='اعدادى 1'!K10 -> 229.16 | L42: ='اعدادى 1'!L10 -> 802.06 | M42: ='اعدادى 1'!M10 -> 0 | N42: ='اعدادى 1'!N10 -> 325 | O42: ='اعدادى 1'!O10 -> 150 | P42: ='اعدادى 1'!P10 -> 300 | Q42: ='اعدادى 1'!Q10 -> 325 | R42: ='اعدادى 1'!R10 -> 0 | S42: ='اعدادى 1'!S10 -> 165 | T42: ='اعدادى 1'!T10 -> 145 | U42: ='اعدادى 1'!U10 -> 140 | V42: ='اعدادى 1'!V10 ->  | W42: ='اعدادى 1'!W10 -> 6 | X42: ='اعدادى 1'!X10 -> 4 | Y42: ='اعدادى 1'!Y10 -> 114.58 | Z42: ='اعدادى 1'!Z10 -> 0 | AA42: ='اعدادى 1'!AA10 -> 0 | AB42: ='اعدادى 1'!AB10 -> 0 | AD42: ='اعدادى 1'!AD10 -> 0 | AE42: ='اعدادى 1'!AE10 -> 0 | AF42: ='اعدادى 1'!AF10 -> 0 | AG42: ='اعدادى 1'!AG10 -> 0 | AH42: ='اعدادى 1'!AH10 -> 10 | AI42: ='اعدادى 1'!AI10 -> 4583.14 | AJ42: ='اعدادى 1'!AJ10 -> 0 | AK42: ='اعدادى 1'!AK10 -> 411.58 | AL42: ='اعدادى 1'!AL10 -> 0 | AM42: ='اعدادى 1'!AM10 -> 45.73 | AN42: ='اعدادى 1'!AN10 -> 45.73 | AO42: ='اعدادى 1'!AO10 -> 9 | AP42: ='اعدادى 1'!AP10 -> 2.8 | AQ42: ='اعدادى 1'!AQ10 -> 0 | AR42: ='اعدادى 1'!AR10 -> 93.1 | AS42: ='اعدادى 1'!AS10 -> 28 | AT42: ='اعدادى 1'!AT10 -> 0 | AU42: ='اعدادى 1'!AU10 -> 2 | AV42: ='اعدادى 1'!AV10 -> 4.5 | AW42: ='اعدادى 1'!AW10 -> 2 | AX42: ='اعدادى 1'!AX10 -> 0.25 | AY42: ='اعدادى 1'!AY10 -> 3 | AZ42: ='اعدادى 1'!AZ10 -> 0.5 | BA42: ='اعدادى 1'!BA10 -> 108.52 | BB42: ='اعدادى 1'!BB10 -> 0 | BC42: ='اعدادى 1'!BC10 -> 0 | BD42: ='اعدادى 1'!BD10 -> 0 | BE42: ='اعدادى 1'!BE10 -> 0 | BF42: ='اعدادى 1'!BF10 -> 0 | BG42: ='اعدادى 1'!BG10 -> 0 | BH42: ='اعدادى 1'!BH10 -> 50 | BI42: ='اعدادى 1'!BI10 -> 0 | BJ42: ='اعدادى 1'!BJ10 -> 0.03 | BK42: ='اعدادى 1'!BK10 -> 806.74 | BL42: ='اعدادى 1'!BL10 -> 3776.4 | BM42: ='اعدادى 1'!BM10 -> ابراهيم كمال ايوب | BN42: ='اعدادى 1'!BN10 -> كبير | BO42: ='اعدادى 1'!BQ10 -> مدرس | BP42: ='اعدادى 1'!BR10 -> 0 | BQ42: مدرس | BR42: ='اعدادى 1'!BT10 -> 0 | BS42: 775
B43: =BM43 -> نجلاء حسنى ابراهيم | C43: ='اعدادى 1'!C11 -> 417.66 | D43: 24 | F43: ='اعدادى 1'!F11 -> 1468.54 | G43: ='اعدادى 1'!G11 -> 38.75 | H43: ='اعدادى 1'!H11 -> 41.77 | I43: ='اعدادى 1'!I11 -> 104.42 | J43: ='اعدادى 1'!J11 -> 104.42 | K43: ='اعدادى 1'!K11 -> 208.83 | L43: ='اعدادى 1'!L11 -> 626.49 | M43: ='اعدادى 1'!M11 -> 0 | N43: ='اعدادى 1'!N11 -> 350 | O43: ='اعدادى 1'!O11 -> 150 | P43: ='اعدادى 1'!P11 -> 300 | Q43: ='اعدادى 1'!Q11 -> 325 | R43: ='اعدادى 1'!R11 -> 0 | S43: ='اعدادى 1'!S11 -> 125 | T43: ='اعدادى 1'!T11 -> 150 | U43: ='اعدادى 1'!U11 -> 120 | V43: ='اعدادى 1'!V11 ->  | W43: ='اعدادى 1'!W11 -> 2 | X43: ='اعدادى 1'!X11 -> 4 | Y43: ='اعدادى 1'!Y11 -> 0 | Z43: ='اعدادى 1'!Z11 -> 0 | AA43: ='اعدادى 1'!AA11 -> 0 | AB43: ='اعدادى 1'!AB11 -> 0 | AD43: ='اعدادى 1'!AD11 -> 0 | AE43: ='اعدادى 1'!AE11 -> 0 | AF43: ='اعدادى 1'!AF11 -> 0 | AG43: ='اعدادى 1'!AG11 -> 0 | AH43: ='اعدادى 1'!AH11 -> 10 | AI43: ='اعدادى 1'!AI11 -> 4129.22 | AJ43: ='اعدادى 1'!AJ11 -> 0 | AK43: ='اعدادى 1'!AK11 -> 370.73 | AL43: ='اعدادى 1'!AL11 -> 0 | AM43: ='اعدادى 1'!AM11 -> 41.19 | AN43: ='اعدادى 1'!AN11 -> 41.19 | AO43: ='اعدادى 1'!AO11 -> 7.9 | AP43: ='اعدادى 1'!AP11 -> 2.4 | AQ43: ='اعدادى 1'!AQ11 -> 0 | AR43: ='اعدادى 1'!AR11 -> 73.7 | AS43: ='اعدادى 1'!AS11 -> 24.9 | AT43: ='اعدادى 1'!AT11 -> 0 | AU43: ='اعدادى 1'!AU11 -> 1.5 | AV43: ='اعدادى 1'!AV11 -> 4.5 | AW43: ='اعدادى 1'!AW11 -> 2 | AX43: ='اعدادى 1'!AX11 -> 0.25 | AY43: ='اعدادى 1'!AY11 -> 3 | AZ43: ='اعدادى 1'!AZ11 -> 0.5 | BA43: ='اعدادى 1'!BA11 -> 102.8 | BB43: ='اعدادى 1'!BB11 -> 0 | BC43: ='اعدادى 1'!BC11 -> 0 | BD43: ='اعدادى 1'!BD11 -> 0 | BE43: ='اعدادى 1'!BE11 -> 0 | BF43: ='اعدادى 1'!BF11 -> 0 | BG43: ='اعدادى 1'!BG11 -> 0 | BH43: ='اعدادى 1'!BH11 -> 0 | BI43: ='اعدادى 1'!BI11 -> 0 | BJ43: ='اعدادى 1'!BJ11 -> 0.01 | BK43: ='اعدادى 1'!BK11 -> 676.57 | BL43: ='اعدادى 1'!BL11 -> 3452.65 | BM43: ='اعدادى 1'!BM11 -> نجلاء حسنى ابراهيم | BN43: ='اعدادى 1'!BN11 -> اولى | BO43: ='اعدادى 1'!BQ11 -> مدرس | BP43: ='اعدادى 1'!BR11 -> 0 | BQ43: مدرس | BR43: ='اعدادى 1'!BT11 -> 0 | BS43: =SUM(O43:Q43) -> 775
B44: محمد محمد الجمل | C44: ='اعدادى 1'!C12 -> 264 | D44: 25 | F44: ='اعدادى 1'!F12 -> 1176.92 | G44: ='اعدادى 1'!G12 -> 25.52 | H44: ='اعدادى 1'!H12 -> 26.4 | I44: ='اعدادى 1'!I12 -> 66 | J44: ='اعدادى 1'!J12 -> 132 | K44: ='اعدادى 1'!K12 -> 132 | L44: ='اعدادى 1'!L12 -> 330 | M44: ='اعدادى 1'!M12 -> 0 | N44: ='اعدادى 1'!N12 -> 375 | O44: ='اعدادى 1'!O12 -> 150 | P44: ='اعدادى 1'!P12 -> 250 | Q44: ='اعدادى 1'!Q12 -> 275 | R44: ='اعدادى 1'!R12 -> 312.54 | S44: ='اعدادى 1'!S12 -> 100 | T44: ='اعدادى 1'!T12 -> 165 | U44: ='اعدادى 1'!U12 -> 85 | V44: ='اعدادى 1'!V12 ->  | W44: ='اعدادى 1'!W12 -> 6 | X44: ='اعدادى 1'!X12 -> 4 | Y44: ='اعدادى 1'!Y12 -> 0 | Z44: ='اعدادى 1'!Z12 -> 0 | AA44: ='اعدادى 1'!AA12 -> 0 | AB44: ='اعدادى 1'!AB12 -> 0 | AD44: ='اعدادى 1'!AD12 -> 0 | AE44: ='اعدادى 1'!AE12 -> 0 | AF44: ='اعدادى 1'!AF12 -> 0 | AG44: ='اعدادى 1'!AG12 -> 0 | AH44: ='اعدادى 1'!AH12 -> 10 | AI44: ='اعدادى 1'!AI12 -> 3621.38 | AJ44: ='اعدادى 1'!AJ12 -> 0 | AK44: ='اعدادى 1'!AK12 -> 325.02 | AL44: ='اعدادى 1'!AL12 -> 0 | AM44: ='اعدادى 1'!AM12 -> 36.11 | AN44: ='اعدادى 1'!AN12 -> 36.11 | AO44: ='اعدادى 1'!AO12 -> 7 | AP44: ='اعدادى 1'!AP12 -> 1.7 | AQ44: ='اعدادى 1'!AQ12 -> 0 | AR44: ='اعدادى 1'!AR12 -> 35.1 | AS44: ='اعدادى 1'!AS12 -> 22.2 | AT44: ='اعدادى 1'!AT12 -> 0 | AU44: ='اعدادى 1'!AU12 -> 1.5 | AV44: ='اعدادى 1'!AV12 -> 4.5 | AW44: ='اعدادى 1'!AW12 -> 2 | AX44: ='اعدادى 1'!AX12 -> 0.25 | AY44: ='اعدادى 1'!AY12 -> 3 | AZ44: ='اعدادى 1'!AZ12 -> 0.5 | BA44: ='اعدادى 1'!BA12 -> 82.38 | BB44: ='اعدادى 1'!BB12 -> 0 | BC44: ='اعدادى 1'!BC12 -> 0 | BD44: ='اعدادى 1'!BD12 -> 0 | BE44: ='اعدادى 1'!BE12 -> 0 | BF44: ='اعدادى 1'!BF12 -> 0 | BG44: ='اعدادى 1'!BG12 -> 0 | BH44: ='اعدادى 1'!BH12 -> 0 | BI44: ='اعدادى 1'!BI12 -> 0 | BJ44: ='اعدادى 1'!BJ12 -> 0.01 | BK44: ='اعدادى 1'!BK12 -> 557.38 | BL44: ='اعدادى 1'!BL12 -> 3064 | BM44: ='اعدادى 1'!BM12 -> محمد محمد الجمل | BN44: ='اعدادى 1'!BN12 -> ثانيه | BO44: ='اعدادى 1'!BQ12 -> مدرس | BP44: ='اعدادى 1'!BR12 -> 0 | BQ44: مدرس | BR44: معلم أول | BS44: 675
B45: سعدية السعيد عبدالغنى | C45: ='اعدادى 1'!C13 -> 258 | D45: 26 | F45: ='اعدادى 1'!F13 -> 1137.66 | G45: ='اعدادى 1'!G13 -> 24.92 | H45: ='اعدادى 1'!H13 -> 25.8 | I45: ='اعدادى 1'!I13 -> 64.5 | J45: ='اعدادى 1'!J13 -> 129 | K45: ='اعدادى 1'!K13 -> 129 | L45: ='اعدادى 1'!L13 -> 322.5 | M45: ='اعدادى 1'!M13 -> 0 | N45: ='اعدادى 1'!N13 -> 375 | O45: ='اعدادى 1'!O13 -> 150 | P45: ='اعدادى 1'!P13 -> 250 | Q45: ='اعدادى 1'!Q13 -> 275 | R45: ='اعدادى 1'!R13 -> 387 | S45: ='اعدادى 1'!S13 -> 100 | T45: ='اعدادى 1'!T13 -> 165 | U45: ='اعدادى 1'!U13 -> 85 | V45: ='اعدادى 1'!V13 ->  | W45: ='اعدادى 1'!W13 -> 2 | X45: ='اعدادى 1'!X13 -> 4 | Y45: ='اعدادى 1'!Y13 -> 0 | Z45: ='اعدادى 1'!Z13 -> 0 | AA45: ='اعدادى 1'!AA13 -> 0 | AB45: ='اعدادى 1'!AB13 -> 0 | AD45: ='اعدادى 1'!AD13 -> 0 | AE45: ='اعدادى 1'!AE13 -> 0 | AF45: ='اعدادى 1'!AF13 -> 0 | AG45: ='اعدادى 1'!AG13 -> 0 | AH45: ='اعدادى 1'!AH13 -> 10 | AI45: ='اعدادى 1'!AI13 -> 3636.38 | AJ45: ='اعدادى 1'!AJ13 -> 0 | AK45: ='اعدادى 1'!AK13 -> 326.37 | AL45: ='اعدادى 1'!AL13 -> 0 | AM45: ='اعدادى 1'!AM13 -> 36.26 | AN45: ='اعدادى 1'!AN13 -> 36.26 | AO45: ='اعدادى 1'!AO13 -> 7 | AP45: ='اعدادى 1'!AP13 -> 1.7 | AQ45: ='اعدادى 1'!AQ13 -> 0 | AR45: ='اعدادى 1'!AR13 -> 36.1 | AS45: ='اعدادى 1'!AS13 -> 22.5 | AT45: ='اعدادى 1'!AT13 -> 0 | AU45: ='اعدادى 1'!AU13 -> 1.5 | AV45: ='اعدادى 1'!AV13 -> 4.5 | AW45: ='اعدادى 1'!AW13 -> 2 | AX45: ='اعدادى 1'!AX13 -> 0.25 | AY45: ='اعدادى 1'!AY13 -> 3 | AZ45: ='اعدادى 1'!AZ13 -> 0.5 | BA45: ='اعدادى 1'!BA13 -> 79.64 | BB45: ='اعدادى 1'!BB13 -> 0 | BC45: ='اعدادى 1'!BC13 -> 0 | BD45: ='اعدادى 1'!BD13 -> 0 | BE45: ='اعدادى 1'!BE13 -> 0 | BF45: ='اعدادى 1'!BF13 -> 0 | BG45: ='اعدادى 1'!BG13 -> 0 | BH45: ='اعدادى 1'!BH13 -> 0 | BI45: ='اعدادى 1'!BI13 -> 0 | BJ45: ='اعدادى 1'!BJ13 -> 0 | BK45: ='اعدادى 1'!BK13 -> 557.58 | BL45: ='اعدادى 1'!BL13 -> 3078.8 | BM45: ='اعدادى 1'!BM13 -> سعدية السعيد عبدالغنى | BN45: ='اعدادى 1'!BN13 -> ثانيه | BO45: ='اعدادى 1'!BQ13 -> مدرس | BP45: ='اعدادى 1'!BR13 -> 0 | BQ45: مدرس | BR45: ='اعدادى 1'!BT13 -> 0 | BS45: 675
B46: مروه عبدالعزيز بدير | C46: ='اعدادى 1'!C14 -> 258 | D46: 27 | F46: ='اعدادى 1'!F14 -> 1131.33 | G46: ='اعدادى 1'!G14 -> 24.92 | H46: ='اعدادى 1'!H14 -> 25.8 | I46: ='اعدادى 1'!I14 -> 64.5 | J46: ='اعدادى 1'!J14 -> 129 | K46: ='اعدادى 1'!K14 -> 129 | L46: ='اعدادى 1'!L14 -> 322.5 | M46: ='اعدادى 1'!M14 -> 0 | N46: ='اعدادى 1'!N14 -> 375 | O46: ='اعدادى 1'!O14 -> 150 | P46: ='اعدادى 1'!P14 -> 250 | Q46: ='اعدادى 1'!Q14 -> 275 | R46: ='اعدادى 1'!R14 -> 387 | S46: ='اعدادى 1'!S14 -> 100 | T46: ='اعدادى 1'!T14 -> 165 | U46: ='اعدادى 1'!U14 -> 85 | V46: ='اعدادى 1'!V14 ->  | W46: ='اعدادى 1'!W14 -> 2 | X46: ='اعدادى 1'!X14 -> 4 | Y46: ='اعدادى 1'!Y14 -> 0 | Z46: ='اعدادى 1'!Z14 -> 0 | AA46: ='اعدادى 1'!AA14 -> 0 | AB46: ='اعدادى 1'!AB14 -> 0 | AD46: ='اعدادى 1'!AD14 -> 0 | AE46: ='اعدادى 1'!AE14 -> 0 | AF46: ='اعدادى 1'!AF14 -> 0 | AG46: ='اعدادى 1'!AG14 -> 0 | AH46: ='اعدادى 1'!AH14 -> 10 | AI46: ='اعدادى 1'!AI14 -> 3630.05 | AJ46: ='اعدادى 1'!AJ14 -> 0 | AK46: ='اعدادى 1'!AK14 -> 325.8 | AL46: ='اعدادى 1'!AL14 -> 0 | AM46: ='اعدادى 1'!AM14 -> 36.2 | AN46: ='اعدادى 1'!AN14 -> 36.2 | AO46: ='اعدادى 1'!AO14 -> 7 | AP46: ='اعدادى 1'!AP14 -> 1.7 | AQ46: ='اعدادى 1'!AQ14 -> 0 | AR46: ='اعدادى 1'!AR14 -> 35.8 | AS46: ='اعدادى 1'!AS14 -> 22.5 | AT46: ='اعدادى 1'!AT14 -> 0 | AU46: ='اعدادى 1'!AU14 -> 1.5 | AV46: ='اعدادى 1'!AV14 -> 4.5 | AW46: ='اعدادى 1'!AW14 -> 2 | AX46: ='اعدادى 1'!AX14 -> 0.25 | AY46: ='اعدادى 1'!AY14 -> 3 | AZ46: ='اعدادى 1'!AZ14 -> 0.5 | BA46: ='اعدادى 1'!BA14 -> 79.19 | BB46: ='اعدادى 1'!BB14 -> 0 | BC46: ='اعدادى 1'!BC14 -> 0 | BD46: ='اعدادى 1'!BD14 -> 0 | BE46: ='اعدادى 1'!BE14 -> 0 | BF46: ='اعدادى 1'!BF14 -> 0 | BG46: ='اعدادى 1'!BG14 -> 0 | BH46: ='اعدادى 1'!BH14 -> 0 | BI46: ='اعدادى 1'!BI14 -> 0 | BJ46: ='اعدادى 1'!BJ14 -> 0.01 | BK46: ='اعدادى 1'!BK14 -> 556.15 | BL46: ='اعدادى 1'!BL14 -> 3073.9 | BM46: ='اعدادى 1'!BM14 -> مروه عبدالعزيز بدير | BN46: ='اعدادى 1'!BN14 -> ثانيه | BO46: ='اعدادى 1'!BQ14 -> مدرس | BP46: ='اعدادى 1'!BR14 -> 0 | BQ46: مدرس | BR46: ='اعدادى 1'!BT14 -> 0 | BS46: 675
B47: نعمه محمد يونس | C47: ='اعدادى 1'!C15 -> 258 | D47: 28 | F47: ='اعدادى 1'!F15 -> 1131.33 | G47: ='اعدادى 1'!G15 -> 24.92 | H47: ='اعدادى 1'!H15 -> 25.8 | I47: ='اعدادى 1'!I15 -> 64.5 | J47: ='اعدادى 1'!J15 -> 129 | K47: ='اعدادى 1'!K15 -> 129 | L47: ='اعدادى 1'!L15 -> 322.5 | M47: ='اعدادى 1'!M15 -> 0 | N47: ='اعدادى 1'!N15 -> 375 | O47: ='اعدادى 1'!O15 -> 150 | P47: ='اعدادى 1'!P15 -> 250 | Q47: ='اعدادى 1'!Q15 -> 275 | R47: ='اعدادى 1'!R15 -> 387 | S47: ='اعدادى 1'!S15 -> 100 | T47: ='اعدادى 1'!T15 -> 165 | U47: ='اعدادى 1'!U15 -> 85 | V47: ='اعدادى 1'!V15 ->  | W47: ='اعدادى 1'!W15 -> 2 | X47: ='اعدادى 1'!X15 -> 4 | Y47: ='اعدادى 1'!Y15 -> 0 | Z47: ='اعدادى 1'!Z15 -> 0 | AA47: ='اعدادى 1'!AA15 -> 0 | AB47: ='اعدادى 1'!AB15 -> 0 | AD47: ='اعدادى 1'!AD15 -> 0 | AE47: ='اعدادى 1'!AE15 -> 0 | AF47: ='اعدادى 1'!AF15 -> 0 | AG47: ='اعدادى 1'!AG15 -> 0 | AH47: ='اعدادى 1'!AH15 -> 10 | AI47: ='اعدادى 1'!AI15 -> 3630.05 | AJ47: ='اعدادى 1'!AJ15 -> 0 | AK47: ='اعدادى 1'!AK15 -> 325.8 | AL47: ='اعدادى 1'!AL15 -> 0 | AM47: ='اعدادى 1'!AM15 -> 36.2 | AN47: ='اعدادى 1'!AN15 -> 36.2 | AO47: ='اعدادى 1'!AO15 -> 7 | AP47: ='اعدادى 1'!AP15 -> 1.7 | AQ47: ='اعدادى 1'!AQ15 -> 0 | AR47: ='اعدادى 1'!AR15 -> 35.8 | AS47: ='اعدادى 1'!AS15 -> 22.5 | AT47: ='اعدادى 1'!AT15 -> 0 | AU47: ='اعدادى 1'!AU15 -> 1.5 | AV47: ='اعدادى 1'!AV15 -> 4.5 | AW47: ='اعدادى 1'!AW15 -> 2 | AX47: ='اعدادى 1'!AX15 -> 0.25 | AY47: ='اعدادى 1'!AY15 -> 3 | AZ47: ='اعدادى 1'!AZ15 -> 0.5 | BA47: ='اعدادى 1'!BA15 -> 79.19 | BB47: ='اعدادى 1'!BB15 -> 0 | BC47: ='اعدادى 1'!BC15 -> 0 | BD47: ='اعدادى 1'!BD15 -> 0 | BE47: ='اعدادى 1'!BE15 -> 0 | BF47: ='اعدادى 1'!BF15 -> 0 | BG47: ='اعدادى 1'!BG15 -> 0 | BH47: ='اعدادى 1'!BH15 -> 0 | BI47: ='اعدادى 1'!BI15 -> 0 | BJ47: ='اعدادى 1'!BJ15 -> 0.01 | BK47: ='اعدادى 1'!BK15 -> 556.15 | BL47: ='اعدادى 1'!BL15 -> 3073.9 | BM47: ='اعدادى 1'!BM15 -> نعمه محمد يونس | BN47: ='اعدادى 1'!BN15 -> ثانيه | BO47: ='اعدادى 1'!BQ15 -> مدرس | BP47: ='اعدادى 1'!BR15 -> 0 | BQ47: مدرس | BR47: ='اعدادى 1'!BT15 -> 0 | BS47: 675
B48: امل عبد النبى النجار | C48: ='اعدادى 1'!C16 -> 246 | D48: 29 | F48: ='اعدادى 1'!F16 -> 1046.36 | G48: ='اعدادى 1'!G16 -> 24.12 | H48: ='اعدادى 1'!H16 -> 24.6 | I48: ='اعدادى 1'!I16 -> 61.5 | J48: ='اعدادى 1'!J16 -> 123 | K48: ='اعدادى 1'!K16 -> 123 | L48: ='اعدادى 1'!L16 -> 307.5 | M48: ='اعدادى 1'!M16 -> 40 | N48: ='اعدادى 1'!N16 -> 375 | O48: ='اعدادى 1'!O16 -> 150 | P48: ='اعدادى 1'!P16 -> 200 | Q48: ='اعدادى 1'!Q16 -> 275 | R48: ='اعدادى 1'!R16 -> 191 | S48: ='اعدادى 1'!S16 -> 100 | T48: ='اعدادى 1'!T16 -> 165 | U48: ='اعدادى 1'!U16 -> 85 | V48: ='اعدادى 1'!V16 ->  | W48: ='اعدادى 1'!W16 -> 2 | X48: ='اعدادى 1'!X16 -> 4 | Y48: ='اعدادى 1'!Y16 -> 0 | Z48: ='اعدادى 1'!Z16 -> 0 | AA48: ='اعدادى 1'!AA16 -> 0 | AB48: ='اعدادى 1'!AB16 -> 0 | AD48: ='اعدادى 1'!AD16 -> 0 | AE48: ='اعدادى 1'!AE16 -> 0 | AF48: ='اعدادى 1'!AF16 -> 0 | AG48: ='اعدادى 1'!AG16 -> 0 | AH48: ='اعدادى 1'!AH16 -> 10 | AI48: ='اعدادى 1'!AI16 -> 3307.08 | AJ48: ='اعدادى 1'!AJ16 -> 0 | AK48: ='اعدادى 1'!AK16 -> 296.74 | AL48: ='اعدادى 1'!AL16 -> 0 | AM48: ='اعدادى 1'!AM16 -> 32.97 | AN48: ='اعدادى 1'!AN16 -> 32.97 | AO48: ='اعدادى 1'!AO16 -> 7 | AP48: ='اعدادى 1'!AP16 -> 1.7 | AQ48: ='اعدادى 1'!AQ16 -> 0 | AR48: ='اعدادى 1'!AR16 -> 26.7 | AS48: ='اعدادى 1'!AS16 -> 20.4 | AT48: ='اعدادى 1'!AT16 -> 0 | AU48: ='اعدادى 1'!AU16 -> 1.5 | AV48: ='اعدادى 1'!AV16 -> 4.5 | AW48: ='اعدادى 1'!AW16 -> 2 | AX48: ='اعدادى 1'!AX16 -> 0.25 | AY48: ='اعدادى 1'!AY16 -> 3 | AZ48: ='اعدادى 1'!AZ16 -> 0.5 | BA48: ='اعدادى 1'!BA16 -> 73.25 | BB48: ='اعدادى 1'!BB16 -> 0 | BC48: ='اعدادى 1'!BC16 -> 0 | BD48: ='اعدادى 1'!BD16 -> 0 | BE48: ='اعدادى 1'!BE16 -> 0 | BF48: ='اعدادى 1'!BF16 -> 0 | BG48: ='اعدادى 1'!BG16 -> 0 | BH48: ='اعدادى 1'!BH16 -> 0 | BI48: ='اعدادى 1'!BI16 -> 0 | BJ48: ='اعدادى 1'!BJ16 -> 0 | BK48: ='اعدادى 1'!BK16 -> 503.48 | BL48: ='اعدادى 1'!BL16 -> 2803.6 | BM48: ='اعدادى 1'!BM16 -> امل عبد النبى النجار | BN48: ='اعدادى 1'!BN16 -> ثانيه | BO48: ='اعدادى 1'!BQ16 -> مدرس | BP48: ='اعدادى 1'!BR16 -> 0 | BQ48: مدرس | BR48: ='اعدادى 1'!BT16 -> 0 | BS48: 625
B49: اميره مصطفى السيد | C49: ='اعدادى 1'!C17 -> 250 | D49: 30 | F49: ='اعدادى 1'!F17 -> 1077.32 | G49: ='اعدادى 1'!G17 -> 24.12 | H49: ='اعدادى 1'!H17 -> 25 | I49: ='اعدادى 1'!I17 -> 62.5 | J49: ='اعدادى 1'!J17 -> 125 | K49: ='اعدادى 1'!K17 -> 125 | L49: ='اعدادى 1'!L17 -> 312.5 | M49: ='اعدادى 1'!M17 -> 0 | N49: ='اعدادى 1'!N17 -> 375 | O49: ='اعدادى 1'!O17 -> 150 | P49: ='اعدادى 1'!P17 -> 200 | Q49: ='اعدادى 1'!Q17 -> 275 | R49: ='اعدادى 1'!R17 -> 150 | S49: ='اعدادى 1'!S17 -> 100 | T49: ='اعدادى 1'!T17 -> 165 | U49: ='اعدادى 1'!U17 -> 85 | V49: ='اعدادى 1'!V17 ->  | W49: ='اعدادى 1'!W17 -> 2 | X49: ='اعدادى 1'!X17 -> 4 | Y49: ='اعدادى 1'!Y17 -> 62.5 | Z49: ='اعدادى 1'!Z17 -> 0 | AA49: ='اعدادى 1'!AA17 -> 0 | AB49: ='اعدادى 1'!AB17 -> 0 | AD49: ='اعدادى 1'!AD17 -> 0 | AE49: ='اعدادى 1'!AE17 -> 0 | AF49: ='اعدادى 1'!AF17 -> 0 | AG49: ='اعدادى 1'!AG17 -> 0 | AH49: ='اعدادى 1'!AH17 -> 10 | AI49: ='اعدادى 1'!AI17 -> 3329.94 | AJ49: ='اعدادى 1'!AJ17 -> 0 | AK49: ='اعدادى 1'!AK17 -> 298.79 | AL49: ='اعدادى 1'!AL17 -> 0 | AM49: ='اعدادى 1'!AM17 -> 33.2 | AN49: ='اعدادى 1'!AN17 -> 33.2 | AO49: ='اعدادى 1'!AO17 -> 7 | AP49: ='اعدادى 1'!AP17 -> 1.7 | AQ49: ='اعدادى 1'!AQ17 -> 0 | AR49: ='اعدادى 1'!AR17 -> 27.3 | AS49: ='اعدادى 1'!AS17 -> 20.45 | AT49: ='اعدادى 1'!AT17 -> 0 | AU49: ='اعدادى 1'!AU17 -> 1.5 | AV49: ='اعدادى 1'!AV17 -> 4.5 | AW49: ='اعدادى 1'!AW17 -> 2 | AX49: ='اعدادى 1'!AX17 -> 0.25 | AY49: ='اعدادى 1'!AY17 -> 3 | AZ49: ='اعدادى 1'!AZ17 -> 0.5 | BA49: ='اعدادى 1'!BA17 -> 75.41 | BB49: ='اعدادى 1'!BB17 -> 0 | BC49: ='اعدادى 1'!BC17 -> 0 | BD49: ='اعدادى 1'!BD17 -> 0 | BE49: ='اعدادى 1'!BE17 -> 0 | BF49: ='اعدادى 1'!BF17 -> 0 | BG49: ='اعدادى 1'!BG17 -> 0 | BH49: ='اعدادى 1'!BH17 -> 0 | BI49: ='اعدادى 1'!BI17 -> 0 | BJ49: ='اعدادى 1'!BJ17 -> 0.04 | BK49: ='اعدادى 1'!BK17 -> 508.84 | BL49: ='اعدادى 1'!BL17 -> 2821.1 | BM49: ='اعدادى 1'!BM17 -> اميره مصطفى السيد | BN49: ='اعدادى 1'!BN17 -> ثانيه | BO49: ='اعدادى 1'!BQ17 -> مدرس | BP49: ='اعدادى 1'!BR17 -> 0 | BQ49: مدرس | BR49: ='اعدادى 1'!BT17 -> 0 | BS49: 625
B50: رباب محمود النجار | C50: ='اعدادى 1'!C18 -> 246 | D50: 31 | F50: ='اعدادى 1'!F18 -> 1046.63 | G50: ='اعدادى 1'!G18 -> 24.12 | H50: ='اعدادى 1'!H18 -> 24.6 | I50: ='اعدادى 1'!I18 -> 61.5 | J50: ='اعدادى 1'!J18 -> 123 | K50: ='اعدادى 1'!K18 -> 123 | L50: ='اعدادى 1'!L18 -> 307.5 | M50: ='اعدادى 1'!M18 -> 0 | N50: ='اعدادى 1'!N18 -> 375 | O50: ='اعدادى 1'!O18 -> 150 | P50: ='اعدادى 1'!P18 -> 200 | Q50: ='اعدادى 1'!Q18 -> 275 | R50: ='اعدادى 1'!R18 -> 191 | S50: ='اعدادى 1'!S18 -> 100 | T50: ='اعدادى 1'!T18 -> 165 | U50: ='اعدادى 1'!U18 -> 85 | V50: ='اعدادى 1'!V18 ->  | W50: ='اعدادى 1'!W18 -> 2 | X50: ='اعدادى 1'!X18 -> 4 | Y50: ='اعدادى 1'!Y18 -> 0 | Z50: ='اعدادى 1'!Z18 -> 0 | AA50: ='اعدادى 1'!AA18 -> 0 | AB50: ='اعدادى 1'!AB18 -> 0 | AD50: ='اعدادى 1'!AD18 -> 0 | AE50: ='اعدادى 1'!AE18 -> 0 | AF50: ='اعدادى 1'!AF18 -> 0 | AG50: ='اعدادى 1'!AG18 -> 0 | AH50: ='اعدادى 1'!AH18 -> 10 | AI50: ='اعدادى 1'!AI18 -> 3267.35 | AJ50: ='اعدادى 1'!AJ18 -> 0 | AK50: ='اعدادى 1'!AK18 -> 293.16 | AL50: ='اعدادى 1'!AL18 -> 0 | AM50: ='اعدادى 1'!AM18 -> 32.57 | AN50: ='اعدادى 1'!AN18 -> 32.57 | AO50: ='اعدادى 1'!AO18 -> 7 | AP50: ='اعدادى 1'!AP18 -> 1.7 | AQ50: ='اعدادى 1'!AQ18 -> 0 | AR50: ='اعدادى 1'!AR18 -> 25.7 | AS50: ='اعدادى 1'!AS18 -> 20.1 | AT50: ='اعدادى 1'!AT18 -> 0 | AU50: ='اعدادى 1'!AU18 -> 1.5 | AV50: ='اعدادى 1'!AV18 -> 4.5 | AW50: ='اعدادى 1'!AW18 -> 2 | AX50: ='اعدادى 1'!AX18 -> 0.25 | AY50: ='اعدادى 1'!AY18 -> 3 | AZ50: ='اعدادى 1'!AZ18 -> 0.5 | BA50: ='اعدادى 1'!BA18 -> 73.26 | BB50: ='اعدادى 1'!BB18 -> 0 | BC50: ='اعدادى 1'!BC18 -> 0 | BD50: ='اعدادى 1'!BD18 -> 0 | BE50: ='اعدادى 1'!BE18 -> 0 | BF50: ='اعدادى 1'!BF18 -> 0 | BG50: ='اعدادى 1'!BG18 -> 0 | BH50: ='اعدادى 1'!BH18 -> 0 | BI50: ='اعدادى 1'!BI18 -> 0 | BJ50: ='اعدادى 1'!BJ18 -> 0.04 | BK50: ='اعدادى 1'!BK18 -> 497.85 | BL50: ='اعدادى 1'!BL18 -> 2769.5 | BM50: ='اعدادى 1'!BM18 -> رباب محمود النجار | BN50: ='اعدادى 1'!BN18 -> ثانيه | BO50: ='اعدادى 1'!BQ18 -> مدرس | BP50: ='اعدادى 1'!BR18 -> 0 | BQ50: مدرس | BR50: ='اعدادى 1'!BT18 -> 0 | BS50: 625
B51: مروى ناجى سليمان | C51: ='اعدادى 1'!C19 -> 246 | D51: 32 | F51: ='اعدادى 1'!F19 -> 1029.85 | G51: ='اعدادى 1'!G19 -> 4.8 | H51: ='اعدادى 1'!H19 -> 4.8 | I51: ='اعدادى 1'!I19 -> 61.5 | J51: ='اعدادى 1'!J19 -> 184.5 | K51: ='اعدادى 1'!K19 -> 123 | L51: ='اعدادى 1'!L19 -> 246 | M51: ='اعدادى 1'!M19 -> 0 | N51: ='اعدادى 1'!N19 -> 400 | O51: ='اعدادى 1'!O19 -> 150 | P51: ='اعدادى 1'!P19 -> 200 | Q51: ='اعدادى 1'!Q19 -> 225 | R51: ='اعدادى 1'!R19 -> 252 | S51: ='اعدادى 1'!S19 -> 75 | T51: ='اعدادى 1'!T19 -> 185 | U51: ='اعدادى 1'!U19 -> 65 | V51: ='اعدادى 1'!V19 ->  | W51: ='اعدادى 1'!W19 -> 2 | X51: ='اعدادى 1'!X19 -> 4 | Y51: ='اعدادى 1'!Y19 -> 0 | Z51: ='اعدادى 1'!Z19 -> 0 | AA51: ='اعدادى 1'!AA19 -> 0 | AB51: ='اعدادى 1'!AB19 -> 0 | AD51: ='اعدادى 1'!AD19 -> 0 | AE51: ='اعدادى 1'!AE19 -> 0 | AF51: ='اعدادى 1'!AF19 -> 0 | AG51: ='اعدادى 1'!AG19 -> 0 | AH51: ='اعدادى 1'!AH19 -> 10 | AI51: ='اعدادى 1'!AI19 -> 3222.45 | AJ51: ='اعدادى 1'!AJ19 -> 0 | AK51: ='اعدادى 1'!AK19 -> 289.12 | AL51: ='اعدادى 1'!AL19 -> 0 | AM51: ='اعدادى 1'!AM19 -> 32.12 | AN51: ='اعدادى 1'!AN19 -> 32.12 | AO51: ='اعدادى 1'!AO19 -> 6.5 | AP51: ='اعدادى 1'!AP19 -> 1.3 | AQ51: ='اعدادى 1'!AQ19 -> 0 | AR51: ='اعدادى 1'!AR19 -> 24.4 | AS51: ='اعدادى 1'!AS19 -> 19.8 | AT51: ='اعدادى 1'!AT19 -> 0 | AU51: ='اعدادى 1'!AU19 -> 1.5 | AV51: ='اعدادى 1'!AV19 -> 4.5 | AW51: ='اعدادى 1'!AW19 -> 2 | AX51: ='اعدادى 1'!AX19 -> 0.25 | AY51: ='اعدادى 1'!AY19 -> 3 | AZ51: ='اعدادى 1'!AZ19 -> 0.5 | BA51: ='اعدادى 1'!BA19 -> 72.09 | BB51: ='اعدادى 1'!BB19 -> 0 | BC51: ='اعدادى 1'!BC19 -> 0 | BD51: ='اعدادى 1'!BD19 -> 0 | BE51: ='اعدادى 1'!BE19 -> 0 | BF51: ='اعدادى 1'!BF19 -> 0 | BG51: ='اعدادى 1'!BG19 -> 0 | BH51: ='اعدادى 1'!BH19 -> 0 | BI51: ='اعدادى 1'!BI19 -> 0 | BJ51: ='اعدادى 1'!BJ19 -> 0 | BK51: ='اعدادى 1'!BK19 -> 489.2 | BL51: ='اعدادى 1'!BL19 -> 2733.25 | BM51: ='اعدادى 1'!BM19 -> مروى ناجى سليمان | BN51: ='اعدادى 1'!BN19 -> ثالثه | BO51: ='اعدادى 1'!BQ19 -> مدرس | BP51: ='اعدادى 1'!BR19 -> 0 | BQ51: مدرس | BR51: ='اعدادى 1'!BT19 -> 0 | BS51: 575
B52: مروه حمدى عزالعرب | C52: ='اعدادى 1'!C20 -> 249 | D52: 33 | F52: ='اعدادى 1'!F20 -> 1043.78 | G52: ='اعدادى 1'!G20 -> 24.12 | H52: ='اعدادى 1'!H20 -> 24.9 | I52: ='اعدادى 1'!I20 -> 62.25 | J52: ='اعدادى 1'!J20 -> 186.75 | K52: ='اعدادى 1'!K20 -> 124.5 | L52: ='اعدادى 1'!L20 -> 0 | M52: ='اعدادى 1'!M20 -> 0 | N52: ='اعدادى 1'!N20 -> 0 | O52: ='اعدادى 1'!O20 -> 150 | P52: ='اعدادى 1'!P20 -> 200 | Q52: ='اعدادى 1'!Q20 -> 225 | R52: ='اعدادى 1'!R20 -> 572 | S52: ='اعدادى 1'!S20 -> 75 | T52: ='اعدادى 1'!T20 -> 185 | U52: ='اعدادى 1'!U20 -> 65 | V52: ='اعدادى 1'!V20 ->  | W52: ='اعدادى 1'!W20 -> 2 | X52: ='اعدادى 1'!X20 -> 4 | Y52: ='اعدادى 1'!Y20 -> 0 | Z52: ='اعدادى 1'!Z20 -> 0 | AA52: ='اعدادى 1'!AA20 -> 0 | AB52: ='اعدادى 1'!AB20 -> 0 | AD52: ='اعدادى 1'!AD20 -> 0 | AE52: ='اعدادى 1'!AE20 -> 227.83 | AF52: ='اعدادى 1'!AF20 -> 385 | AG52: ='اعدادى 1'!AG20 -> 200 | AH52: ='اعدادى 1'!AH20 -> 10 | AI52: ='اعدادى 1'!AI20 -> 3767.13 | AJ52: ='اعدادى 1'!AJ20 -> 0 | AK52: ='اعدادى 1'!AK20 -> 338.14 | AL52: ='اعدادى 1'!AL20 -> 0 | AM52: ='اعدادى 1'!AM20 -> 37.57 | AN52: ='اعدادى 1'!AN20 -> 37.57 | AO52: ='اعدادى 1'!AO20 -> 6.5 | AP52: ='اعدادى 1'!AP20 -> 1.3 | AQ52: ='اعدادى 1'!AQ20 -> 0 | AR52: ='اعدادى 1'!AR20 -> 40 | AS52: ='اعدادى 1'!AS20 -> 23.85 | AT52: ='اعدادى 1'!AT20 -> 0 | AU52: ='اعدادى 1'!AU20 -> 1.5 | AV52: ='اعدادى 1'!AV20 -> 4.5 | AW52: ='اعدادى 1'!AW20 -> 2 | AX52: ='اعدادى 1'!AX20 -> 0.25 | AY52: ='اعدادى 1'!AY20 -> 3 | AZ52: ='اعدادى 1'!AZ20 -> 0.5 | BA52: ='اعدادى 1'!BA20 -> 73.06 | BB52: ='اعدادى 1'!BB20 -> 0 | BC52: ='اعدادى 1'!BC20 -> 0 | BD52: ='اعدادى 1'!BD20 -> 0 | BE52: ='اعدادى 1'!BE20 -> 0 | BF52: ='اعدادى 1'!BF20 -> 0 | BG52: ='اعدادى 1'!BG20 -> 0 | BH52: ='اعدادى 1'!BH20 -> 0 | BI52: ='اعدادى 1'!BI20 -> 0 | BJ52: ='اعدادى 1'!BJ20 -> 0.04 | BK52: ='اعدادى 1'!BK20 -> 569.78 | BL52: ='اعدادى 1'!BL20 -> 3197.35 | BM52: ='اعدادى 1'!BM20 -> مروه حمدى عزالعرب | BN52: ='اعدادى 1'!BN20 -> ثالثه | BO52: ='اعدادى 1'!BQ20 -> مدرس | BP52: ='اعدادى 1'!BR20 -> 0 | BQ52: مدرس | BR52: ='اعدادى 1'!BT20 -> 0 | BS52: 575
B53: حامد ابوبكر شلبى | C53: ='اعدادى 1'!C21 -> 246 | D53: 34 | F53: ='اعدادى 1'!F21 -> 1006.15 | G53: ='اعدادى 1'!G21 -> 4.8 | H53: ='اعدادى 1'!H21 -> 4.8 | I53: ='اعدادى 1'!I21 -> 61.5 | J53: ='اعدادى 1'!J21 -> 0 | K53: ='اعدادى 1'!K21 -> 123 | L53: ='اعدادى 1'!L21 -> 246 | M53: ='اعدادى 1'!M21 -> 0 | N53: ='اعدادى 1'!N21 -> 0 | O53: ='اعدادى 1'!O21 -> 150 | P53: ='اعدادى 1'!P21 -> 200 | Q53: ='اعدادى 1'!Q21 -> 225 | R53: ='اعدادى 1'!R21 -> 153 | S53: ='اعدادى 1'!S21 -> 75 | T53: ='اعدادى 1'!T21 -> 185 | U53: ='اعدادى 1'!U21 -> 65 | V53: ='اعدادى 1'!V21 ->  | W53: ='اعدادى 1'!W21 -> 6 | X53: ='اعدادى 1'!X21 -> 4 | Y53: ='اعدادى 1'!Y21 -> 0 | Z53: ='اعدادى 1'!Z21 -> 0 | AA53: ='اعدادى 1'!AA21 -> 0 | AB53: ='اعدادى 1'!AB21 -> 0 | AD53: ='اعدادى 1'!AD21 -> 0 | AE53: ='اعدادى 1'!AE21 -> 0 | AF53: ='اعدادى 1'!AF21 -> 0 | AG53: ='اعدادى 1'!AG21 -> 0 | AH53: ='اعدادى 1'!AH21 -> 10 | AI53: ='اعدادى 1'!AI21 -> 2519.25 | AJ53: ='اعدادى 1'!AJ21 -> 0 | AK53: ='اعدادى 1'!AK21 -> 225.83 | AL53: ='اعدادى 1'!AL21 -> 0 | AM53: ='اعدادى 1'!AM21 -> 25.09 | AN53: ='اعدادى 1'!AN21 -> 25.09 | AO53: ='اعدادى 1'!AO21 -> 6.5 | AP53: ='اعدادى 1'!AP21 -> 1.3 | AQ53: ='اعدادى 1'!AQ21 -> 0 | AR53: ='اعدادى 1'!AR21 -> 3.5 | AS53: ='اعدادى 1'!AS21 -> 14.65 | AT53: ='اعدادى 1'!AT21 -> 0 | AU53: ='اعدادى 1'!AU21 -> 1 | AV53: ='اعدادى 1'!AV21 -> 4.5 | AW53: ='اعدادى 1'!AW21 -> 2 | AX53: ='اعدادى 1'!AX21 -> 0.25 | AY53: ='اعدادى 1'!AY21 -> 3 | AZ53: ='اعدادى 1'!AZ21 -> 0.5 | BA53: ='اعدادى 1'!BA21 -> 70.43 | BB53: ='اعدادى 1'!BB21 -> 0 | BC53: ='اعدادى 1'!BC21 -> 0 | BD53: ='اعدادى 1'!BD21 -> 0 | BE53: ='اعدادى 1'!BE21 -> 0 | BF53: ='اعدادى 1'!BF21 -> 0 | BG53: ='اعدادى 1'!BG21 -> 0 | BH53: ='اعدادى 1'!BH21 -> 0 | BI53: ='اعدادى 1'!BI21 -> 0 | BJ53: ='اعدادى 1'!BJ21 -> 0.01 | BK53: ='اعدادى 1'!BK21 -> 383.65 | BL53: ='اعدادى 1'!BL21 -> 2135.6 | BM53: ='اعدادى 1'!BM21 -> حامد ابوبكر شلبى | BN53: ='اعدادى 1'!BN21 -> ثالثه | BO53: ='اعدادى 1'!BQ21 -> مدرس | BP53: ='اعدادى 1'!BR21 -> 0 | BQ53: مدرس | BR53: ='اعدادى 1'!BT21 -> 0 | BS53: 575
B54: ناديه مسعد محمود | C54: ='اعدادى 1'!C22 -> 0 | D54: 35 | F54: ='اعدادى 1'!F22 -> 0 | G54: ='اعدادى 1'!G22 -> 0 | H54: ='اعدادى 1'!H22 ->  | I54: ='اعدادى 1'!I22 ->  | J54: ='اعدادى 1'!J22 ->  | K54: ='اعدادى 1'!K22 ->  | L54: ='اعدادى 1'!L22 -> 0 | M54: ='اعدادى 1'!M22 -> 0 | N54: ='اعدادى 1'!N22 ->  | O54: ='اعدادى 1'!O22 -> 150 | P54: ='اعدادى 1'!P22 -> 300 | Q54: ='اعدادى 1'!Q22 -> 325 | R54: ='اعدادى 1'!R22 -> 0 | S54: ='اعدادى 1'!S22 ->  | T54: ='اعدادى 1'!T22 ->  | U54: ='اعدادى 1'!U22 ->  | V54: ='اعدادى 1'!V22 -> 85 | W54: ='اعدادى 1'!W22 -> 0 | X54: ='اعدادى 1'!X22 -> 0 | Y54: ='اعدادى 1'!Y22 -> 0 | Z54: ='اعدادى 1'!Z22 -> 0 | AA54: ='اعدادى 1'!AA22 -> 2852.14 | AB54: ='اعدادى 1'!AB22 -> 303.41 | AD54: ='اعدادى 1'!AD22 -> 64.44 | AE54: ='اعدادى 1'!AE22 -> 0 | AF54: ='اعدادى 1'!AF22 -> 0 | AG54: ='اعدادى 1'!AG22 -> 0 | AH54: ='اعدادى 1'!AH22 ->  | AI54: ='اعدادى 1'!AI22 -> 4079.99 | AJ54: ='اعدادى 1'!AJ22 -> 0 | AK54: ='اعدادى 1'!AK22 -> 367.2 | AL54: ='اعدادى 1'!AL22 -> 0 | AM54: ='اعدادى 1'!AM22 -> 40.8 | AN54: ='اعدادى 1'!AN22 -> 40.8 | AO54: ='اعدادى 1'!AO22 -> 5 | AP54: ='اعدادى 1'!AP22 ->  | AQ54: ='اعدادى 1'!AQ22 -> 0 | AR54: ='اعدادى 1'!AR22 -> 41.9 | AS54: ='اعدادى 1'!AS22 -> 29.65 | AT54: ='اعدادى 1'!AT22 -> 0 | AU54: ='اعدادى 1'!AU22 -> 2 | AV54: ='اعدادى 1'!AV22 ->  | AW54: ='اعدادى 1'!AW22 ->  | AX54: ='اعدادى 1'!AX22 ->  | AY54: ='اعدادى 1'!AY22 ->  | AZ54: ='اعدادى 1'!AZ22 ->  | BA54: ='اعدادى 1'!BA22 ->  | BB54: ='اعدادى 1'!BB22 -> 0 | BC54: ='اعدادى 1'!BC22 -> 0 | BD54: ='اعدادى 1'!BD22 -> 0 | BE54: ='اعدادى 1'!BE22 -> 0 | BF54: ='اعدادى 1'!BF22 -> 0 | BG54: ='اعدادى 1'!BG22 -> 0 | BH54: ='اعدادى 1'!BH22 -> 0 | BI54: ='اعدادى 1'!BI22 -> 0 | BJ54: ='اعدادى 1'!BJ22 -> 0.04 | BK54: ='اعدادى 1'!BK22 -> 527.39 | BL54: ='اعدادى 1'!BL22 -> 3552.6 | BM54: ='اعدادى 1'!BM22 -> ناديه مسعد محمود | BN54: ='اعدادى 1'!BN22 -> اولى | BO54: ='اعدادى 1'!BQ22 -> 0 | BP54: ='اعدادى 1'!BR22 -> 0 | BR54: ='اعدادى 1'!BT22 -> 0 | BS54: 775 | BT54: 839.23
B55: فاطمه فتح الله عبداللطيف | C55: ='اعدادى 1'!C23 -> 0 | D55: 36 | F55: ='اعدادى 1'!F23 -> 0 | G55: ='اعدادى 1'!G23 -> 0 | H55: ='اعدادى 1'!H23 ->  | I55: ='اعدادى 1'!I23 ->  | J55: ='اعدادى 1'!J23 ->  | K55: ='اعدادى 1'!K23 ->  | L55: ='اعدادى 1'!L23 -> 0 | M55: ='اعدادى 1'!M23 -> 0 | N55: ='اعدادى 1'!N23 ->  | O55: ='اعدادى 1'!O23 -> 150 | P55: ='اعدادى 1'!P23 -> 250 | Q55: ='اعدادى 1'!Q23 -> 275 | R55: ='اعدادى 1'!R23 -> 0 | S55: ='اعدادى 1'!S23 ->  | T55: ='اعدادى 1'!T23 ->  | U55: ='اعدادى 1'!U23 ->  | V55: ='اعدادى 1'!V23 -> 65 | W55: ='اعدادى 1'!W23 -> 0 | X55: ='اعدادى 1'!X23 -> 0 | Y55: ='اعدادى 1'!Y23 -> 0 | Z55: ='اعدادى 1'!Z23 -> 0 | AA55: ='اعدادى 1'!AA23 -> 2382.14 | AB55: ='اعدادى 1'!AB23 -> 234.72 | AD55: ='اعدادى 1'!AD23 -> 48.89 | AE55: ='اعدادى 1'!AE23 -> 0 | AF55: ='اعدادى 1'!AF23 -> 0 | AG55: ='اعدادى 1'!AG23 -> 0 | AH55: ='اعدادى 1'!AH23 ->  | AI55: ='اعدادى 1'!AI23 -> 3405.75 | AJ55: ='اعدادى 1'!AJ23 -> 0 | AK55: ='اعدادى 1'!AK23 -> 306.52 | AL55: ='اعدادى 1'!AL23 -> 0 | AM55: ='اعدادى 1'!AM23 -> 34.06 | AN55: ='اعدادى 1'!AN23 -> 34.06 | AO55: ='اعدادى 1'!AO23 -> 5 | AP55: ='اعدادى 1'!AP23 ->  | AQ55: ='اعدادى 1'!AQ23 -> 0 | AR55: ='اعدادى 1'!AR23 -> 32.5 | AS55: ='اعدادى 1'!AS23 -> 24.8 | AT55: ='اعدادى 1'!AT23 -> 0 | AU55: ='اعدادى 1'!AU23 -> 1.5 | AV55: ='اعدادى 1'!AV23 ->  | AW55: ='اعدادى 1'!AW23 ->  | AX55: ='اعدادى 1'!AX23 ->  | AY55: ='اعدادى 1'!AY23 ->  | AZ55: ='اعدادى 1'!AZ23 ->  | BA55: ='اعدادى 1'!BA23 ->  | BB55: ='اعدادى 1'!BB23 -> 0 | BC55: ='اعدادى 1'!BC23 -> 0 | BD55: ='اعدادى 1'!BD23 -> 0 | BE55: ='اعدادى 1'!BE23 -> 0 | BF55: ='اعدادى 1'!BF23 -> 0 | BG55: ='اعدادى 1'!BG23 -> 0 | BH55: ='اعدادى 1'!BH23 -> 0 | BI55: ='اعدادى 1'!BI23 -> 0 | BJ55: ='اعدادى 1'!BJ23 -> 0.01 | BK55: ='اعدادى 1'!BK23 -> 438.45 | BL55: ='اعدادى 1'!BL23 -> 2967.3 | BM55: ='اعدادى 1'!BM23 -> فاطمه فتح الله عبداللطيف | BN55: ='اعدادى 1'!BN23 -> ثانيه | BO55: ='اعدادى 1'!BQ23 -> 0 | BP55: ='اعدادى 1'!BR23 -> 0 | BR55: ='اعدادى 1'!BT23 -> 0 | BS55: 675 | BT55: 650.97
B56: ممدوح عبدالواحد عبدالعزيز | C56: ='اعدادى 1'!C24 -> 0 | D56: 37 | F56: ='اعدادى 1'!F24 -> 0 | G56: ='اعدادى 1'!G24 -> 0 | H56: ='اعدادى 1'!H24 ->  | I56: ='اعدادى 1'!I24 ->  | J56: ='اعدادى 1'!J24 ->  | K56: ='اعدادى 1'!K24 ->  | L56: ='اعدادى 1'!L24 -> 0 | M56: ='اعدادى 1'!M24 -> 0 | N56: ='اعدادى 1'!N24 ->  | O56: ='اعدادى 1'!O24 -> 150 | P56: ='اعدادى 1'!P24 -> 200 | Q56: ='اعدادى 1'!Q24 -> 225 | R56: ='اعدادى 1'!R24 -> 0 | S56: ='اعدادى 1'!S24 ->  | T56: ='اعدادى 1'!T24 ->  | U56: ='اعدادى 1'!U24 ->  | V56: ='اعدادى 1'!V24 -> 55 | W56: ='اعدادى 1'!W24 -> 0 | X56: ='اعدادى 1'!X24 -> 0 | Y56: ='اعدادى 1'!Y24 -> 0 | Z56: ='اعدادى 1'!Z24 -> 0 | AA56: ='اعدادى 1'!AA24 -> 2473.98 | AB56: ='اعدادى 1'!AB24 -> 247.52 | AD56: ='اعدادى 1'!AD24 -> 53.33 | AE56: ='اعدادى 1'!AE24 -> 0 | AF56: ='اعدادى 1'!AF24 -> 0 | AG56: ='اعدادى 1'!AG24 -> 0 | AH56: ='اعدادى 1'!AH24 ->  | AI56: ='اعدادى 1'!AI24 -> 3404.83 | AJ56: ='اعدادى 1'!AJ24 -> 0 | AK56: ='اعدادى 1'!AK24 -> 306.43 | AL56: ='اعدادى 1'!AL24 -> 0 | AM56: ='اعدادى 1'!AM24 -> 34.05 | AN56: ='اعدادى 1'!AN24 -> 34.05 | AO56: ='اعدادى 1'!AO24 -> 5 | AP56: ='اعدادى 1'!AP24 ->  | AQ56: ='اعدادى 1'!AQ24 -> 0 | AR56: ='اعدادى 1'!AR24 -> 32.5 | AS56: ='اعدادى 1'!AS24 -> 24.8 | AT56: ='اعدادى 1'!AT24 -> 0 | AU56: ='اعدادى 1'!AU24 -> 1.5 | AV56: ='اعدادى 1'!AV24 ->  | AW56: ='اعدادى 1'!AW24 ->  | AX56: ='اعدادى 1'!AX24 ->  | AY56: ='اعدادى 1'!AY24 ->  | AZ56: ='اعدادى 1'!AZ24 ->  | BA56: ='اعدادى 1'!BA24 ->  | BB56: ='اعدادى 1'!BB24 -> 0 | BC56: ='اعدادى 1'!BC24 -> 0 | BD56: ='اعدادى 1'!BD24 -> 0 | BE56: ='اعدادى 1'!BE24 -> 0 | BF56: ='اعدادى 1'!BF24 -> 0 | BG56: ='اعدادى 1'!BG24 -> 0 | BH56: ='اعدادى 1'!BH24 -> 0 | BI56: ='اعدادى 1'!BI24 -> 0 | BJ56: ='اعدادى 1'!BJ24 -> 0 | BK56: ='اعدادى 1'!BK24 -> 438.33 | BL56: ='اعدادى 1'!BL24 -> 2966.5 | BM56: ='اعدادى 1'!BM24 -> ممدوح عبدالواحد عبدالعزيز | BN56: ='اعدادى 1'!BN24 -> ثالثه | BO56: ='اعدادى 1'!BQ24 -> 0 | BP56: ='اعدادى 1'!BR24 -> 0 | BR56: ='اعدادى 1'!BT24 -> 0 | BS56: 575 | BT56: 622.38
B57: احمد ابراهيم الغريب | C57: ='اعدادى 1'!C25 -> 0 | D57: 38 | F57: ='اعدادى 1'!F25 -> 0 | G57: ='اعدادى 1'!G25 -> 0 | H57: ='اعدادى 1'!H25 ->  | I57: ='اعدادى 1'!I25 ->  | J57: ='اعدادى 1'!J25 ->  | K57: ='اعدادى 1'!K25 ->  | L57: ='اعدادى 1'!L25 -> 0 | M57: ='اعدادى 1'!M25 -> 0 | N57: ='اعدادى 1'!N25 ->  | O57: ='اعدادى 1'!O25 -> 150 | P57: ='اعدادى 1'!P25 -> 200 | Q57: ='اعدادى 1'!Q25 -> 225 | R57: ='اعدادى 1'!R25 -> 479 | S57: ='اعدادى 1'!S25 ->  | T57: ='اعدادى 1'!T25 ->  | U57: ='اعدادى 1'!U25 ->  | V57: ='اعدادى 1'!V25 -> 55 | W57: ='اعدادى 1'!W25 -> 0 | X57: ='اعدادى 1'!X25 -> 0 | Y57: ='اعدادى 1'!Y25 -> 0 | Z57: ='اعدادى 1'!Z25 -> 0 | AA57: ='اعدادى 1'!AA25 -> 1675.64 | AB57: ='اعدادى 1'!AB25 -> 140.4 | AD57: ='اعدادى 1'!AD25 -> 27.78 | AE57: ='اعدادى 1'!AE25 -> 0 | AF57: ='اعدادى 1'!AF25 -> 0 | AG57: ='اعدادى 1'!AG25 -> 0 | AH57: ='اعدادى 1'!AH25 ->  | AI57: ='اعدادى 1'!AI25 -> 3052.82 | AJ57: ='اعدادى 1'!AJ25 -> 0 | AK57: ='اعدادى 1'!AK25 -> 274.75 | AL57: ='اعدادى 1'!AL25 -> 0 | AM57: ='اعدادى 1'!AM25 -> 30.53 | AN57: ='اعدادى 1'!AN25 -> 30.53 | AO57: ='اعدادى 1'!AO25 -> 5 | AP57: ='اعدادى 1'!AP25 ->  | AQ57: ='اعدادى 1'!AQ25 -> 0 | AR57: ='اعدادى 1'!AR25 -> 19.5 | AS57: ='اعدادى 1'!AS25 -> 21.55 | AT57: ='اعدادى 1'!AT25 -> 0 | AU57: ='اعدادى 1'!AU25 -> 1.5 | AV57: ='اعدادى 1'!AV25 ->  | AW57: ='اعدادى 1'!AW25 ->  | AX57: ='اعدادى 1'!AX25 ->  | AY57: ='اعدادى 1'!AY25 ->  | AZ57: ='اعدادى 1'!AZ25 ->  | BA57: ='اعدادى 1'!BA25 ->  | BB57: ='اعدادى 1'!BB25 -> 0 | BC57: ='اعدادى 1'!BC25 -> 0 | BD57: ='اعدادى 1'!BD25 -> 0 | BE57: ='اعدادى 1'!BE25 -> 0 | BF57: ='اعدادى 1'!BF25 -> 0 | BG57: ='اعدادى 1'!BG25 -> 0 | BH57: ='اعدادى 1'!BH25 -> 0 | BI57: ='اعدادى 1'!BI25 -> 0 | BJ57: ='اعدادى 1'!BJ25 -> 0.01 | BK57: ='اعدادى 1'!BK25 -> 383.37 | BL57: ='اعدادى 1'!BL25 -> 2669.45 | BM57: ='اعدادى 1'!BM25 -> احمد ابراهيم الغريب | BN57: ='اعدادى 1'!BN25 -> ثالثه | BO57: ='اعدادى 1'!BQ25 -> 0 | BP57: ='اعدادى 1'!BR25 -> 0 | BR57: ='اعدادى 1'!BT25 -> 0 | BS57: 575 | BT57: 384.8
B58: اسماعيل عبدالمجيد سراج الدين | C58: ='اعدادى 1'!C26 -> 0 | D58: 39 | F58: ='اعدادى 1'!F26 -> 0 | G58: ='اعدادى 1'!G26 -> 0 | H58: ='اعدادى 1'!H26 ->  | I58: ='اعدادى 1'!I26 ->  | J58: ='اعدادى 1'!J26 ->  | K58: ='اعدادى 1'!K26 ->  | L58: ='اعدادى 1'!L26 -> 0 | M58: ='اعدادى 1'!M26 -> 0 | N58: ='اعدادى 1'!N26 ->  | O58: ='اعدادى 1'!O26 -> 150 | P58: ='اعدادى 1'!P26 -> 200 | Q58: ='اعدادى 1'!Q26 -> 225 | R58: ='اعدادى 1'!R26 -> 479 | S58: ='اعدادى 1'!S26 ->  | T58: ='اعدادى 1'!T26 ->  | U58: ='اعدادى 1'!U26 ->  | V58: ='اعدادى 1'!V26 -> 55 | W58: ='اعدادى 1'!W26 -> 0 | X58: ='اعدادى 1'!X26 -> 0 | Y58: ='اعدادى 1'!Y26 -> 0 | Z58: ='اعدادى 1'!Z26 -> 0 | AA58: ='اعدادى 1'!AA26 -> 1675.64 | AB58: ='اعدادى 1'!AB26 -> 140.4 | AD58: ='اعدادى 1'!AD26 -> 27.78 | AE58: ='اعدادى 1'!AE26 -> 0 | AF58: ='اعدادى 1'!AF26 -> 0 | AG58: ='اعدادى 1'!AG26 -> 0 | AH58: ='اعدادى 1'!AH26 ->  | AI58: ='اعدادى 1'!AI26 -> 3052.82 | AJ58: ='اعدادى 1'!AJ26 -> 0 | AK58: ='اعدادى 1'!AK26 -> 274.75 | AL58: ='اعدادى 1'!AL26 -> 0 | AM58: ='اعدادى 1'!AM26 -> 30.53 | AN58: ='اعدادى 1'!AN26 -> 30.53 | AO58: ='اعدادى 1'!AO26 -> 5 | AP58: ='اعدادى 1'!AP26 ->  | AQ58: ='اعدادى 1'!AQ26 -> 0 | AR58: ='اعدادى 1'!AR26 -> 17.2 | AS58: ='اعدادى 1'!AS26 -> 21.55 | AT58: ='اعدادى 1'!AT26 -> 70 | AU58: ='اعدادى 1'!AU26 -> 1.5 | AV58: ='اعدادى 1'!AV26 ->  | AW58: ='اعدادى 1'!AW26 ->  | AX58: ='اعدادى 1'!AX26 ->  | AY58: ='اعدادى 1'!AY26 ->  | AZ58: ='اعدادى 1'!AZ26 ->  | BA58: ='اعدادى 1'!BA26 ->  | BB58: ='اعدادى 1'!BB26 -> 0 | BC58: ='اعدادى 1'!BC26 -> 0 | BD58: ='اعدادى 1'!BD26 -> 0 | BE58: ='اعدادى 1'!BE26 -> 0 | BF58: ='اعدادى 1'!BF26 -> 0 | BG58: ='اعدادى 1'!BG26 -> 0 | BH58: ='اعدادى 1'!BH26 -> 0 | BI58: ='اعدادى 1'!BI26 -> 0 | BJ58: ='اعدادى 1'!BJ26 -> 0.01 | BK58: ='اعدادى 1'!BK26 -> 451.07 | BL58: ='اعدادى 1'!BL26 -> 2601.75 | BM58: ='اعدادى 1'!BM26 -> اسماعيل عبدالمجيد سراج الدين | BN58: ='اعدادى 1'!BN26 -> ثالثه | BO58: ='اعدادى 1'!BQ26 -> 0 | BP58: ='اعدادى 1'!BR26 -> 0 | BR58: ='اعدادى 1'!BT26 -> 0 | BS58: 575 | BT58: 384.8
B59: السعيد احمد السعيد | C59: ='اعدادى 1'!C27 -> 0 | D59: 40 | F59: ='اعدادى 1'!F27 -> 0 | G59: ='اعدادى 1'!G27 -> 0 | H59: ='اعدادى 1'!H27 ->  | I59: ='اعدادى 1'!I27 ->  | J59: ='اعدادى 1'!J27 ->  | K59: ='اعدادى 1'!K27 ->  | L59: ='اعدادى 1'!L27 -> 0 | M59: ='اعدادى 1'!M27 -> 0 | N59: ='اعدادى 1'!N27 ->  | O59: ='اعدادى 1'!O27 -> 150 | P59: ='اعدادى 1'!P27 -> 150 | Q59: ='اعدادى 1'!Q27 -> 175 | R59: ='اعدادى 1'!R27 -> 180 | S59: ='اعدادى 1'!S27 ->  | T59: ='اعدادى 1'!T27 ->  | U59: ='اعدادى 1'!U27 ->  | V59: ='اعدادى 1'!V27 -> 50 | W59: ='اعدادى 1'!W27 -> 0 | X59: ='اعدادى 1'!X27 -> 0 | Y59: ='اعدادى 1'!Y27 -> 0 | Z59: ='اعدادى 1'!Z27 -> 0 | AA59: ='اعدادى 1'!AA27 -> 1595.64 | AB59: ='اعدادى 1'!AB27 -> 132.57 | AD59: ='اعدادى 1'!AD27 -> 26.67 | AE59: ='اعدادى 1'!AE27 -> 0 | AF59: ='اعدادى 1'!AF27 -> 0 | AG59: ='اعدادى 1'!AG27 -> 0 | AH59: ='اعدادى 1'!AH27 ->  | AI59: ='اعدادى 1'!AI27 -> 2559.88 | AJ59: ='اعدادى 1'!AJ27 -> 0 | AK59: ='اعدادى 1'!AK27 -> 230.39 | AL59: ='اعدادى 1'!AL27 -> 0 | AM59: ='اعدادى 1'!AM27 -> 25.6 | AN59: ='اعدادى 1'!AN27 -> 25.6 | AO59: ='اعدادى 1'!AO27 -> 5 | AP59: ='اعدادى 1'!AP27 ->  | AQ59: ='اعدادى 1'!AQ27 -> 0 | AR59: ='اعدادى 1'!AR27 -> 4 | AS59: ='اعدادى 1'!AS27 -> 17.9 | AT59: ='اعدادى 1'!AT27 -> 0 | AU59: ='اعدادى 1'!AU27 -> 1 | AV59: ='اعدادى 1'!AV27 ->  | AW59: ='اعدادى 1'!AW27 ->  | AX59: ='اعدادى 1'!AX27 ->  | AY59: ='اعدادى 1'!AY27 ->  | AZ59: ='اعدادى 1'!AZ27 ->  | BA59: ='اعدادى 1'!BA27 ->  | BB59: ='اعدادى 1'!BB27 -> 0 | BC59: ='اعدادى 1'!BC27 -> 0 | BD59: ='اعدادى 1'!BD27 -> 0 | BE59: ='اعدادى 1'!BE27 -> 0 | BF59: ='اعدادى 1'!BF27 -> 0 | BG59: ='اعدادى 1'!BG27 -> 0 | BH59: ='اعدادى 1'!BH27 -> 0 | BI59: ='اعدادى 1'!BI27 -> 0 | BJ59: ='اعدادى 1'!BJ27 -> 0.04 | BK59: ='اعدادى 1'!BK27 -> 309.53 | BL59: ='اعدادى 1'!BL27 -> 2250.35 | BM59: ='اعدادى 1'!BM27 -> السعيد احمد السعيد | BN59: ='اعدادى 1'!BN27 -> خامسه | BO59: ='اعدادى 1'!BQ27 -> 0 | BP59: ='اعدادى 1'!BR27 -> 0 | BR59: ='اعدادى 1'!BT27 -> 0 | BS59: 475 | BT59: 363.32
B60: =BM60 -> علاء عبدالكريم محمود | C60: =ثانوى1!C10 -> 643.19 | D60: 41 | F60: =ثانوى1!F10 -> 2003.34 | G60: =ثانوى1!G10 -> 60.43 | H60: =ثانوى1!H10 -> 64.32 | I60: =ثانوى1!I10 -> 160.8 | J60: =ثانوى1!J10 -> 160.8 | K60: =ثانوى1!K10 -> 321.6 | L60: =ثانوى1!L10 -> 1286.36 | M60: =ثانوى1!M10 -> 0 | N60: =ثانوى1!N10 -> 300 | O60: =ثانوى1!O10 -> 150 | P60: =ثانوى1!P10 -> 350 | Q60: =ثانوى1!Q10 -> 375 | R60: =ثانوى1!R10 -> 0 | S60: =ثانوى1!S10 -> 180 | T60: =ثانوى1!T10 -> 140 | U60: =ثانوى1!U10 -> 155 | V60: =ثانوى1!V10 ->  | W60: =ثانوى1!W10 -> 6 | X60: =ثانوى1!X10 -> 4 | Y60: =ثانوى1!Y10 -> 0 | Z60: =ثانوى1!AA10 -> 0 | AA60: =ثانوى1!AA10 -> 0 | AB60: =ثانوى1!AB10 -> 0 | AD60: =ثانوى1!AD10 -> 0 | AE60: =ثانوى1!AE10 -> 0 | AF60: =ثانوى1!AF10 -> 0 | AG60: =ثانوى1!AG10 -> 0 | AH60: =ثانوى1!AH10 -> 10 | AI60: =ثانوى1!AI10 -> 5977.65 | AJ60: =ثانوى1!AJ10 -> 0 | AK60: =ثانوى1!AK10 -> 537.09 | AL60: =ثانوى1!AL10 -> 0 | AM60: =ثانوى1!AM10 -> 59.68 | AN60: =ثانوى1!AN10 -> 59.68 | AO60: =ثانوى1!AO10 -> 9.5 | AP60: =ثانوى1!AP10 -> 3.1 | AQ60: =ثانوى1!AQ10 -> 0 | AR60: =ثانوى1!AR10 -> 178 | AS60: =ثانوى1!AS10 -> 34.95 | AT60: =ثانوى1!AT10 -> 0 | AU60: =ثانوى1!AU10 -> 2.5 | AV60: =ثانوى1!AV10 -> 4.5 | AW60: =ثانوى1!AW10 -> 2 | AX60: =ثانوى1!AX10 -> 0.25 | AY60: =ثانوى1!AY10 -> 3 | AZ60: =ثانوى1!AZ10 -> 0.5 | BA60: =ثانوى1!BA10 -> 140.23 | BB60: =ثانوى1!BB10 -> 0 | BC60: =ثانوى1!BC10 -> 0 | BD60: =ثانوى1!BD10 -> 0 | BE60: =ثانوى1!BE10 -> 0 | BF60: =ثانوى1!BF10 -> 0 | BG60: =ثانوى1!BG10 -> 0 | BH60: =ثانوى1!BH10 -> 0 | BI60: =ثانوى1!BI10 -> 0 | BJ60: =ثانوى1!BJ10 -> 0.02 | BK60: =ثانوى1!BK10 -> 1035 | BL60: =ثانوى1!BL10 -> 4942.65 | BM60: =ثانوى1!BM10 -> علاء عبدالكريم محمود | BN60: =ثانوى1!BN10 -> كبير ا | BO60: =ثانوى1!BQ10 -> مدرس | BP60: =ثانوى1!BR10 -> 0 | BQ60: =ثانوى1!BS10 -> 875 | BR60: =ثانوى1!BT10 -> 0 | BS60: 875
B61: =BM61 -> أرزاق طلعت أحمد عبد الله | C61: =ثانوى1!C11 -> 657.44 | D61: 42 | F61: =ثانوى1!F11 -> 2036.89 | G61: =ثانوى1!G11 -> 61.78 | H61: =ثانوى1!H11 -> 65.74 | I61: =ثانوى1!I11 -> 164.36 | J61: =ثانوى1!J11 -> 164.36 | K61: =ثانوى1!K11 -> 328.72 | L61: =ثانوى1!L11 -> 1314.88 | M61: =ثانوى1!M11 -> 0 | N61: =ثانوى1!N11 -> 300 | O61: =ثانوى1!O11 -> 150 | P61: =ثانوى1!P11 -> 350 | Q61: =ثانوى1!Q11 -> 375 | R61: =ثانوى1!R11 -> 0 | S61: =ثانوى1!S11 -> 180 | T61: =ثانوى1!T11 -> 140 | U61: =ثانوى1!U11 -> 155 | V61: =ثانوى1!V11 ->  | W61: =ثانوى1!W11 -> 2 | X61: =ثانوى1!X11 -> 4 | Y61: =ثانوى1!Y11 -> 0 | Z61: =ثانوى1!AA11 -> 0 | AA61: =ثانوى1!AA11 -> 0 | AB61: =ثانوى1!AB11 -> 0 | AD61: =ثانوى1!AD11 -> 0 | AE61: =ثانوى1!AE11 -> 0 | AF61: =ثانوى1!AF11 -> 0 | AG61: =ثانوى1!AG11 -> 0 | AH61: =ثانوى1!AH11 -> 10 | AI61: =ثانوى1!AI11 -> 5802.73 | AJ61: =ثانوى1!AJ11 -> 0 | AK61: =ثانوى1!AK11 -> 521.35 | AL61: =ثانوى1!AL11 -> 0 | AM61: =ثانوى1!AM11 -> 57.93 | AN61: =ثانوى1!AN11 -> 57.93 | AO61: =ثانوى1!AO11 -> 9.5 | AP61: =ثانوى1!AP11 -> 3.1 | AQ61: =ثانوى1!AQ11 -> 0 | AR61: =ثانوى1!AR11 -> 181 | AS61: =ثانوى1!AS11 -> 35.4 | AT61: =ثانوى1!AT11 -> 0 | AU61: =ثانوى1!AU11 -> 2.5 | AV61: =ثانوى1!AV11 -> 4.5 | AW61: =ثانوى1!AW11 -> 2 | AX61: =ثانوى1!AX11 -> 0.25 | AY61: =ثانوى1!AY11 -> 3 | AZ61: =ثانوى1!AZ11 -> 0.5 | BA61: =ثانوى1!BA11 -> 142.58 | BB61: =ثانوى1!BB11 -> 0 | BC61: =ثانوى1!BC11 -> 0 | BD61: =ثانوى1!BD11 -> 0 | BE61: =ثانوى1!BE11 -> 0 | BF61: =ثانوى1!BF11 -> 0 | BG61: =ثانوى1!BG11 -> 0 | BH61: =ثانوى1!BH11 -> 0 | BI61: =ثانوى1!BI11 -> 0 | BJ61: =ثانوى1!BJ11 -> 0.04 | BK61: =ثانوى1!BK11 -> 1021.58 | BL61: =ثانوى1!BL11 -> 4781.15 | BM61: =ثانوى1!BM11 -> أرزاق طلعت أحمد عبد الله | BN61: =ثانوى1!BN11 -> كبير ا | BO61: =ثانوى1!BQ11 -> مدرس | BP61: =ثانوى1!BR11 -> 0 | BQ61: =ثانوى1!BS11 -> 875 | BR61: =ثانوى1!BT11 -> 0 | BS61: 875
B62: محمد سعد السعداوى | C62: =ثانوى1!C12 -> 576.69 | D62: 43 | F62: =ثانوى1!F12 -> 1821.07 | G62: =ثانوى1!G12 -> 53.6 | H62: =ثانوى1!H12 -> 57.67 | I62: =ثانوى1!I12 -> 144.17 | J62: =ثانوى1!J12 -> 144.17 | K62: =ثانوى1!K12 -> 288.35 | L62: =ثانوى1!L12 -> 1153.37 | M62: =ثانوى1!M12 -> 0 | N62: =ثانوى1!N12 -> 300 | O62: =ثانوى1!O12 -> 150 | P62: =ثانوى1!P12 -> 325 | Q62: =ثانوى1!Q12 -> 375 | R62: =ثانوى1!R12 -> 0 | S62: =ثانوى1!S12 -> 180 | T62: =ثانوى1!T12 -> 140 | U62: =ثانوى1!U12 -> 155 | V62: =ثانوى1!V12 ->  | W62: =ثانوى1!W12 -> 6 | X62: =ثانوى1!X12 -> 4 | Y62: =ثانوى1!Y12 -> 0 | Z62: =ثانوى1!AA12 -> 0 | AA62: =ثانوى1!AA12 -> 0 | AB62: =ثانوى1!AB12 -> 0 | AD62: =ثانوى1!AD12 -> 0 | AE62: =ثانوى1!AE12 -> 0 | AF62: =ثانوى1!AF12 -> 0 | AG62: =ثانوى1!AG12 -> 0 | AH62: =ثانوى1!AH12 -> 10 | AI62: =ثانوى1!AI12 -> 5457.4 | AJ62: =ثانوى1!AJ12 -> 0 | AK62: =ثانوى1!AK12 -> 490.27 | AL62: =ثانوى1!AL12 -> 0 | AM62: =ثانوى1!AM12 -> 54.47 | AN62: =ثانوى1!AN12 -> 54.47 | AO62: =ثانوى1!AO12 -> 9.5 | AP62: =ثانوى1!AP12 -> 3.1 | AQ62: =ثانوى1!AQ12 -> 0 | AR62: =ثانوى1!AR12 -> 156 | AS62: =ثانوى1!AS12 -> 32.5 | AT62: =ثانوى1!AT12 -> 0 | AU62: =ثانوى1!AU12 -> 2 | AV62: =ثانوى1!AV12 -> 4.5 | AW62: =ثانوى1!AW12 -> 2 | AX62: =ثانوى1!AX12 -> 0.25 | AY62: =ثانوى1!AY12 -> 3 | AZ62: =ثانوى1!AZ12 -> 0.5 | BA62: =ثانوى1!BA12 -> 127.47 | BB62: =ثانوى1!BB12 -> 0 | BC62: =ثانوى1!BC12 -> 0 | BD62: =ثانوى1!BD12 -> 0 | BE62: =ثانوى1!BE12 -> 0 | BF62: =ثانوى1!BF12 -> 0 | BG62: =ثانوى1!BG12 -> 0 | BH62: =ثانوى1!BH12 -> 50 | BI62: =ثانوى1!BI12 -> 0 | BJ62: =ثانوى1!BJ12 -> 0.02 | BK62: =ثانوى1!BK12 -> 990.05 | BL62: =ثانوى1!BL12 -> 4467.35 | BM62: =ثانوى1!BM12 -> محمد سعد السعداوى | BN62: =ثانوى1!BN12 -> كبير ا | BO62: =ثانوى1!BQ12 -> مدرس | BP62: =ثانوى1!BR12 -> 0 | BQ62: =ثانوى1!BS12 -> 850 | BR62: =ثانوى1!BT12 -> 0 | BS62: 850
B63: احمد فتحى امام | C63: =ثانوى1!C13 -> 462.97 | D63: 44 | F63: =ثانوى1!F13 -> 1563.14 | G63: =ثانوى1!G13 -> 43.01 | H63: =ثانوى1!H13 -> 46.3 | I63: =ثانوى1!I13 -> 115.74 | J63: =ثانوى1!J13 -> 115.74 | K63: =ثانوى1!K13 -> 231.49 | L63: =ثانوى1!L13 -> 810.19 | M63: =ثانوى1!M13 -> 0 | N63: =ثانوى1!N13 -> 325 | O63: =ثانوى1!O13 -> 150 | P63: =ثانوى1!P13 -> 300 | Q63: =ثانوى1!Q13 -> 350 | R63: =ثانوى1!R13 -> 0 | S63: =ثانوى1!S13 -> 165 | T63: =ثانوى1!T13 -> 145 | U63: =ثانوى1!U13 -> 140 | V63: =ثانوى1!V13 ->  | W63: =ثانوى1!W13 -> 6 | X63: =ثانوى1!X13 -> 4 | Y63: =ثانوى1!Y13 -> 0 | Z63: =ثانوى1!AA13 -> 0 | AA63: =ثانوى1!AA13 -> 0 | AB63: =ثانوى1!AB13 -> 0 | AD63: =ثانوى1!AD13 -> 0 | AE63: =ثانوى1!AE13 -> 0 | AF63: =ثانوى1!AF13 -> 0 | AG63: =ثانوى1!AG13 -> 0 | AH63: =ثانوى1!AH13 -> 10 | AI63: =ثانوى1!AI13 -> 4520.61 | AJ63: =ثانوى1!AJ13 -> 0 | AK63: =ثانوى1!AK13 -> 405.95 | AL63: =ثانوى1!AL13 -> 0 | AM63: =ثانوى1!AM13 -> 45.11 | AN63: =ثانوى1!AN13 -> 45.11 | AO63: =ثانوى1!AO13 -> 9 | AP63: =ثانوى1!AP13 -> 2.8 | AQ63: =ثانوى1!AQ13 -> 0 | AR63: =ثانوى1!AR13 -> 90.2 | AS63: =ثانوى1!AS13 -> 27.5 | AT63: =ثانوى1!AT13 -> 0 | AU63: =ثانوى1!AU13 -> 2 | AV63: =ثانوى1!AV13 -> 4.5 | AW63: =ثانوى1!AW13 -> 2 | AX63: =ثانوى1!AX13 -> 0.25 | AY63: =ثانوى1!AY13 -> 3 | AZ63: =ثانوى1!AZ13 -> 0.5 | BA63: =ثانوى1!BA13 -> 109.42 | BB63: =ثانوى1!BB13 -> 0 | BC63: =ثانوى1!BC13 -> 0 | BD63: =ثانوى1!BD13 -> 0 | BE63: =ثانوى1!BE13 -> 0 | BF63: =ثانوى1!BF13 -> 0 | BG63: =ثانوى1!BG13 -> 0 | BH63: =ثانوى1!BH13 -> 0 | BI63: =ثانوى1!BI13 -> 0 | BJ63: =ثانوى1!BJ13 -> 0.02 | BK63: =ثانوى1!BK13 -> 747.36 | BL63: =ثانوى1!BL13 -> 3773.25 | BM63: =ثانوى1!BM13 -> احمد فتحى امام | BN63: =ثانوى1!BN13 -> كبير | BO63: =ثانوى1!BQ13 -> مدرس | BP63: =ثانوى1!BR13 -> 0 | BQ63: =ثانوى1!BS13 -> 800 | BR63: =ثانوى1!BT13 -> 0 | BS63: 800
B64: ابراهيم العرابي زرق احمد | C64: =ثانوى1!C14 -> 654.98 | D64: 45 | F64: =ثانوى1!F14 -> 2036.92 | G64: =ثانوى1!G14 -> 61.59 | H64: =ثانوى1!H14 -> 65.5 | I64: =ثانوى1!I14 -> 163.75 | J64: =ثانوى1!J14 -> 163.75 | K64: =ثانوى1!K14 -> 327.49 | L64: =ثانوى1!L14 -> 1146.21 | M64: =ثانوى1!M14 -> 0 | N64: =ثانوى1!N14 -> 325 | O64: =ثانوى1!O14 -> 150 | P64: =ثانوى1!P14 -> 325 | Q64: =ثانوى1!Q14 -> 350 | R64: =ثانوى1!R14 -> 0 | S64: =ثانوى1!S14 -> 165 | T64: =ثانوى1!T14 -> 145 | U64: =ثانوى1!U14 -> 140 | V64: =ثانوى1!V14 ->  | W64: =ثانوى1!W14 -> 6 | X64: =ثانوى1!X14 -> 4 | Y64: =ثانوى1!Y14 -> 0 | Z64: =ثانوى1!AA14 -> 0 | AA64: =ثانوى1!AA14 -> 0 | AB64: =ثانوى1!AB14 -> 0 | AD64: =ثانوى1!AD14 -> 0 | AE64: =ثانوى1!AE14 -> 0 | AF64: =ثانوى1!AF14 -> 0 | AG64: =ثانوى1!AG14 -> 0 | AH64: =ثانوى1!AH14 -> 10 | AI64: =ثانوى1!AI14 -> 5585.21 | AJ64: =ثانوى1!AJ14 -> 0 | AK64: =ثانوى1!AK14 -> 501.77 | AL64: =ثانوى1!AL14 -> 0 | AM64: =ثانوى1!AM14 -> 55.75 | AN64: =ثانوى1!AN14 -> 55.75 | AO64: =ثانوى1!AO14 -> 9 | AP64: =ثانوى1!AP14 -> 2.8 | AQ64: =ثانوى1!AQ14 -> 0 | AR64: =ثانوى1!AR14 -> 170 | AS64: =ثانوى1!AS14 -> 33.75 | AT64: =ثانوى1!AT14 -> 0 | AU64: =ثانوى1!AU14 -> 2.5 | AV64: =ثانوى1!AV14 -> 4.5 | AW64: =ثانوى1!AW14 -> 2 | AX64: =ثانوى1!AX14 -> 0.25 | AY64: =ثانوى1!AY14 -> 3 | AZ64: =ثانوى1!AZ14 -> 0.5 | BA64: =ثانوى1!BA14 -> 142.58 | BB64: =ثانوى1!BB14 -> 0 | BC64: =ثانوى1!BC14 -> 0 | BD64: =ثانوى1!BD14 -> 0 | BE64: =ثانوى1!BE14 -> 0 | BF64: =ثانوى1!BF14 -> 0 | BG64: =ثانوى1!BG14 -> 0 | BH64: =ثانوى1!BH14 -> 0 | BI64: =ثانوى1!BI14 -> 0 | BJ64: =ثانوى1!BJ14 -> 0.01 | BK64: =ثانوى1!BK14 -> 984.16 | BL64: =ثانوى1!BL14 -> 4601.05 | BM64: =ثانوى1!BM14 -> ابراهيم العرابي زرق احمد | BN64: =ثانوى1!BN14 -> كبير | BO64: =ثانوى1!BQ14 -> مدرس | BP64: =ثانوى1!BR14 -> 0 | BQ64: =ثانوى1!BS14 -> 825 | BR64: =ثانوى1!BT14 -> 0 | BS64: 825
B65: محمد العرابى رزق | C65: =ثانوى1!C15 -> 545.65 | D65: 46 | F65: =ثانوى1!F15 -> 1768.31 | G65: =ثانوى1!G15 -> 51.39 | H65: =ثانوى1!H15 -> 54.57 | I65: =ثانوى1!I15 -> 136.41 | J65: =ثانوى1!J15 -> 136.41 | K65: =ثانوى1!K15 -> 272.83 | L65: =ثانوى1!L15 -> 954.87 | M65: =ثانوى1!M15 -> 0 | N65: =ثانوى1!N15 -> 325 | O65: =ثانوى1!O15 -> 150 | P65: =ثانوى1!P15 -> 325 | Q65: =ثانوى1!Q15 -> 350 | R65: =ثانوى1!R15 -> 0 | S65: =ثانوى1!S15 -> 165 | T65: =ثانوى1!T15 -> 145 | U65: =ثانوى1!U15 -> 140 | V65: =ثانوى1!V15 ->  | W65: =ثانوى1!W15 -> 6 | X65: =ثانوى1!X15 -> 4 | Y65: =ثانوى1!Y15 -> 0 | Z65: =ثانوى1!AA15 -> 0 | AA65: =ثانوى1!AA15 -> 0 | AB65: =ثانوى1!AB15 -> 0 | AD65: =ثانوى1!AD15 -> 0 | AE65: =ثانوى1!AE15 -> 0 | AF65: =ثانوى1!AF15 -> 0 | AG65: =ثانوى1!AG15 -> 0 | AH65: =ثانوى1!AH15 -> 10 | AI65: =ثانوى1!AI15 -> 4994.79 | AJ65: =ثانوى1!AJ15 -> 0 | AK65: =ثانوى1!AK15 -> 448.63 | AL65: =ثانوى1!AL15 -> 0 | AM65: =ثانوى1!AM15 -> 49.85 | AN65: =ثانوى1!AN15 -> 49.85 | AO65: =ثانوى1!AO15 -> 9 | AP65: =ثانوى1!AP15 -> 2.8 | AQ65: =ثانوى1!AQ15 -> 0 | AR65: =ثانوى1!AR15 -> 139 | AS65: =ثانوى1!AS15 -> 30.55 | AT65: =ثانوى1!AT15 -> 0 | AU65: =ثانوى1!AU15 -> 2 | AV65: =ثانوى1!AV15 -> 4.5 | AW65: =ثانوى1!AW15 -> 2 | AX65: =ثانوى1!AX15 -> 0.25 | AY65: =ثانوى1!AY15 -> 3 | AZ65: =ثانوى1!AZ15 -> 0.5 | BA65: =ثانوى1!BA15 -> 123.78 | BB65: =ثانوى1!BB15 -> 0 | BC65: =ثانوى1!BC15 -> 0 | BD65: =ثانوى1!BD15 -> 0 | BE65: =ثانوى1!BE15 -> 0 | BF65: =ثانوى1!BF15 -> 0 | BG65: =ثانوى1!BG15 -> 0 | BH65: =ثانوى1!BH15 -> 50 | BI65: =ثانوى1!BI15 -> 0 | BJ65: =ثانوى1!BJ15 -> 0.03 | BK65: =ثانوى1!BK15 -> 915.74 | BL65: =ثانوى1!BL15 -> 4079.05 | BM65: =ثانوى1!BM15 -> محمد العرابى رزق | BN65: =ثانوى1!BN15 -> كبير | BO65: =ثانوى1!BQ15 -> مدرس | BP65: =ثانوى1!BR15 -> 0 | BQ65: =ثانوى1!BS15 -> 825 | BR65: =ثانوى1!BT15 -> 0 | BS65: 825
B66: حامد عبدالرحمن عاصى | C66: =ثانوى1!C16 -> 526.62 | D66: 47 | F66: =ثانوى1!F16 -> 1712.32 | G66: =ثانوى1!G16 -> 49.48 | H66: =ثانوى1!H16 -> 52.66 | I66: =ثانوى1!I16 -> 131.66 | J66: =ثانوى1!J16 -> 131.66 | K66: =ثانوى1!K16 -> 263.31 | L66: =ثانوى1!L16 -> 921.58 | M66: =ثانوى1!M16 -> 0 | N66: =ثانوى1!N16 -> 325 | O66: =ثانوى1!O16 -> 150 | P66: =ثانوى1!P16 -> 300 | Q66: =ثانوى1!Q16 -> 350 | R66: =ثانوى1!R16 -> 0 | S66: =ثانوى1!S16 -> 165 | T66: =ثانوى1!T16 -> 145 | U66: =ثانوى1!U16 -> 140 | V66: =ثانوى1!V16 ->  | W66: =ثانوى1!W16 -> 6 | X66: =ثانوى1!X16 -> 4 | Y66: =ثانوى1!Y16 -> 0 | Z66: =ثانوى1!AA16 -> 0 | AA66: =ثانوى1!AA16 -> 0 | AB66: =ثانوى1!AB16 -> 0 | AD66: =ثانوى1!AD16 -> 0 | AE66: =ثانوى1!AE16 -> 0 | AF66: =ثانوى1!AF16 -> 0 | AG66: =ثانوى1!AG16 -> 0 | AH66: =ثانوى1!AH16 -> 10 | AI66: =ثانوى1!AI16 -> 4857.67 | AJ66: =ثانوى1!AJ16 -> 0 | AK66: =ثانوى1!AK16 -> 436.29 | AL66: =ثانوى1!AL16 -> 0 | AM66: =ثانوى1!AM16 -> 48.48 | AN66: =ثانوى1!AN16 -> 48.48 | AO66: =ثانوى1!AO16 -> 7.9 | AP66: =ثانوى1!AP16 -> 2.8 | AQ66: =ثانوى1!AQ16 -> 0 | AR66: =ثانوى1!AR16 -> 129 | AS66: =ثانوى1!AS16 -> 29.1 | AT66: =ثانوى1!AT16 -> 0 | AU66: =ثانوى1!AU16 -> 2 | AV66: =ثانوى1!AV16 -> 4.5 | AW66: =ثانوى1!AW16 -> 2 | AX66: =ثانوى1!AX16 -> 0.25 | AY66: =ثانوى1!AY16 -> 3 | AZ66: =ثانوى1!AZ16 -> 0.5 | BA66: =ثانوى1!BA16 -> 119.86 | BB66: =ثانوى1!BB16 -> 0 | BC66: =ثانوى1!BC16 -> 0 | BD66: =ثانوى1!BD16 -> 0 | BE66: =ثانوى1!BE16 -> 0 | BF66: =ثانوى1!BF16 -> 0 | BG66: =ثانوى1!BG16 -> 0 | BH66: =ثانوى1!BH16 -> 0 | BI66: =ثانوى1!BI16 -> 0 | BJ66: =ثانوى1!BJ16 -> 0.01 | BK66: =ثانوى1!BK16 -> 834.17 | BL66: =ثانوى1!BL16 -> 4023.5 | BM66: =ثانوى1!BM16 -> حامد عبدالرحمن عاصى | BN66: =ثانوى1!BN16 -> كبير | BO66: =ثانوى1!BQ16 -> مدرس | BP66: =ثانوى1!BR16 -> 0 | BQ66: =ثانوى1!BS16 -> 800 | BR66: =ثانوى1!BT16 -> 0 | BS66: 800
B67: ممدوح احمد الغريب | C67: =ثانوى1!C17 -> 592.2 | D67: 48 | F67: =ثانوى1!F17 -> 1860.15 | G67: =ثانوى1!G17 -> 55.65 | H67: =ثانوى1!H17 -> 59.22 | I67: =ثانوى1!I17 -> 148.05 | J67: =ثانوى1!J17 -> 296.1 | K67: =ثانوى1!K17 -> 296.1 | L67: =ثانوى1!L17 -> 740.25 | M67: =ثانوى1!M17 -> 0 | N67: =ثانوى1!N17 -> 375 | O67: =ثانوى1!O17 -> 150 | P67: =ثانوى1!P17 -> 250 | Q67: =ثانوى1!Q17 -> 275 | R67: =ثانوى1!R17 -> 0 | S67: =ثانوى1!S17 -> 100 | T67: =ثانوى1!T17 -> 165 | U67: =ثانوى1!U17 -> 85 | V67: =ثانوى1!V17 ->  | W67: =ثانوى1!W17 -> 6 | X67: =ثانوى1!X17 -> 4 | Y67: =ثانوى1!Y17 -> 0 | Z67: =ثانوى1!AA17 -> 0 | AA67: =ثانوى1!AA17 -> 0 | AB67: =ثانوى1!AB17 -> 0 | AD67: =ثانوى1!AD17 -> 0 | AE67: =ثانوى1!AE17 -> 0 | AF67: =ثانوى1!AF17 -> 0 | AG67: =ثانوى1!AG17 -> 0 | AH67: =ثانوى1!AH17 -> 10 | AI67: =ثانوى1!AI17 -> 4875.52 | AJ67: =ثانوى1!AJ17 -> 0 | AK67: =ثانوى1!AK17 -> 437.9 | AL67: =ثانوى1!AL17 -> 0 | AM67: =ثانوى1!AM17 -> 48.66 | AN67: =ثانوى1!AN17 -> 48.66 | AO67: =ثانوى1!AO17 -> 7 | AP67: =ثانوى1!AP17 -> 1.7 | AQ67: =ثانوى1!AQ17 -> 0 | AR67: =ثانوى1!AR17 -> 132 | AS67: =ثانوى1!AS17 -> 29.1 | AT67: =ثانوى1!AT17 -> 0 | AU67: =ثانوى1!AU17 -> 2 | AV67: =ثانوى1!AV17 -> 4.5 | AW67: =ثانوى1!AW17 -> 2 | AX67: =ثانوى1!AX17 -> 0.25 | AY67: =ثانوى1!AY17 -> 3 | AZ67: =ثانوى1!AZ17 -> 0.5 | BA67: =ثانوى1!BA17 -> 130.21 | BB67: =ثانوى1!BB17 -> 0 | BC67: =ثانوى1!BC17 -> 0 | BD67: =ثانوى1!BD17 -> 0 | BE67: =ثانوى1!BE17 -> 0 | BF67: =ثانوى1!BF17 -> 0 | BG67: =ثانوى1!BG17 -> 0 | BH67: =ثانوى1!BH17 -> 0 | BI67: =ثانوى1!BI17 -> 0 | BJ67: =ثانوى1!BJ17 -> 0.04 | BK67: =ثانوى1!BK17 -> 847.52 | BL67: =ثانوى1!BL17 -> 4028 | BM67: =ثانوى1!BM17 -> ممدوح احمد الغريب | BN67: =ثانوى1!BN17 -> ثانيه | BO67: =ثانوى1!BQ17 -> مدرس | BP67: =ثانوى1!BR17 -> 0 | BQ67: =ثانوى1!BS17 -> 675 | BR67: =ثانوى1!BT17 -> 0 | BS67: 675
B68: نبيله محمود ابراهيم | C68: =ثانوى1!C19 -> 253 | D68: 49 | F68: =ثانوى1!F19 -> 1081.91 | G68: =ثانوى1!G19 -> 24.42 | H68: =ثانوى1!H19 -> 25.3 | I68: =ثانوى1!I19 -> 63.25 | J68: =ثانوى1!J19 -> 126.5 | K68: =ثانوى1!K19 -> 126.5 | L68: =ثانوى1!L19 -> 316.25 | M68: =ثانوى1!M19 -> 0 | N68: =ثانوى1!N19 -> 375 | O68: =ثانوى1!O19 -> 150 | P68: =ثانوى1!P19 -> 200 | Q68: =ثانوى1!Q19 -> 275 | R68: =ثانوى1!R19 -> 137 | S68: =ثانوى1!S19 -> 100 | T68: =ثانوى1!T19 -> 165 | U68: =ثانوى1!U19 -> 85 | V68: =ثانوى1!V19 ->  | W68: =ثانوى1!W19 -> 2 | X68: =ثانوى1!X19 -> 4 | Y68: =ثانوى1!Y19 -> 0 | Z68: =ثانوى1!AA18 -> 0 | AA68: =ثانوى1!AA19 -> 0 | AB68: =ثانوى1!AB19 -> 0 | AD68: =ثانوى1!AD19 -> 0 | AE68: =ثانوى1!AE19 -> 0 | AF68: =ثانوى1!AF19 -> 0 | AG68: =ثانوى1!AG19 -> 0 | AH68: =ثانوى1!AH19 -> 10 | AI68: =ثانوى1!AI19 -> 3267.13 | AJ68: =ثانوى1!AJ19 -> 0 | AK68: =ثانوى1!AK19 -> 293.14 | AL68: =ثانوى1!AL19 -> 0 | AM68: =ثانوى1!AM19 -> 32.57 | AN68: =ثانوى1!AN19 -> 32.57 | AO68: =ثانوى1!AO19 -> 7 | AP68: =ثانوى1!AP19 -> 1.7 | AQ68: =ثانوى1!AQ19 -> 0 | AR68: =ثانوى1!AR19 -> 25.7 | AS68: =ثانوى1!AS19 -> 20 | AT68: =ثانوى1!AT19 -> 0 | AU68: =ثانوى1!AU19 -> 1.5 | AV68: =ثانوى1!AV19 -> 4.5 | AW68: =ثانوى1!AW19 -> 2 | AX68: =ثانوى1!AX19 -> 0.25 | AY68: =ثانوى1!AY19 -> 3 | AZ68: =ثانوى1!AZ19 -> 0.5 | BA68: =ثانوى1!BA19 -> 75.73 | BB68: =ثانوى1!BB19 -> 0 | BC68: =ثانوى1!BC19 -> 0 | BD68: =ثانوى1!BD19 -> 0 | BE68: =ثانوى1!BE19 -> 0 | BF68: =ثانوى1!BF19 -> 0 | BG68: =ثانوى1!BG19 -> 0 | BH68: =ثانوى1!BH19 -> 0 | BI68: =ثانوى1!BI19 -> 0 | BJ68: =ثانوى1!BJ19 -> 0.02 | BK68: =ثانوى1!BK19 -> 500.18 | BL68: =ثانوى1!BL19 -> 2766.95 | BM68: =ثانوى1!BM19 -> نبيله محمود ابراهيم | BN68: =ثانوى1!BN19 -> ثانيه | BO68: =ثانوى1!BQ19 -> مدرس | BP68: =ثانوى1!BR19 -> 0 | BQ68: =ثانوى1!BS19 -> 625 | BR68: =ثانوى1!BT19 -> 0 | BS68: 625
B69: محمود مصطفى محمود | C69: =ثانوى1!C20 -> 264 | D69: 50 | F69: =ثانوى1!F20 -> 1141.53 | G69: =ثانوى1!G20 -> 24.92 | H69: =ثانوى1!H20 -> 25.8 | I69: =ثانوى1!I20 -> 66 | J69: =ثانوى1!J20 -> 132 | K69: =ثانوى1!K20 -> 132 | L69: =ثانوى1!L20 -> 330 | M69: =ثانوى1!M20 -> 0 | N69: =ثانوى1!N20 -> 375 | O69: =ثانوى1!O20 -> 150 | P69: =ثانوى1!P20 -> 250 | Q69: =ثانوى1!Q20 -> 275 | R69: =ثانوى1!R20 -> 338 | S69: =ثانوى1!S20 -> 100 | T69: =ثانوى1!T20 -> 165 | U69: =ثانوى1!U20 -> 85 | V69: =ثانوى1!V20 ->  | W69: =ثانوى1!W20 -> 6 | X69: =ثانوى1!X20 -> 4 | Y69: =ثانوى1!Y20 -> 0 | Z69: =ثانوى1!AA19 -> 0 | AA69: =ثانوى1!AA20 -> 0 | AB69: =ثانوى1!AB20 -> 0 | AD69: =ثانوى1!AD20 -> 0 | AE69: =ثانوى1!AE20 -> 0 | AF69: =ثانوى1!AF20 -> 0 | AG69: =ثانوى1!AG20 -> 0 | AH69: =ثانوى1!AH20 -> 10 | AI69: =ثانوى1!AI20 -> 3610.25 | AJ69: =ثانوى1!AJ20 -> 0 | AK69: =ثانوى1!AK20 -> 324.02 | AL69: =ثانوى1!AL20 -> 0 | AM69: =ثانوى1!AM20 -> 36 | AN69: =ثانوى1!AN20 -> 36 | AO69: =ثانوى1!AO20 -> 7 | AP69: =ثانوى1!AP20 -> 1.7 | AQ69: =ثانوى1!AQ20 -> 0 | AR69: =ثانوى1!AR20 -> 35.4 | AS69: =ثانوى1!AS20 -> 22.35 | AT69: =ثانوى1!AT20 -> 0 | AU69: =ثانوى1!AU20 -> 1.5 | AV69: =ثانوى1!AV20 -> 4.5 | AW69: =ثانوى1!AW20 -> 2 | AX69: =ثانوى1!AX20 -> 0.25 | AY69: =ثانوى1!AY20 -> 3 | AZ69: =ثانوى1!AZ20 -> 0.5 | BA69: =ثانوى1!BA20 -> 79.91 | BB69: =ثانوى1!BB20 -> 0 | BC69: =ثانوى1!BC20 -> 0 | BD69: =ثانوى1!BD20 -> 0 | BE69: =ثانوى1!BE20 -> 0 | BF69: =ثانوى1!BF20 -> 0 | BG69: =ثانوى1!BG20 -> 0 | BH69: =ثانوى1!BH20 -> 0 | BI69: =ثانوى1!BI20 -> 0 | BJ69: =ثانوى1!BJ20 -> 0.02 | BK69: =ثانوى1!BK20 -> 554.15 | BL69: =ثانوى1!BL20 -> 3056.1 | BM69: =ثانوى1!BM20 -> محمود مصطفى محمود | BN69: =ثانوى1!BN20 -> ثانيه | BO69: =ثانوى1!BQ20 -> مدرس | BP69: =ثانوى1!BR20 -> 0 | BQ69: =ثانوى1!BS20 -> 675 | BR69: =ثانوى1!BT20 -> 0 | BS69: 675
B70: لبنى عبدالرحيم يوسف العواد | C70: =ثانوى1!C21 -> 246 | D70: 51 | F70: =ثانوى1!F21 -> 1029.85 | G70: =ثانوى1!G21 -> 4.8 | H70: =ثانوى1!H21 -> 4.8 | I70: =ثانوى1!I21 -> 61.5 | J70: =ثانوى1!J21 -> 184.5 | K70: =ثانوى1!K21 -> 123 | L70: =ثانوى1!L21 -> 246 | M70: =ثانوى1!M21 -> 0 | N70: =ثانوى1!N21 -> 400 | O70: =ثانوى1!O21 -> 150 | P70: =ثانوى1!P21 -> 200 | Q70: =ثانوى1!Q21 -> 225 | R70: =ثانوى1!R21 -> 248 | S70: =ثانوى1!S21 -> 75 | T70: =ثانوى1!T21 -> 185 | U70: =ثانوى1!U21 -> 65 | V70: =ثانوى1!V21 ->  | W70: =ثانوى1!W21 -> 2 | X70: =ثانوى1!X21 -> 4 | Y70: =ثانوى1!Y21 -> 0 | Z70: =ثانوى1!AA20 -> 0 | AA70: =ثانوى1!AA21 -> 0 | AB70: =ثانوى1!AB21 -> 0 | AD70: =ثانوى1!AD21 -> 0 | AE70: =ثانوى1!AE21 -> 0 | AF70: =ثانوى1!AF21 -> 0 | AG70: =ثانوى1!AG21 -> 0 | AH70: =ثانوى1!AH21 -> 10 | AI70: =ثانوى1!AI21 -> 3218.45 | AJ70: =ثانوى1!AJ21 -> 0 | AK70: =ثانوى1!AK21 -> 288.76 | AL70: =ثانوى1!AL21 -> 0 | AM70: =ثانوى1!AM21 -> 32.08 | AN70: =ثانوى1!AN21 -> 32.08 | AO70: =ثانوى1!AO21 -> 6.5 | AP70: =ثانوى1!AP21 -> 1.3 | AQ70: =ثانوى1!AQ21 -> 0 | AR70: =ثانوى1!AR21 -> 24.4 | AS70: =ثانوى1!AS21 -> 19.8 | AT70: =ثانوى1!AT21 -> 0 | AU70: =ثانوى1!AU21 -> 1.5 | AV70: =ثانوى1!AV21 -> 4.5 | AW70: =ثانوى1!AW21 -> 2 | AX70: =ثانوى1!AX21 -> 0.25 | AY70: =ثانوى1!AY21 -> 3 | AZ70: =ثانوى1!AZ21 -> 0.5 | BA70: =ثانوى1!BA21 -> 72.09 | BB70: =ثانوى1!BB21 -> 0 | BC70: =ثانوى1!BC21 -> 0 | BD70: =ثانوى1!BD21 -> 0 | BE70: =ثانوى1!BE21 -> 0 | BF70: =ثانوى1!BF21 -> 0 | BG70: =ثانوى1!BG21 -> 0 | BH70: =ثانوى1!BH21 -> 0 | BI70: =ثانوى1!BI21 -> 0 | BJ70: =ثانوى1!BJ21 -> 0.04 | BK70: =ثانوى1!BK21 -> 488.8 | BL70: =ثانوى1!BL21 -> 2729.65 | BM70: =ثانوى1!BM21 -> لبنى عبدالرحيم يوسف العواد | BN70: =ثانوى1!BN21 -> ثالثه | BO70: =ثانوى1!BQ21 -> مدرس | BP70: =ثانوى1!BR21 -> 0 | BQ70: =ثانوى1!BS21 -> 575 | BR70: =ثانوى1!BT21 -> 0 | BS70: 575
B71: نجلاء جلال محمود | C71: =ثانوى1!C22 -> 246 | D71: 52 | F71: =ثانوى1!F22 -> 1029.85 | G71: =ثانوى1!G22 -> 4.8 | H71: =ثانوى1!H22 -> 4.8 | I71: =ثانوى1!I22 -> 61.5 | J71: =ثانوى1!J22 -> 184.5 | K71: =ثانوى1!K22 -> 123 | L71: =ثانوى1!L22 -> 246 | M71: =ثانوى1!M22 -> 0 | N71: =ثانوى1!N22 -> 400 | O71: =ثانوى1!O22 -> 150 | P71: =ثانوى1!P22 -> 200 | Q71: =ثانوى1!Q22 -> 225 | R71: =ثانوى1!R22 -> 248 | S71: =ثانوى1!S22 -> 75 | T71: =ثانوى1!T22 -> 185 | U71: =ثانوى1!U22 -> 65 | V71: =ثانوى1!V22 ->  | W71: =ثانوى1!W22 -> 2 | X71: =ثانوى1!X22 -> 4 | Y71: =ثانوى1!Y22 -> 0 | Z71: =ثانوى1!AA21 -> 0 | AA71: =ثانوى1!AA22 -> 0 | AB71: =ثانوى1!AB22 -> 0 | AD71: =ثانوى1!AD22 -> 0 | AE71: =ثانوى1!AE22 -> 0 | AF71: =ثانوى1!AF22 -> 0 | AG71: =ثانوى1!AG22 -> 0 | AH71: =ثانوى1!AH22 -> 10 | AI71: =ثانوى1!AI22 -> 3218.45 | AJ71: =ثانوى1!AJ22 -> 0 | AK71: =ثانوى1!AK22 -> 288.76 | AL71: =ثانوى1!AL22 -> 0 | AM71: =ثانوى1!AM22 -> 32.08 | AN71: =ثانوى1!AN22 -> 32.08 | AO71: =ثانوى1!AO22 -> 6.5 | AP71: =ثانوى1!AP22 -> 1.3 | AQ71: =ثانوى1!AQ22 -> 0 | AR71: =ثانوى1!AR22 -> 24.4 | AS71: =ثانوى1!AS22 -> 19.8 | AT71: =ثانوى1!AT22 -> 0 | AU71: =ثانوى1!AU22 -> 1.5 | AV71: =ثانوى1!AV22 -> 4.5 | AW71: =ثانوى1!AW22 -> 2 | AX71: =ثانوى1!AX22 -> 0.25 | AY71: =ثانوى1!AY22 -> 3 | AZ71: =ثانوى1!AZ22 -> 0.5 | BA71: =ثانوى1!BA22 -> 72.09 | BB71: =ثانوى1!BB22 -> 0 | BC71: =ثانوى1!BC22 -> 0 | BD71: =ثانوى1!BD22 -> 0 | BE71: =ثانوى1!BE22 -> 0 | BF71: =ثانوى1!BF22 -> 0 | BG71: =ثانوى1!BG22 -> 0 | BH71: =ثانوى1!BH22 -> 0 | BI71: =ثانوى1!BI22 -> 0 | BJ71: =ثانوى1!BJ22 -> 0.04 | BK71: =ثانوى1!BK22 -> 488.8 | BL71: =ثانوى1!BL22 -> 2729.65 | BM71: =ثانوى1!BM22 -> نجلاء جلال محمود | BN71: =ثانوى1!BN22 -> ثالثه | BO71: =ثانوى1!BQ22 -> مدرس | BP71: =ثانوى1!BR22 -> 0 | BQ71: =ثانوى1!BS22 -> 575 | BR71: =ثانوى1!BT22 -> 0 | BS71: 575
B72: =BM72 -> حمدى طه العيسوى | C72: =بنك!C10 -> 747.84 | D72: 53 | E72: =بنك!E10 -> 0 | F72: =بنك!F10 -> 2299.91 | G72: =بنك!G10 -> 70.24 | H72: =بنك!H10 -> 74.78 | I72: =بنك!I10 -> 186.96 | J72: =بنك!J10 -> 186.96 | K72: =بنك!K10 -> 373.92 | L72: =بنك!L10 -> 1495.68 | M72: =بنك!M10 -> 0 | N72: =بنك!N10 -> 300 | O72: =بنك!O10 -> 150 | P72: =بنك!P10 -> 350 | Q72: =بنك!Q10 -> 375 | R72: =بنك!R10 -> 0 | S72: =بنك!S10 -> 180 | T72: =بنك!T10 -> 140 | U72: =بنك!U10 -> 155 | V72: =بنك!V10 ->  | W72: =بنك!W10 -> 6 | X72: =بنك!X10 -> 4 | Y72: =بنك!Y10 -> 0 | Z72: =بنك!Z10 -> 150 | AA72: =بنك!AA10 -> 0 | AB72: =بنك!AB10 -> 0 | AC72: =بنك!AC10 -> 0 | AD72: =بنك!AD10 -> 0 | AE72: =بنك!AE10 -> 0 | AF72: =بنك!AF10 -> 0 | AG72: =بنك!AG10 -> 0 | AH72: =بنك!AH10 -> 10 | AI72: =بنك!AI10 -> 6508.45 | AJ72: =بنك!AJ10 -> 0 | AK72: =بنك!AK10 -> 584.86 | AL72: =بنك!AL10 -> 0 | AM72: =بنك!AM10 -> 64.98 | AN72: =بنك!AN10 -> 64.98 | AO72: =بنك!AO10 -> 9.5 | AP72: =بنك!AP10 -> 3.1 | AQ72: =بنك!AQ10 -> 0 | AR72: =بنك!AR10 -> 197 | AS72: =بنك!AS10 -> 41.15 | AT72: =بنك!AT10 -> 0 | AU72: =بنك!AU10 -> 2.5 | AV72: =بنك!AV10 -> 4.5 | AW72: =بنك!AW10 -> 2 | AX72: =بنك!AX10 -> 0.25 | AY72: =بنك!AY10 -> 3 | AZ72: =بنك!AZ10 -> 0.5 | BA72: =بنك!BA10 -> 160.99 | BB72: =بنك!BB10 -> 0 | BC72: =بنك!BC10 -> 0 | BD72: =بنك!BD10 -> 0 | BE72: =بنك!BE10 -> 0 | BF72: =بنك!BF10 -> 0 | BG72: =بنك!BG10 -> 0 | BH72: =بنك!BH10 -> 0 | BI72: =بنك!BI10 -> 0 | BJ72: =بنك!BJ10 -> 0.04 | BK72: =بنك!BK10 -> 1139.35 | BL72: =بنك!BL10 -> 5369.1 | BM72: =بنك!BM10 -> حمدى طه العيسوى | BN72: =بنك!BN10 -> كبير ا | BO72: =بنك!BO10 -> البنك التجارى الدولى | BP72: =بنك!BQ10 -> مدرس | BQ72: 747.84 | BR72: =ثانوى1!BT23 -> 0 | BS72: 875 | BU72: =بنك!BV10 -> كبير ا
B73: =BM73 -> السعيد عبد النبي السيد علي | C73: =بنك!C11 -> 579.83 | D73: 54 | F73: =بنك!F11 -> 1829.42 | G73: =بنك!G11 -> 53.9 | H73: =بنك!H11 -> 57.98 | I73: =بنك!I11 -> 144.96 | J73: =بنك!J11 -> 144.96 | K73: =بنك!K11 -> 289.92 | L73: =بنك!L11 -> 1159.64 | M73: =بنك!M11 -> 0 | N73: =بنك!N11 -> 300 | O73: =بنك!O11 -> 150 | P73: =بنك!P11 -> 325 | Q73: =بنك!Q11 -> 375 | R73: =بنك!R11 -> 0 | S73: =بنك!S11 -> 180 | T73: =بنك!T11 -> 140 | U73: =بنك!U11 -> 155 | V73: =بنك!V11 ->  | W73: =بنك!W11 -> 6 | X73: =بنك!X11 -> 4 | Y73: =بنك!Y11 -> 0 | Z73: =بنك!Z11 -> 0 | AA73: =بنك!AA11 -> 0 | AB73: =بنك!AB11 -> 0 | AC73: =بنك!AC11 -> 0 | AD73: =بنك!AD11 -> 0 | AE73: =بنك!AE11 -> 0 | AF73: =بنك!AF11 -> 0 | AG73: =بنك!AG11 -> 0 | AH73: =بنك!AH11 -> 10 | AI73: =بنك!AI11 -> 5325.78 | AJ73: =بنك!AJ11 -> 0 | AK73: =بنك!AK11 -> 478.42 | AL73: =بنك!AL11 -> 0 | AM73: =بنك!AM11 -> 53.16 | AN73: =بنك!AN11 -> 53.16 | AO73: =بنك!AO11 -> 9.5 | AP73: =بنك!AP11 -> 3.1 | AQ73: =بنك!AQ11 -> 0 | AR73: =بنك!AR11 -> 157 | AS73: =بنك!AS11 -> 32.6 | AT73: =بنك!AT11 -> 0 | AU73: =بنك!AU11 -> 2 | AV73: =بنك!AV11 -> 4.5 | AW73: =بنك!AW11 -> 2 | AX73: =بنك!AX11 -> 0.25 | AY73: =بنك!AY11 -> 3 | AZ73: =بنك!AZ11 -> 0.5 | BA73: =بنك!BA11 -> 128.06 | BB73: =بنك!BB11 -> 0 | BC73: =بنك!BC11 -> 0 | BD73: =بنك!BD11 -> 0 | BE73: =بنك!BE11 -> 0 | BF73: =بنك!BF11 -> 0 | BG73: =بنك!BG11 -> 0 | BH73: =بنك!BH11 -> 0 | BI73: =بنك!BI11 -> 0 | BJ73: =بنك!BJ11 -> 0.03 | BK73: =بنك!BK11 -> 927.28 | BL73: =بنك!BL11 -> 4398.5 | BM73: =بنك!BM11 -> السعيد عبد النبي السيد علي | BN73: =بنك!BN11 -> كبير ا | BO73: =بنك!BO11 -> ناصر بشبيش | BP73: =بنك!BQ11 -> مدرس | BQ73: =بنك!BR11 -> 0 | BR73: =بنك!BS11 -> 0 | BS73: 850 | BU73: =بنك!BV11 -> كبير ا | BV73: =بنك!BW11 -> 0 | BY73: السعيد عبد النبي السيد علي | CB73: 4399.15
B74: =BM74 -> فاطمه جابر عباس جادالله | C74: =بنك!C12 -> 690.85 | D74: 55 | F74: =بنك!F12 -> 2127.85 | G74: =بنك!G12 -> 64.92 | H74: =بنك!H12 -> 69.09 | I74: =بنك!I12 -> 172.71 | J74: =بنك!J12 -> 172.71 | K74: =بنك!K12 -> 345.43 | L74: =بنك!L12 -> 1381.68 | M74: =بنك!M12 -> 0 | N74: =بنك!N12 -> 300 | O74: =بنك!O12 -> 150 | P74: =بنك!P12 -> 350 | Q74: =بنك!Q12 -> 375 | R74: =بنك!R12 -> 0 | S74: =بنك!S12 -> 180 | T74: =بنك!T12 -> 140 | U74: =بنك!U12 -> 155 | V74: =بنك!V12 ->  | W74: =بنك!W12 -> 2 | X74: =بنك!X12 -> 4 | Y74: =بنك!Y12 -> 0 | Z74: =بنك!Z12 -> 0 | AA74: =بنك!AA12 -> 0 | AB74: =بنك!AB12 -> 0 | AC74: =بنك!AC12 -> 0 | AD74: =بنك!AD12 -> 0 | AE74: =بنك!AE12 -> 0 | AF74: =بنك!AF12 -> 0 | AG74: =بنك!AG12 -> 0 | AH74: =بنك!AH12 -> 10 | AI74: =بنك!AI12 -> 6000.39 | AJ74: =بنك!AJ12 -> 0 | AK74: =بنك!AK12 -> 539.14 | AL74: =بنك!AL12 -> 0 | AM74: =بنك!AM12 -> 59.9 | AN74: =بنك!AN12 -> 59.9 | AO74: =بنك!AO12 -> 9.5 | AP74: =بنك!AP12 -> 3.1 | AQ74: =بنك!AQ12 -> 6.07 | AR74: =بنك!AR12 -> 191.3 | AS74: =بنك!AS12 -> 36.5 | AT74: =بنك!AT12 -> 0 | AU74: =بنك!AU12 -> 2.5 | AV74: =بنك!AV12 -> 4.5 | AW74: =بنك!AW12 -> 2 | AX74: =بنك!AX12 -> 0.25 | AY74: =بنك!AY12 -> 3 | AZ74: =بنك!AZ12 -> 0.5 | BA74: =بنك!BA12 -> 148.95 | BB74: =بنك!BB12 -> 0 | BC74: =بنك!BC12 -> 0 | BD74: =بنك!BD12 -> 0 | BE74: =بنك!BE12 -> 0 | BF74: =بنك!BF12 -> 0 | BG74: =بنك!BG12 -> 0 | BH74: =بنك!BH12 -> 0 | BI74: =بنك!BI12 -> 0 | BJ74: =بنك!BJ12 -> 0.03 | BK74: =بنك!BK12 -> 1067.14 | BL74: =بنك!BL12 -> 4933.25 | BM74: =بنك!BM12 -> فاطمه جابر عباس جادالله | BN74: =بنك!BN12 -> كبير ا | BO74: =بنك!BO12 -> القاهرة المحلة | BP74: =بنك!BQ12 -> مدرس | BQ74: =بنك!BR12 -> 0 | BR74: =بنك!BS12 -> 0 | BS74: 875 | BU74: =بنك!BV12 -> كبير | BV74: =بنك!BW12 -> 0 | BY74: السيد بدير السيد محمود | CB74: 3892.75
B75: رجاء صلاح محمد محمود | C75: =بنك!C13 -> 486.69 | D75: 56 | F75: =بنك!F13 -> 1618.05 | G75: =بنك!G13 -> 45.76 | H75: =بنك!H13 -> 48.67 | I75: =بنك!I13 -> 121.67 | J75: =بنك!J13 -> 121.67 | K75: =بنك!K13 -> 243.35 | L75: =بنك!L13 -> 851.7 | M75: =بنك!M13 -> 0 | N75: =بنك!N13 -> 325 | O75: =بنك!O13 -> 150 | P75: =بنك!P13 -> 325 | Q75: =بنك!Q13 -> 350 | R75: =بنك!R13 -> 0 | S75: =بنك!S13 -> 165 | T75: =بنك!T13 -> 145 | U75: =بنك!U13 -> 140 | V75: =بنك!V13 ->  | W75: =بنك!W13 -> 2 | X75: =بنك!X13 -> 4 | Y75: =بنك!Y13 -> 121.67 | Z75: =بنك!Z13 -> 0 | AA75: =بنك!AA13 -> 0 | AB75: =بنك!AB13 -> 0 | AC75: =بنك!AC13 -> 0 | AD75: =بنك!AD13 -> 0 | AE75: =بنك!AE13 -> 0 | AF75: =بنك!AF13 -> 0 | AG75: =بنك!AG13 -> 0 | AH75: =بنك!AH13 -> 10 | AI75: =بنك!AI13 -> 4788.54 | AJ75: =بنك!AJ13 -> 0 | AK75: =بنك!AK13 -> 430.07 | AL75: =بنك!AL13 -> 0 | AM75: =بنك!AM13 -> 47.79 | AN75: =بنك!AN13 -> 47.79 | AO75: =بنك!AO13 -> 9 | AP75: =بنك!AP13 -> 2.8 | AQ75: =بنك!AQ13 -> 0 | AR75: =بنك!AR13 -> 129 | AS75: =بنك!AS13 -> 29.4 | AT75: =بنك!AT13 -> 0 | AU75: =بنك!AU13 -> 2 | AV75: =بنك!AV13 -> 4.5 | AW75: =بنك!AW13 -> 2 | AX75: =بنك!AX13 -> 0.25 | AY75: =بنك!AY13 -> 3 | AZ75: =بنك!AZ13 -> 0.5 | BA75: =بنك!BA13 -> 113.26 | BB75: =بنك!BB13 -> 0 | BC75: =بنك!BC13 -> 0 | BD75: =بنك!BD13 -> 0 | BE75: =بنك!BE13 -> 0 | BF75: =بنك!BF13 -> 50 | BG75: =بنك!BG13 -> 0 | BH75: =بنك!BH13 -> 0 | BI75: =بنك!BI13 -> 0 | BJ75: =بنك!BJ13 -> 0.03 | BK75: =بنك!BK13 -> 871.39 | BL75: =بنك!BL13 -> 3917.15 | BM75: =بنك!BM13 -> رجاء صلاح محمد محمود | BN75: =بنك!BN13 -> كبير | BO75: =بنك!BO13 -> الاسكندرية - نبروه | BP75: =بنك!BQ13 -> مدرس | BQ75: =بنك!BR13 -> 0 | BR75: =بنك!BS13 -> 0 | BS75: 825 | BU75: =بنك!BV13 -> اولى | BV75: =بنك!BW13 -> 0 | BY75: ايمان محمد ابراهيم محمود | CB75: 3069.1
B76: فتحى المغازى محمد العزب | C76: =بنك!C15 -> 487.09 | D76: 57 | F76: =بنك!F14 -> 1709.21 | G76: =بنك!G14 -> 49.36 | H76: =بنك!H14 -> 52.56 | I76: =بنك!I14 -> 131.4 | J76: =بنك!J14 -> 131.4 | K76: =بنك!K14 -> 262.79 | L76: =بنك!L14 -> 919.76 | M76: =بنك!M14 -> 0 | N76: =بنك!N14 -> 325 | O76: =بنك!O14 -> 150 | P76: =بنك!P14 -> 325 | Q76: =بنك!Q14 -> 350 | R76: =بنك!R14 -> 0 | S76: =بنك!S14 -> 165 | T76: =بنك!T14 -> 145 | U76: =بنك!U14 -> 140 | V76: =بنك!V14 ->  | W76: =بنك!W14 -> 6 | X76: =بنك!X14 -> 4 | Y76: =بنك!Y14 -> 0 | Z76: =بنك!Z14 -> 0 | AA76: =بنك!AA14 -> 0 | AB76: =بنك!AB14 -> 0 | AC76: =بنك!AC14 -> 0 | AD76: =بنك!AD14 -> 0 | AE76: =بنك!AE14 -> 0 | AF76: =بنك!AF14 -> 0 | AG76: =بنك!AG14 -> 0 | AH76: =بنك!AH14 -> 10 | AI76: =بنك!AI14 -> 4876.48 | AJ76: =بنك!AJ14 -> 0 | AK76: =بنك!AK14 -> 437.98 | AL76: =بنك!AL14 -> 0 | AM76: =بنك!AM14 -> 48.66 | AN76: =بنك!AN14 -> 48.66 | AO76: =بنك!AO14 -> 9 | AP76: =بنك!AP14 -> 2.8 | AQ76: =بنك!AQ14 -> 0 | AR76: =بنك!AR14 -> 132 | AS76: =بنك!AS14 -> 29.7 | AT76: =بنك!AT14 -> 0 | AU76: =بنك!AU14 -> 2 | AV76: =بنك!AV14 -> 4.5 | AW76: =بنك!AW14 -> 2 | AX76: =بنك!AX14 -> 0.25 | AY76: =بنك!AY14 -> 3 | AZ76: =بنك!AZ14 -> 0.5 | BA76: =بنك!BA14 -> 119.64 | BB76: =بنك!BB14 -> 9 | BC76: =بنك!BC14 -> 0 | BD76: =بنك!BD14 -> 0 | BE76: =بنك!BE14 -> 0 | BF76: =بنك!BF14 -> 0 | BG76: =بنك!BG14 -> 0 | BH76: =بنك!BH14 -> 0 | BI76: =بنك!BI14 -> 0 | BJ76: =بنك!BJ14 -> 0.04 | BK76: =بنك!BK14 -> 849.73 | BL76: =بنك!BL14 -> 4026.75 | BM76: =بنك!BM14 -> فتحى المغازى محمد العزب | BN76: =بنك!BN14 -> كبير | BO76: =بنك!BO14 -> البنك الأهلى | BP76: =بنك!BQ15 -> مدرس | BQ76: =بنك!BR15 -> 0 | BR76: =بنك!BS15 -> 0 | BS76: 825 | BU76: =بنك!BV15 -> ثانيه | BV76: =بنك!BW15 -> 0 | BY76: حسن شان غازي سليمان غازي | CB76: 2962.25
B77: السيد بدير السيد محمود | C77: =بنك!C16 -> 548.27 | D77: 58 | F77: =بنك!F15 -> 1618.98 | G77: =بنك!G15 -> 45.8 | H77: =بنك!H15 -> 48.71 | I77: =بنك!I15 -> 121.77 | J77: =بنك!J15 -> 121.77 | K77: =بنك!K15 -> 243.55 | L77: =بنك!L15 -> 852.4 | M77: =بنك!M15 -> 0 | N77: =بنك!N15 -> 325 | O77: =بنك!O15 -> 150 | P77: =بنك!P15 -> 325 | Q77: =بنك!Q15 -> 350 | R77: =بنك!R15 -> 0 | S77: =بنك!S15 -> 165 | T77: =بنك!T15 -> 145 | U77: =بنك!U15 -> 140 | V77: =بنك!V15 ->  | W77: =بنك!W15 -> 6 | X77: =بنك!X15 -> 4 | Y77: =بنك!Y15 -> 0 | Z77: =بنك!Z15 -> 0 | AA77: =بنك!AA15 -> 0 | AB77: =بنك!AB15 -> 0 | AC77: =بنك!AC15 -> 0 | AD77: =بنك!AD15 -> 0 | AE77: =بنك!AE15 -> 0 | AF77: =بنك!AF15 -> 0 | AG77: =بنك!AG15 -> 0 | AH77: =بنك!AH15 -> 10 | AI77: =بنك!AI15 -> 4672.98 | AJ77: =بنك!AJ15 -> 0 | AK77: =بنك!AK15 -> 419.67 | AL77: =بنك!AL15 -> 0 | AM77: =بنك!AM15 -> 46.63 | AN77: =بنك!AN15 -> 46.63 | AO77: =بنك!AO15 -> 9 | AP77: =بنك!AP15 -> 2.8 | AQ77: =بنك!AQ15 -> 0 | AR77: =بنك!AR15 -> 96.5 | AS77: =بنك!AS15 -> 28.5 | AT77: =بنك!AT15 -> 0 | AU77: =بنك!AU15 -> 2 | AV77: =بنك!AV15 -> 4.5 | AW77: =بنك!AW15 -> 2 | AX77: =بنك!AX15 -> 0.25 | AY77: =بنك!AY15 -> 3 | AZ77: =بنك!AZ15 -> 0.5 | BA77: =بنك!BA15 -> 113.33 | BB77: =بنك!BB15 -> 0 | BC77: =بنك!BC15 -> 0 | BD77: =بنك!BD15 -> 0 | BE77: =بنك!BE15 -> 0 | BF77: =بنك!BF15 -> 0 | BG77: =بنك!BG15 -> 0 | BH77: =بنك!BH15 -> 0 | BI77: =بنك!BI15 -> 0 | BJ77: =بنك!BJ15 -> 0.02 | BK77: =بنك!BK15 -> 775.33 | BL77: =بنك!BL15 -> 3897.65 | BM77: =بنك!BM15 -> السيد بدير السيد محمود | BN77: =بنك!BN15 -> كبير | BO77: =بنك!BO15 -> ناصر -بشبيش | BP77: =بنك!BQ16 -> مدرس | BQ77: =بنك!BR16 -> 0 | BR77: =بنك!BS16 -> 0 | BS77: 825 | BU77: =بنك!BV16 -> ثالثه | BV77: =بنك!BW16 -> 0 | BY77: حنان راشد بركات الذهبى | CB77: 3675.25
B78: نعيمه المغاورى طه السيد | C78: =بنك!C17 -> 462.97 | D78: 59 | F78: =بنك!F16 -> 1773.69 | G78: =بنك!G16 -> 51.53 | H78: =بنك!H16 -> 54.83 | I78: =بنك!I16 -> 137.07 | J78: =بنك!J16 -> 137.07 | K78: =بنك!K16 -> 274.14 | L78: =بنك!L16 -> 959.45 | M78: =بنك!M16 -> 0 | N78: =بنك!N16 -> 325 | O78: =بنك!O16 -> 150 | P78: =بنك!P16 -> 325 | Q78: =بنك!Q16 -> 350 | R78: =بنك!R16 -> 0 | S78: =بنك!S16 -> 165 | T78: =بنك!T16 -> 145 | U78: =بنك!U16 -> 140 | V78: =بنك!V16 ->  | W78: =بنك!W16 -> 2 | X78: =بنك!X16 -> 4 | Y78: =بنك!Y16 -> 0 | Z78: =بنك!Z16 -> 0 | AA78: =بنك!AA16 -> 0 | AB78: =بنك!AB16 -> 0 | AC78: =بنك!AC16 -> 0 | AD78: =بنك!AD16 -> 0 | AE78: =بنك!AE16 -> 0 | AF78: =بنك!AF16 -> 0 | AG78: =بنك!AG16 -> 0 | AH78: =بنك!AH16 -> 10 | AI78: =بنك!AI16 -> 5003.78 | AJ78: =بنك!AJ16 -> 0 | AK78: =بنك!AK16 -> 449.44 | AL78: =بنك!AL16 -> 0 | AM78: =بنك!AM16 -> 49.94 | AN78: =بنك!AN16 -> 49.94 | AO78: =بنك!AO16 -> 9 | AP78: =بنك!AP16 -> 2.8 | AQ78: =بنك!AQ16 -> 0 | AR78: =بنك!AR16 -> 139.6 | AS78: =بنك!AS16 -> 30.4 | AT78: =بنك!AT16 -> 0 | AU78: =بنك!AU16 -> 2 | AV78: =بنك!AV16 -> 4.5 | AW78: =بنك!AW16 -> 2 | AX78: =بنك!AX16 -> 0.25 | AY78: =بنك!AY16 -> 3 | AZ78: =بنك!AZ16 -> 0.5 | BA78: =بنك!BA16 -> 124.16 | BB78: =بنك!BB16 -> 0 | BC78: =بنك!BC16 -> 0 | BD78: =بنك!BD16 -> 0 | BE78: =بنك!BE16 -> 0 | BF78: =بنك!BF16 -> 0 | BG78: =بنك!BG16 -> 0 | BH78: =بنك!BH16 -> 0 | BI78: =بنك!BI16 -> 0 | BJ78: =بنك!BJ16 -> 0 | BK78: =بنك!BK16 -> 867.53 | BL78: =بنك!BL16 -> 4136.25 | BM78: =بنك!BM16 -> نعيمه المغاورى طه السيد | BN78: =بنك!BN16 -> كبير | BO78: =بنك!BO16 -> مصر المحلة | BP78: =بنك!BQ17 -> مدرس | BQ78: =بنك!BR17 -> 0 | BR78: =بنك!BS17 -> 0 | BS78: 825 | BU78: =بنك!BV17 -> رابعه | BV78: =بنك!BW17 -> 0 | BY78: رجاء صلاح محمد محمود | CB78: 3962.25
B79: حنان راشد بركات الذهبى | C79: =بنك!C18 -> 461.58 | D79: 60 | F79: =بنك!F17 -> 1563.12 | G79: =بنك!G17 -> 43.01 | H79: =بنك!H17 -> 46.3 | I79: =بنك!I17 -> 115.74 | J79: =بنك!J17 -> 115.74 | K79: =بنك!K17 -> 231.49 | L79: =بنك!L17 -> 810.19 | M79: =بنك!M17 -> 0 | N79: =بنك!N17 -> 325 | O79: =بنك!O17 -> 150 | P79: =بنك!P17 -> 300 | Q79: =بنك!Q17 -> 350 | R79: =بنك!R17 -> 0 | S79: =بنك!S17 -> 165 | T79: =بنك!T17 -> 145 | U79: =بنك!U17 -> 140 | V79: =بنك!V17 ->  | W79: =بنك!W17 -> 2 | X79: =بنك!X17 -> 4 | Y79: =بنك!Y17 -> 0 | Z79: =بنك!Z17 -> 0 | AA79: =بنك!AA17 -> 0 | AB79: =بنك!AB17 -> 0 | AC79: =بنك!AC17 -> 0 | AD79: =بنك!AD17 -> 0 | AE79: =بنك!AE17 -> 0 | AF79: =بنك!AF17 -> 0 | AG79: =بنك!AG17 -> 0 | AH79: =بنك!AH17 -> 10 | AI79: =بنك!AI17 -> 4516.59 | AJ79: =بنك!AJ17 -> 0 | AK79: =بنك!AK17 -> 405.59 | AL79: =بنك!AL17 -> 0 | AM79: =بنك!AM17 -> 45.07 | AN79: =بنك!AN17 -> 45.07 | AO79: =بنك!AO17 -> 9 | AP79: =بنك!AP17 -> 2.8 | AQ79: =بنك!AQ17 -> 0 | AR79: =بنك!AR17 -> 89.7 | AS79: =بنك!AS17 -> 27.5 | AT79: =بنك!AT17 -> 0 | AU79: =بنك!AU17 -> 2 | AV79: =بنك!AV17 -> 4.5 | AW79: =بنك!AW17 -> 2 | AX79: =بنك!AX17 -> 0.25 | AY79: =بنك!AY17 -> 3 | AZ79: =بنك!AZ17 -> 0.5 | BA79: =بنك!BA17 -> 109.42 | BB79: =بنك!BB17 -> 0 | BC79: =بنك!BC17 -> 0 | BD79: =بنك!BD17 -> 0 | BE79: =بنك!BE17 -> 0 | BF79: =بنك!BF17 -> 0 | BG79: =بنك!BG17 -> 0 | BH79: =بنك!BH17 -> 0 | BI79: =بنك!BI17 -> 0 | BJ79: =بنك!BJ17 -> 0.04 | BK79: =بنك!BK17 -> 746.44 | BL79: =بنك!BL17 -> 3770.15 | BM79: =بنك!BM17 -> حنان راشد بركات الذهبى | BN79: =بنك!BN17 -> كبير | BO79: =بنك!BO17 -> القاهرة المحلة | BP79: =بنك!BQ18 -> مدرس | BQ79: =بنك!BR18 -> 0 | BR79: =بنك!BS18 -> 0 | BS79: 800 | BU79: =بنك!BV18 -> خامسه | BV79: =بنك!BW18 -> 0 | BY79: رحاب فؤاد مجاهد | CB79: 3445.25
B80: نجلاء فتحى عبدالمتعال الحايس | C80: =بنك!C19 -> 359.64 | D80: 61 | F80: =بنك!F18 -> 1560.43 | G80: =بنك!G18 -> 42.87 | H80: =بنك!H18 -> 46.16 | I80: =بنك!I18 -> 115.4 | J80: =بنك!J18 -> 115.4 | K80: =بنك!K18 -> 230.79 | L80: =بنك!L18 -> 808.12 | M80: =بنك!M18 -> 0 | N80: =بنك!N18 -> 325 | O80: =بنك!O18 -> 150 | P80: =بنك!P18 -> 300 | Q80: =بنك!Q18 -> 350 | R80: =بنك!R18 -> 0 | S80: =بنك!S18 -> 165 | T80: =بنك!T18 -> 145 | U80: =بنك!U18 -> 140 | V80: =بنك!V18 ->  | W80: =بنك!W18 -> 2 | X80: =بنك!X18 -> 4 | Y80: =بنك!Y18 -> 0 | Z80: =بنك!Z18 -> 0 | AA80: =بنك!AA18 -> 0 | AB80: =بنك!AB18 -> 0 | AC80: =بنك!AC18 -> 0 | AD80: =بنك!AD18 -> 0 | AE80: =بنك!AE18 -> 0 | AF80: =بنك!AF18 -> 0 | AG80: =بنك!AG18 -> 0 | AH80: =بنك!AH18 -> 10 | AI80: =بنك!AI18 -> 4510.17 | AJ80: =بنك!AJ18 -> 0 | AK80: =بنك!AK18 -> 405.02 | AL80: =بنك!AL18 -> 0 | AM80: =بنك!AM18 -> 45 | AN80: =بنك!AN18 -> 45 | AO80: =بنك!AO18 -> 9 | AP80: =بنك!AP18 -> 2.8 | AQ80: =بنك!AQ18 -> 0 | AR80: =بنك!AR18 -> 89.7 | AS80: =بنك!AS18 -> 27.5 | AT80: =بنك!AT18 -> 0 | AU80: =بنك!AU18 -> 2 | AV80: =بنك!AV18 -> 4.5 | AW80: =بنك!AW18 -> 2 | AX80: =بنك!AX18 -> 0.25 | AY80: =بنك!AY18 -> 3 | AZ80: =بنك!AZ18 -> 0.5 | BA80: =بنك!BA18 -> 109.23 | BB80: =بنك!BB18 -> 0 | BC80: =بنك!BC18 -> 0 | BD80: =بنك!BD18 -> 0 | BE80: =بنك!BE18 -> 0 | BF80: =بنك!BF18 -> 0 | BG80: =بنك!BG18 -> 0 | BH80: =بنك!BH18 -> 0 | BI80: =بنك!BI18 -> 0 | BJ80: =بنك!BJ18 -> 0.02 | BK80: =بنك!BK18 -> 745.52 | BL80: =بنك!BL18 -> 3764.65 | BM80: =بنك!BM18 -> نجلاء فتحى عبدالمتعال الحايس | BN80: =بنك!BN18 -> كبير | BO80: =بنك!BO18 -> ناصر -بشبيش | BP80: =بنك!BQ19 -> مدرس | BQ80: =بنك!BR19 -> 0 | BR80: =بنك!BS19 -> 0 | BS80: 800 | BU80: =بنك!BV19 -> سادسه | BV80: =بنك!BW19 -> 0 | BY80: رمضان الصباحى السعداوي ابوشناف | CB80: 3956.6
B81: رحاب فؤاد مجاهد | C81: =بنك!C20 -> 512.7 | D81: 62 | F81: =بنك!F19 -> 1357.58 | G81: =بنك!G19 -> 33.81 | H81: =بنك!H19 -> 35.96 | I81: =بنك!I19 -> 89.91 | J81: =بنك!J19 -> 89.91 | K81: =بنك!K19 -> 179.82 | L81: =بنك!L19 -> 539.46 | M81: =بنك!M19 -> 0 | N81: =بنك!N19 -> 350 | O81: =بنك!O19 -> 150 | P81: =بنك!P19 -> 300 | Q81: =بنك!Q19 -> 325 | R81: =بنك!R19 -> 274 | S81: =بنك!S19 -> 125 | T81: =بنك!T19 -> 150 | U81: =بنك!U19 -> 120 | V81: =بنك!V19 ->  | W81: =بنك!W19 -> 2 | X81: =بنك!X19 -> 4 | Y81: =بنك!Y19 -> 0 | Z81: =بنك!Z19 -> 0 | AA81: =بنك!AA19 -> 0 | AB81: =بنك!AB19 -> 0 | AC81: =بنك!AC19 -> 0 | AD81: =بنك!AD19 -> 0 | AE81: =بنك!AE19 -> 0 | AF81: =بنك!AF19 -> 0 | AG81: =بنك!AG19 -> 0 | AH81: =بنك!AH19 -> 10 | AI81: =بنك!AI19 -> 4136.45 | AJ81: =بنك!AJ19 -> 0 | AK81: =بنك!AK19 -> 371.38 | AL81: =بنك!AL19 -> 0 | AM81: =بنك!AM19 -> 41.26 | AN81: =بنك!AN19 -> 41.26 | AO81: =بنك!AO19 -> 7.9 | AP81: =بنك!AP19 -> 2.4 | AQ81: =بنك!AQ19 -> 4.89 | AR81: =بنك!AR19 -> 78.1 | AS81: =بنك!AS19 -> 25.5 | AT81: =بنك!AT19 -> 0 | AU81: =بنك!AU19 -> 2 | AV81: =بنك!AV19 -> 4.5 | AW81: =بنك!AW19 -> 2 | AX81: =بنك!AX19 -> 0.25 | AY81: =بنك!AY19 -> 3 | AZ81: =بنك!AZ19 -> 0.5 | BA81: =بنك!BA19 -> 95.03 | BB81: =بنك!BB19 -> 0 | BC81: =بنك!BC19 -> 0 | BD81: =بنك!BD19 -> 0 | BE81: =بنك!BE19 -> 0 | BF81: =بنك!BF19 -> 0 | BG81: =بنك!BG19 -> 7.1 | BH81: =بنك!BH19 -> 0 | BI81: =بنك!BI19 -> 0 | BJ81: =بنك!BJ19 -> 0.03 | BK81: =بنك!BK19 -> 687.1 | BL81: =بنك!BL19 -> 3449.35 | BM81: =بنك!BM19 -> رحاب فؤاد مجاهد | BN81: =بنك!BN19 -> اولى | BO81: =بنك!BO19 -> ناصر -بشبيش | BP81: =بنك!BQ20 -> مدرس | BQ81: =بنك!BR20 -> 0 | BR81: =بنك!BS20 -> 0 | BS81: 775 | BU81: =بنك!BV20 -> 0 | BV81: =بنك!BW20 -> 0 | BY81: عبد الحليم انور مخيمر محمد | CB81: 3612.9
B82: محمد ابوالنجا محمد ابوالنجا | C82: =بنك!C21 -> 246 | D82: 63 | F82: =بنك!F20 -> 1665.8 | G82: =بنك!G20 -> 48.19 | H82: =بنك!H20 -> 51.27 | I82: =بنك!I20 -> 128.18 | J82: =بنك!J20 -> 128.18 | K82: =بنك!K20 -> 256.35 | L82: =بنك!L20 -> 769.08 | M82: =بنك!M20 -> 0 | N82: =بنك!N20 -> 350 | O82: =بنك!O20 -> 150 | P82: =بنك!P20 -> 300 | Q82: =بنك!Q20 -> 325 | R82: =بنك!R20 -> 0 | S82: =بنك!S20 -> 125 | T82: =بنك!T20 -> 150 | U82: =بنك!U20 -> 120 | V82: =بنك!V20 ->  | W82: =بنك!W20 -> 6 | X82: =بنك!X20 -> 4 | Y82: =بنك!Y20 -> 0 | Z82: =بنك!Z20 -> 0 | AA82: =بنك!AA20 -> 0 | AB82: =بنك!AB20 -> 0 | AC82: =بنك!AC20 -> 0 | AD82: =بنك!AD20 -> 0 | AE82: =بنك!AE20 -> 0 | AF82: =بنك!AF20 -> 0 | AG82: =بنك!AG20 -> 0 | AH82: =بنك!AH20 -> 10 | AI82: =بنك!AI20 -> 4587.05 | AJ82: =بنك!AJ20 -> 0 | AK82: =بنك!AK20 -> 411.93 | AL82: =بنك!AL20 -> 0 | AM82: =بنك!AM20 -> 45.77 | AN82: =بنك!AN20 -> 45.77 | AO82: =بنك!AO20 -> 7.9 | AP82: =بنك!AP20 -> 2.4 | AQ82: =بنك!AQ20 -> 0 | AR82: =بنك!AR20 -> 92.6 | AS82: =بنك!AS20 -> 27.7 | AT82: =بنك!AT20 -> 0 | AU82: =بنك!AU20 -> 2 | AV82: =بنك!AV20 -> 4.5 | AW82: =بنك!AW20 -> 2 | AX82: =بنك!AX20 -> 0.25 | AY82: =بنك!AY20 -> 3 | AZ82: =بنك!AZ20 -> 0.5 | BA82: =بنك!BA20 -> 116.61 | BB82: =بنك!BB20 -> 0 | BC82: =بنك!BC20 -> 0 | BD82: =بنك!BD20 -> 0 | BE82: =بنك!BE20 -> 0 | BF82: =بنك!BF20 -> 0 | BG82: =بنك!BG20 -> 0 | BH82: =بنك!BH20 -> 0 | BI82: =بنك!BI20 -> 0 | BJ82: =بنك!BJ20 -> 0.02 | BK82: =بنك!BK20 -> 762.95 | BL82: =بنك!BL20 -> 3824.1 | BM82: =بنك!BM20 -> محمد ابوالنجا محمد ابوالنجا | BN82: =بنك!BN20 -> اولى | BO82: =بنك!BO20 -> فيصل الإسلامى | BP82: =بنك!BQ21 -> مدرس | BQ82: =بنك!BR21 -> 0 | BR82: =بنك!BS21 -> 0 | BS82: 775 | BU82: =بنك!BV21 -> 0 | BV82: =بنك!BW21 -> 0 | BY82: عبد الحميد عبد المنعم عبد الحليم هيكل | CB82: 2958.9
B83: محمد فتحى عبدالمعطى بدر | C83: =بنك!C22 -> 258 | D83: 64 | F83: =بنك!F21 -> 1046.63 | G83: =بنك!G21 -> 24.12 | H83: =بنك!H21 -> 24.6 | I83: =بنك!I21 -> 61.5 | J83: =بنك!J21 -> 123 | K83: =بنك!K21 -> 123 | L83: =بنك!L21 -> 307.5 | M83: =بنك!M21 -> 40 | N83: =بنك!N21 -> 375 | O83: =بنك!O21 -> 150 | P83: =بنك!P21 -> 200 | Q83: =بنك!Q21 -> 275 | R83: =بنك!R21 -> 189 | S83: =بنك!S21 -> 100 | T83: =بنك!T21 -> 165 | U83: =بنك!U21 -> 85 | V83: =بنك!V21 ->  | W83: =بنك!W21 -> 4 | X83: =بنك!X21 -> 4 | Y83: =بنك!Y21 -> 0 | Z83: =بنك!Z21 -> 0 | AA83: =بنك!AA21 -> 0 | AB83: =بنك!AB21 -> 0 | AC83: =بنك!AC21 -> 0 | AD83: =بنك!AD21 -> 0 | AE83: =بنك!AE21 -> 0 | AF83: =بنك!AF21 -> 0 | AG83: =بنك!AG21 -> 0 | AH83: =بنك!AH21 -> 10 | AI83: =بنك!AI21 -> 3307.35 | AJ83: =بنك!AJ21 -> 0 | AK83: =بنك!AK21 -> 296.76 | AL83: =بنك!AL21 -> 0 | AM83: =بنك!AM21 -> 32.97 | AN83: =بنك!AN21 -> 32.97 | AO83: =بنك!AO21 -> 7 | AP83: =بنك!AP21 -> 1.7 | AQ83: =بنك!AQ21 -> 0 | AR83: =بنك!AR21 -> 26.7 | AS83: =بنك!AS21 -> 20.4 | AT83: =بنك!AT21 -> 0 | AU83: =بنك!AU21 -> 1.5 | AV83: =بنك!AV21 -> 4.5 | AW83: =بنك!AW21 -> 2 | AX83: =بنك!AX21 -> 0.25 | AY83: =بنك!AY21 -> 3 | AZ83: =بنك!AZ21 -> 0.5 | BA83: =بنك!BA21 -> 73.26 | BB83: =بنك!BB21 -> 0 | BC83: =بنك!BC21 -> 0 | BD83: =بنك!BD21 -> 0 | BE83: =بنك!BE21 -> 0 | BF83: =بنك!BF21 -> 0 | BG83: =بنك!BG21 -> 0 | BH83: =بنك!BH21 -> 0 | BI83: =بنك!BI21 -> 0 | BJ83: =بنك!BJ21 -> 0.04 | BK83: =بنك!BK21 -> 503.55 | BL83: =بنك!BL21 -> 2803.8 | BM83: =بنك!BM21 -> محمد فتحى عبدالمعطى بدر | BN83: =بنك!BN21 -> ثانيه | BO83: =بنك!BO21 -> الأهلى المحلة | BP83: =بنك!BQ22 -> مدرس | BQ83: =بنك!BR22 -> 0 | BR83: =بنك!BS22 -> 0 | BS83: 625 | BU83: =بنك!BV22 -> 0 | BV83: =بنك!BW22 -> 0 | BY83: فاطمه جابر عباس جادالله | CB83: 4925.05
A84: 945.29 | B84: ايمان محمد ابراهيم محمود | C84: =بنك!C23 -> 0 | D84: 65 | F84: =بنك!F22 -> 1154.67 | G84: =بنك!G22 -> 24.92 | H84: =بنك!H22 -> 25.8 | I84: =بنك!I22 -> 64.5 | J84: =بنك!J22 -> 129 | K84: =بنك!K22 -> 129 | L84: =بنك!L22 -> 322.5 | M84: =بنك!M22 -> 0 | N84: =بنك!N22 -> 375 | O84: =بنك!O22 -> 150 | P84: =بنك!P22 -> 250 | Q84: =بنك!Q22 -> 275 | R84: =بنك!R22 -> 360 | S84: =بنك!S22 -> 100 | T84: =بنك!T22 -> 165 | U84: =بنك!U22 -> 85 | V84: =بنك!V22 ->  | W84: =بنك!W22 -> 2 | X84: =بنك!X22 -> 4 | Y84: =بنك!Y22 -> 0 | Z84: =بنك!Z22 -> 0 | AA84: =بنك!AA22 -> 0 | AB84: =بنك!AB22 -> 0 | AC84: =بنك!AC22 -> 0 | AD84: =بنك!AD22 -> 0 | AE84: =بنك!AE22 -> 0 | AF84: =بنك!AF22 -> 0 | AG84: =بنك!AG22 -> 0 | AH84: =بنك!AH22 -> 10 | AI84: =بنك!AI22 -> 3626.39 | AJ84: =بنك!AJ22 -> 0 | AK84: =بنك!AK22 -> 325.48 | AL84: =بنك!AL22 -> 0 | AM84: =بنك!AM22 -> 36.16 | AN84: =بنك!AN22 -> 36.16 | AO84: =بنك!AO22 -> 7 | AP84: =بنك!AP22 -> 1.7 | AQ84: =بنك!AQ22 -> 0 | AR84: =بنك!AR22 -> 35.8 | AS84: =بنك!AS22 -> 22.4 | AT84: =بنك!AT22 -> 0 | AU84: =بنك!AU22 -> 1.5 | AV84: =بنك!AV22 -> 4.5 | AW84: =بنك!AW22 -> 2 | AX84: =بنك!AX22 -> 0.25 | AY84: =بنك!AY22 -> 3 | AZ84: =بنك!AZ22 -> 0.5 | BA84: =بنك!BA22 -> 80.83 | BB84: =بنك!BB22 -> 0 | BC84: =بنك!BC22 -> 0 | BD84: =بنك!BD22 -> 0 | BE84: =بنك!BE22 -> 0 | BF84: =بنك!BF22 -> 0 | BG84: =بنك!BG22 -> 0 | BH84: =بنك!BH22 -> 0 | BI84: =بنك!BI22 -> 0 | BJ84: =بنك!BJ22 -> 0.01 | BK84: =بنك!BK22 -> 557.29 | BL84: =بنك!BL22 -> 3069.1 | BM84: =بنك!BM22 -> ايمان محمد ابراهيم محمود | BN84: =بنك!BN22 -> ثانيه | BO84: =بنك!BO22 -> مصر المحلة | BP84: =بنك!BQ23 -> 0 | BQ84: =بنك!BR23 -> 0 | BR84: =بنك!BS23 -> 0 | BS84: 675 | BT84: 945.29 | BU84: =بنك!BV23 -> 0 | BV84: =بنك!BW23 -> 0 | BY84: محمد ابو النجا محمد ابو النجا | CB84: 3820
A85: 593.88 | B85: عبد الحليم انور مخيمر محمد | C85: =بنك!C24 -> 0 | D85: 66 | F85: =بنك!F23 -> 0 | G85: =بنك!G23 -> 0 | H85: =بنك!H23 ->  | I85: =بنك!I23 ->  | J85: =بنك!J23 ->  | K85: =بنك!K23 ->  | L85: =بنك!L23 -> 0 | M85: =بنك!M23 -> 0 | N85: =بنك!N23 ->  | O85: =بنك!O23 -> 150 | P85: =بنك!P23 -> 300 | Q85: =بنك!Q23 -> 325 | R85: =بنك!R23 -> 0 | S85: =بنك!S23 ->  | T85: =بنك!T23 ->  | U85: =بنك!U23 ->  | V85: =بنك!V23 -> 85 | W85: =بنك!W23 -> 0 | X85: =بنك!X23 -> 0 | Y85: =بنك!Y23 -> 0 | Z85: =بنك!Z23 -> 0 | AA85: =بنك!AA23 -> 2886.61 | AB85: =بنك!AB23 -> 344.91 | AC85: =بنك!AC23 -> 134.9 | AD85: =بنك!AD23 -> 73.33 | AE85: =بنك!AE23 -> 0 | AF85: =بنك!AF23 -> 0 | AG85: =بنك!AG23 -> 0 | AH85: =بنك!AH23 ->  | AI85: =بنك!AI23 -> 4299.75 | AJ85: =بنك!AJ23 -> 0 | AK85: =بنك!AK23 -> 386.98 | AL85: =بنك!AL23 -> 0 | AM85: =بنك!AM23 -> 43 | AN85: =بنك!AN23 -> 43 | AO85: =بنك!AO23 -> 5 | AP85: =بنك!AP23 ->  | AQ85: =بنك!AQ23 -> 0 | AR85: =بنك!AR23 -> 47.5 | AS85: =بنك!AS23 -> 30.3 | AT85: =بنك!AT23 -> 0 | AU85: =بنك!AU23 -> 2 | AV85: =بنك!AV23 ->  | AW85: =بنك!AW23 ->  | AX85: =بنك!AX23 ->  | AY85: =بنك!AY23 ->  | AZ85: =بنك!AZ23 ->  | BA85: =بنك!BA23 ->  | BB85: =بنك!BB23 -> 9 | BC85: =بنك!BC23 -> 0 | BD85: =بنك!BD23 -> 0 | BE85: =بنك!BE23 -> 0 | BF85: =بنك!BF23 -> 0 | BG85: =بنك!BG23 -> 0 | BH85: =بنك!BH23 -> 0 | BI85: =بنك!BI23 -> 0 | BJ85: =بنك!BJ23 -> 0.02 | BK85: =بنك!BK23 -> 566.8 | BL85: =بنك!BL23 -> 3732.95 | BM85: =بنك!BM23 -> عبد الحليم انور مخيمر محمد | BN85: =بنك!BN23 -> اولى | BO85: =بنك!BO23 -> الأهلى المحلة | BP85: =بنك!BQ24 -> 0 | BQ85: =بنك!BR24 -> 0 | BR85: =بنك!BS24 -> 0 | BS85: 775 | BT85: 593.88 | BU85: =بنك!BV24 -> 0 | BV85: =بنك!BW24 -> 0 | BY85: محمد فتحى عبد المعطي بدر | CB85: 2799.7
A86: 676.45 | B86: رمضان الصباحى السعداوي ابوشناف | C86: =بنك!C25 -> 0 | D86: 67 | F86: =بنك!F24 -> 0 | G86: =بنك!G24 -> 0 | H86: =بنك!H24 ->  | I86: =بنك!I24 ->  | J86: =بنك!J24 ->  | K86: =بنك!K24 ->  | L86: =بنك!L24 -> 0 | M86: =بنك!M24 -> 0 | N86: =بنك!N24 ->  | O86: =بنك!O24 -> 150 | P86: =بنك!P24 -> 250 | Q86: =بنك!Q24 -> 275 | R86: =بنك!R24 -> 144 | S86: =بنك!S24 ->  | T86: =بنك!T24 ->  | U86: =بنك!U24 ->  | V86: =بنك!V24 -> 65 | W86: =بنك!W24 -> 0 | X86: =بنك!X24 -> 0 | Y86: =بنك!Y24 -> 0 | Z86: =بنك!Z24 -> 0 | AA86: =بنك!AA24 -> 2276 | AB86: =بنك!AB24 -> 216.69 | AC86: =بنك!AC24 -> 0 | AD86: =بنك!AD24 -> 47.78 | AE86: =بنك!AE24 -> 0 | AF86: =بنك!AF24 -> 0 | AG86: =بنك!AG24 -> 0 | AH86: =بنك!AH24 ->  | AI86: =بنك!AI24 -> 3424.47 | AJ86: =بنك!AJ24 -> 0 | AK86: =بنك!AK24 -> 308.2 | AL86: =بنك!AL24 -> 18.52 | AM86: =بنك!AM24 -> 34.24 | AN86: =بنك!AN24 -> 34.24 | AO86: =بنك!AO24 -> 5 | AP86: =بنك!AP24 ->  | AQ86: =بنك!AQ24 -> 0 | AR86: =بنك!AR24 -> 32.2 | AS86: =بنك!AS24 -> 24.95 | AT86: =بنك!AT24 -> 0 | AU86: =بنك!AU24 -> 1.5 | AV86: =بنك!AV24 ->  | AW86: =بنك!AW24 ->  | AX86: =بنك!AX24 ->  | AY86: =بنك!AY24 ->  | AZ86: =بنك!AZ24 ->  | BA86: =بنك!BA24 ->  | BB86: =بنك!BB24 -> 9 | BC86: =بنك!BC24 -> 0 | BD86: =بنك!BD24 -> 0 | BE86: =بنك!BE24 -> 0 | BF86: =بنك!BF24 -> 0 | BG86: =بنك!BG24 -> 0 | BH86: =بنك!BH24 -> 0 | BI86: =بنك!BI24 -> 0 | BJ86: =بنك!BJ24 -> 0.02 | BK86: =بنك!BK24 -> 467.87 | BL86: =بنك!BL24 -> 2956.6 | BM86: =بنك!BM24 -> رمضان الصباحى السعداوي ابوشناف | BN86: =بنك!BN24 -> ثانيه | BO86: =بنك!BO24 -> ناصر -بشبيش | BP86: =بنك!BQ25 -> 0 | BQ86: =بنك!BR25 -> 0 | BR86: =بنك!BS25 -> 0 | BS86: 675 | BT86: 676.45 | BU86: =بنك!BV25 -> 0 | BV86: =بنك!BW25 -> 0 | BY86: نجلاء فتحي عبد المتعال الحايس | CB86: 3759.3
A87: 678.27 | B87: حسن شان غازي سليمان غازي | C87: =بنك!C26 -> 0 | D87: 68 | F87: =بنك!F25 -> 0 | G87: =بنك!G25 -> 0 | H87: =بنك!H25 ->  | I87: =بنك!I25 ->  | J87: =بنك!J25 ->  | K87: =بنك!K25 ->  | L87: =بنك!L25 -> 0 | M87: =بنك!M25 -> 0 | N87: =بنك!N25 ->  | O87: =بنك!O25 -> 150 | P87: =بنك!P25 -> 200 | Q87: =بنك!Q25 -> 225 | R87: =بنك!R25 -> 0 | S87: =بنك!S25 ->  | T87: =بنك!T25 ->  | U87: =بنك!U25 ->  | V87: =بنك!V25 -> 55 | W87: =بنك!W25 -> 0 | X87: =بنك!X25 -> 0 | Y87: =بنك!Y25 -> 0 | Z87: =بنك!Z25 -> 0 | AA87: =بنك!AA25 -> 2469.47 | AB87: =بنك!AB25 -> 246.82 | AC87: =بنك!AC25 -> 0 | AD87: =بنك!AD25 -> 53.33 | AE87: =بنك!AE25 -> 0 | AF87: =بنك!AF25 -> 0 | AG87: =بنك!AG25 -> 0 | AH87: =بنك!AH25 ->  | AI87: =بنك!AI25 -> 3399.62 | AJ87: =بنك!AJ25 -> 0 | AK87: =بنك!AK25 -> 305.97 | AL87: =بنك!AL25 -> 0 | AM87: =بنك!AM25 -> 34 | AN87: =بنك!AN25 -> 34 | AO87: =بنك!AO25 -> 5 | AP87: =بنك!AP25 ->  | AQ87: =بنك!AQ25 -> 0 | AR87: =بنك!AR25 -> 32.2 | AS87: =بنك!AS25 -> 24.7 | AT87: =بنك!AT25 -> 0 | AU87: =بنك!AU25 -> 1.5 | AV87: =بنك!AV25 ->  | AW87: =بنك!AW25 ->  | AX87: =بنك!AX25 ->  | AY87: =بنك!AY25 ->  | AZ87: =بنك!AZ25 ->  | BA87: =بنك!BA25 ->  | BB87: =بنك!BB25 -> 0 | BC87: =بنك!BC25 -> 0 | BD87: =بنك!BD25 -> 0 | BE87: =بنك!BE25 -> 0 | BF87: =بنك!BF25 -> 0 | BG87: =بنك!BG25 -> 0 | BH87: =بنك!BH25 -> 0 | BI87: =بنك!BI25 -> 0 | BJ87: =بنك!BJ25 -> 0 | BK87: =بنك!BK25 -> 437.37 | BL87: =بنك!BL25 -> 2962.25 | BM87: =بنك!BM25 -> حسن شان غازي سليمان غازي | BN87: =بنك!BN25 -> ثالثه | BO87: =بنك!BO25 -> ناصر -بشبيش | BP87: =بنك!BQ26 -> 0 | BQ87: =بنك!BR26 -> 0 | BR87: =بنك!BS26 -> 0 | BS87: 575 | BT87: 678.27 | BU87: =بنك!BV26 -> 0 | BV87: =بنك!BW26 -> 0 | BY87: نعيمه المغاورى طه السيد | CB87: 4131.3
B88: عبدالحميد عبدالمنعم عبدالحليم | C88: =بنك!C27 -> 0 | D88: 69 | F88: =بنك!F26 -> 0 | G88: =بنك!G26 -> 0 | H88: =بنك!H26 ->  | I88: =بنك!I26 ->  | J88: =بنك!J26 ->  | K88: =بنك!K26 ->  | L88: =بنك!L26 -> 0 | M88: =بنك!M26 -> 0 | N88: =بنك!N26 ->  | O88: =بنك!O26 -> 150 | P88: =بنك!P26 -> 200 | Q88: =بنك!Q26 -> 225 | R88: =بنك!R26 -> 0 | S88: =بنك!S26 ->  | T88: =بنك!T26 ->  | U88: =بنك!U26 ->  | V88: =بنك!V26 -> 55 | W88: =بنك!W26 -> 0 | X88: =بنك!X26 -> 0 | Y88: =بنك!Y26 -> 0 | Z88: =بنك!Z26 -> 0 | AA88: =بنك!AA26 -> 2474.16 | AB88: =بنك!AB26 -> 247.48 | AC88: =بنك!AC26 -> 0 | AD88: =بنك!AD26 -> 54.44 | AE88: =بنك!AE26 -> 0 | AF88: =بنك!AF26 -> 0 | AG88: =بنك!AG26 -> 0 | AH88: =بنك!AH26 ->  | AI88: =بنك!AI26 -> 3406.08 | AJ88: =بنك!AJ26 -> 0 | AK88: =بنك!AK26 -> 306.55 | AL88: =بنك!AL26 -> 3.55 | AM88: =بنك!AM26 -> 34.06 | AN88: =بنك!AN26 -> 34.06 | AO88: =بنك!AO26 -> 5 | AP88: =بنك!AP26 ->  | AQ88: =بنك!AQ26 -> 0 | AR88: =بنك!AR26 -> 37.7 | AS88: =بنك!AS26 -> 24.75 | AT88: =بنك!AT26 -> 0 | AU88: =بنك!AU26 -> 1.5 | AV88: =بنك!AV26 ->  | AW88: =بنك!AW26 ->  | AX88: =بنك!AX26 ->  | AY88: =بنك!AY26 ->  | AZ88: =بنك!AZ26 ->  | BA88: =بنك!BA26 ->  | BB88: =بنك!BB26 -> 0 | BC88: =بنك!BC26 -> 0 | BD88: =بنك!BD26 -> 0 | BE88: =بنك!BE26 -> 0 | BF88: =بنك!BF26 -> 0 | BG88: =بنك!BG26 -> 0 | BH88: =بنك!BH26 -> 0 | BI88: =بنك!BI26 -> 0 | BJ88: =بنك!BJ26 -> 0.01 | BK88: =بنك!BK26 -> 447.18 | BL88: =بنك!BL26 -> 2958.9 | BM88: =بنك!BM26 -> عبدالحميد عبدالمنعم عبدالحليم | BN88: =بنك!BN26 -> ثالثه | BO88: =بنك!BO26 -> ناصر -بشبيش | BP88: =بنك!BQ27 -> 0 | BQ88: =بنك!BR27 -> 0 | BR88: =بنك!BS27 -> 0 | BS88: =SUM(O88:Q88) -> 575 | BT88: 679.27 | BU88: =بنك!BV27 -> 0 | BV88: =بنك!BW27 -> 0 | BY88: نعيمه المغاورى طه السيد | CB88: 4132.3

Sheet اعدادى 1
A5: 1 | B5: 2 | C5: 3 | D5: 4 | E5: 5 | F5: 6 | G5: 7 | H5: 8 | I5: 9 | J5: 10 | K5: 11 | L5: 12 | M5: 13 | N5: 14 | O5: 15 | P5: 16 | Q5: 17 | R5: 18 | S5: 19 | T5: 20 | U5: 21 | V5: 22 | W5: 23 | X5: 24 | Y5: 25 | AA5: 26 | AB5: 27 | AD5: 28 | AE5: 29 | AF5: 30 | AG5: 31 | AH5: 32 | AI5: 33 | AJ5: 34 | AK5: 35 | AL5: 36 | AM5: 37 | AN5: 38 | AO5: 39 | AP5: 40 | AQ5: 41 | AR5: 42 | AS5: 43 | AT5: 44 | AU5: 45 | AV5: 46 | AW5: 47 | AX5: 48 | AY5: 49 | AZ5: 50 | BA5: 51 | BB5: 52 | BC5: 53 | BD5: 54 | BE5: 55 | BF5: 56 | BG5: 57 | BH5: 58 | BI5: 59 | BJ5: 60 | BK5: 61 | BL5: 62 | BM5: 63 | BN5: 64 | BQ5: 65 | BR5: 66 | BS5: 67 | BT5: 68 | BU5: 69
F6: اعدادى 2 | BL6: اعدادى 2
D7: مسلسل | E7: الحالة الاجتماعية | F7: المرتب الأساسى | G7: =اعدادى!G7 -> ابريل2022 | AJ7: جــــــــــــارى ضرائــــــــــــــــــــــــــــــــــب | AT7: إستحقــــــــــــــــــــاق هيئـــــــــــــــــــــــــــــــــــات وشــــــــــــــــــــــركـــــــــــــــــــات | BK7: جملة الاستقطاعات | BL7: صافى المقتضى صرفه | BM7: اسم الموظف | BN7: الدرجة
C8: اساسى 2014 | G8: 10% 2014 | H8: 10% 2015 | I8: حافز 25% | J8: أداء | K8: كادر | L8: كادرين | M8: تطوير | N8: أعباء | O8: 2019 | P8: 2020 | Q8: 2021 | R8: حافز تكميلى | S8: بدل تعليم | T8: حافز أداء | U8: مكافئة مدرس | V8: مكافئة ادارى | W8: اجتماعية | X8: اضافية | Y8: حافز دمج | Z8: حافز مدير وكيل | AA8: الأجر الوظيفى | AB8: الأجر المكمل | AC8: أجر مكمل 5% 2022 | AD8: الحافز التعويضى | AE8: 0.915 | AF8: الحد الأدنى | AG8: دكتوراه | AH8: المنحة | AI8: جملة المبالغ المستحقة | AJ8: حصة الحكومة 12% | AK8: إشتراك موظف 9% | AL8: أقساط المدة السابقة | AM8: 0.01 | AN8: إدخار 1% | AO8: 2% رعاية | AP8: 0.02 | AQ8: بدل إعارة | AR8: كسب عمل | AS8: دمغة عادية | AT8: قسط شريحة | AU8: صندوق الشهداء | AV8: نقابة مهن تعليمية | AW8: رعاية صحية | AX8: تأمين اجتماعى | AY8: نادى معلمين | AZ8: رابطة جامعيين | BA8: صندوق زمالة | BB8: مهن تطبيقية | BC8: نقابة مهن تعليمية | BD8: لجنة نقابة | BE8: صندوق زمالة | BF8: بحث علمى | BG8: مهن زراعية | BH8: مهن اجتماعية | BI8: جزاءات | BJ8: كسر القرش | BU8: مقطوعة مجمعة
H9: مدرس | AH9: 10 | AV9: 4.5 | AW9: 2 | AX9: 0.25 | AY9: 3 | AZ9: 0.5 | BC9: قرض
B10: =BM10 -> ابراهيم كمال ايوب | C10: 458.32 | D10: 1 | F10: 1550.31 | G10: 42.54 | H10: 45.33 | I10: =IF(BQ10="مدرس",ROUND(C10*25%,2),"") -> 114.58 | J10: =IF(BQ10="مدرس",IF(BN10="كبير",ROUND(C10*25%,2),IF(BN10="كبير ا",ROUND(C10*25%,2),IF(BN10="اولى",ROUND(C10*25%,2),IF(BN10="ثانيه",ROUND(C10*50%,2),IF(BN10="ثالثه",ROUND(C10*75%,2),IF(BN10="م م",ROUND(C10*125%,2))))))),"") -> 114.58 | K10: =IF(BQ10="مدرس",ROUND(C10*50%,2),"") -> 229.16 | L10: 802.06 | N10: =IF(BQ10="مدرس",IF(BN10="كبير ا",300,IF(BN10="كبير",325,IF(BN10="اولى",350,IF(BN10="ثانيه",375,IF(BN10="ثالثه",400,""))))),"") -> 325 | O10: 150 | P10: 300 | Q10: 325 | S10: =IF(BQ10="مدرس",IF(BN10="كبير ا",180,IF(BN10="كبير",165,IF(BN10="اولى",125,IF(BN10="ثانيه",100,IF(BN10="ثالثه",75,))))),"") -> 165 | T10: =IF(BQ10="مدرس",IF(BN10="كبير ا",140,IF(BN10="كبير",145,IF(BN10="اولى",150,IF(BN10="ثانيه",165,IF(BN10="ثالثه",185,))))),"") -> 145 | U10: =IF(BQ10="مدرس",IF(BN10="كبير ا",155,IF(BN10="كبير",140,IF(BN10="اولى",120,IF(BN10="ثانيه",85,IF(BN10="ثالثه",65,))))),"") -> 140 | V10: =IF(BQ10="مدرس","",IF(BN10="اولى",85,IF(BN10="ثانيه",65,IF(BN10="ثالثه",55,IF(BN10="رابعه",50,IF(BN10="خامسه",50,)))))) ->  | W10: 6 | X10: 4 | Y10: 114.58 | AH10: =IF(BQ10="مدرس",$AH$9,"") -> 10 | AI10: =SUM(F10:AH10) -> 4583.14 | AK10: =ROUND(BY10*9%,2) -> 411.58 | AM10: =ROUND(BY10*1%,2) -> 45.73 | AN10: =ROUND(BY10*1%,2) -> 45.73 | AO10: 9 | AP10: =IF(BQ10="مدرس",IF(BN10="كبير ا",3.1,IF(BN10="كبير",2.8,IF(BN10="اولى",2.4,IF(BN10="ثانيه",1.7,IF(BN10="ثالثه",1.3,))))),"") -> 2.8 | AR10: 93.1 | AS10: 28 | AU10: 2 | AV10: =IF($BQ10="مدرس",$AV$9,"") -> 4.5 | AW10: =IF($BQ10="مدرس",$AW$9,"") -> 2 | AX10: =IF($BQ10="مدرس",$AX$9,"") -> 0.25 | AY10: =IF($BQ10="مدرس",$AY$9,"") -> 3 | AZ10: =IF($BQ10="مدرس",$AZ$9,"") -> 0.5 | BA10: =IF(BQ10="مدرس",ROUND(F10*7%,2),"") -> 108.52 | BH10: 50 | BJ10: 0.03 | BK10: =SUM(AJ10:BJ10) -> 806.74 | BL10: =AI10-BK10 -> 3776.4 | BM10: ابراهيم كمال ايوب | BN10: كبير | BQ10: مدرس | BU10: =SUM(O10:Q10) -> 775 | BV10: كبير ا | BW10: كبير ا | BY10: =SUM(F10:AG10) -> 4573.14
B11: =BM11 -> نجلاء حسنى ابراهيم | C11: 417.66 | D11: 2 | F11: 1468.54 | G11: 38.75 | H11: =IF(BQ11="مدرس",ROUND(C11*10%,2),"") -> 41.77 | I11: =IF(BQ11="مدرس",ROUND(C11*25%,2),"") -> 104.42 | J11: =IF(BQ11="مدرس",IF(BN11="كبير",ROUND(C11*25%,2),IF(BN11="كبير ا",ROUND(C11*25%,2),IF(BN11="اولى",ROUND(C11*25%,2),IF(BN11="ثانيه",ROUND(C11*50%,2),IF(BN11="ثالثه",ROUND(C11*75%,2),IF(BN11="م م",ROUND(C11*125%,2))))))),"") -> 104.42 | K11: =IF(BQ11="مدرس",ROUND(C11*50%,2),"") -> 208.83 | L11: 626.49 | N11: 350 | O11: 150 | P11: 300 | Q11: =IF(BN11="","",IF(BN11="كبير ا",375,IF(BN11="كبير",350,IF(BN11="اولى",325,IF(BN11="ثانيه",275,IF(BN11="ثالثه",225,IF(BN11="خامسه",175))))))) -> 325 | S11: 125 | T11: 150 | U11: 120 | W11: 2 | X11: 4 | AH11: =IF(BQ11="مدرس",$AH$9,"") -> 10 | AI11: =SUM(F11:AH11) -> 4129.22 | AK11: =ROUND(BY11*9%,2) -> 370.73 | AM11: =ROUND(BY11*1%,2) -> 41.19 | AN11: =ROUND(BY11*1%,2) -> 41.19 | AO11: 7.9 | AP11: 2.4 | AR11: 73.7 | AS11: 24.9 | AU11: 1.5 | AV11: =IF($BQ11="مدرس",$AV$9,"") -> 4.5 | AW11: =IF($BQ11="مدرس",$AW$9,"") -> 2 | AX11: =IF($BQ11="مدرس",$AX$9,"") -> 0.25 | AY11: =IF($BQ11="مدرس",$AY$9,"") -> 3 | AZ11: =IF($BQ11="مدرس",$AZ$9,"") -> 0.5 | BA11: =IF(BQ11="مدرس",ROUND(F11*7%,2),"") -> 102.8 | BJ11: 0.01 | BK11: =SUM(AJ11:BJ11) -> 676.57 | BL11: =AI11-BK11 -> 3452.65 | BM11: نجلاء حسنى ابراهيم | BN11: اولى | BQ11: مدرس | BU11: =SUM(O11:Q11) -> 775 | BV11: كبير | BW11: كبير | BY11: =SUM(F11:AG11) -> 4119.22
B12: محمد محمد الجمل | C12: 264 | D12: 3 | F12: 1176.92 | G12: 25.52 | H12: =IF(BQ12="مدرس",ROUND(C12*10%,2),"") -> 26.4 | I12: 66 | J12: 132 | K12: 132 | L12: 330 | N12: 375 | O12: 150 | P12: 250 | Q12: 275 | R12: 312.54 | S12: 100 | T12: 165 | U12: 85 | W12: 6 | X12: 4 | AH12: 10 | AI12: 3621.38 | AK12: 325.02 | AM12: 36.11 | AN12: 36.11 | AO12: 7 | AP12: 1.7 | AR12: 35.1 | AS12: 22.2 | AU12: 1.5 | AV12: 4.5 | AW12: 2 | AX12: 0.25 | AY12: 3 | AZ12: 0.5 | BA12: 82.38 | BJ12: 0.01 | BK12: 557.38 | BL12: 3064 | BM12: محمد محمد الجمل | BN12: ثانيه | BQ12: مدرس | BU12: 675 | BV12: اولى | BW12: اولى | BY12: 3611.38
B13: سعدية السعيد عبدالغنى | C13: 258 | D13: 4 | F13: 1137.66 | G13: 24.92 | H13: 25.8 | I13: 64.5 | J13: 129 | K13: 129 | L13: 322.5 | N13: 375 | O13: 150 | P13: 250 | Q13: 275 | R13: 387 | S13: 100 | T13: 165 | U13: 85 | W13: 2 | X13: 4 | AH13: 10 | AI13: 3636.38 | AK13: 326.37 | AM13: 36.26 | AN13: 36.26 | AO13: 7 | AP13: 1.7 | AR13: 36.1 | AS13: 22.5 | AU13: 1.5 | AV13: 4.5 | AW13: 2 | AX13: 0.25 | AY13: 3 | AZ13: 0.5 | BA13: 79.64 | BK13: 557.58 | BL13: 3078.8 | BM13: سعدية السعيد عبدالغنى | BN13: ثانيه | BQ13: مدرس | BU13: 675 | BV13: ثانيه | BW13: ثانيه | BY13: 3626.38
B14: مروه عبدالعزيز بدير | C14: 258 | D14: 5 | F14: 1131.33 | G14: 24.92 | H14: 25.8 | I14: 64.5 | J14: 129 | K14: 129 | L14: 322.5 | N14: 375 | O14: 150 | P14: 250 | Q14: 275 | R14: 387 | S14: 100 | T14: 165 | U14: 85 | W14: 2 | X14: 4 | AH14: 10 | AI14: 3630.05 | AK14: 325.8 | AM14: 36.2 | AN14: 36.2 | AO14: 7 | AP14: 1.7 | AR14: 35.8 | AS14: 22.5 | AU14: 1.5 | AV14: 4.5 | AW14: 2 | AX14: 0.25 | AY14: 3 | AZ14: 0.5 | BA14: 79.19 | BJ14: 0.01 | BK14: 556.15 | BL14: 3073.9 | BM14: مروه عبدالعزيز بدير | BN14: ثانيه | BQ14: مدرس | BU14: 675 | BV14: ثالثه | BW14: ثالثه | BY14: 3620.05
B15: نعمه محمد يونس | C15: 258 | D15: 6 | F15: 1131.33 | G15: 24.92 | H15: 25.8 | I15: 64.5 | J15: 129 | K15: 129 | L15: 322.5 | N15: 375 | O15: 150 | P15: 250 | Q15: 275 | R15: 387 | S15: 100 | T15: 165 | U15: 85 | W15: 2 | X15: 4 | AH15: 10 | AI15: 3630.05 | AK15: 325.8 | AM15: 36.2 | AN15: 36.2 | AO15: 7 | AP15: 1.7 | AR15: 35.8 | AS15: 22.5 | AU15: 1.5 | AV15: 4.5 | AW15: 2 | AX15: 0.25 | AY15: 3 | AZ15: 0.5 | BA15: 79.19 | BJ15: 0.01 | BK15: 556.15 | BL15: 3073.9 | BM15: نعمه محمد يونس | BN15: ثانيه | BQ15: مدرس | BU15: 675 | BV15: رابعه | BW15: رابعه | BY15: 3620.05
B16: امل عبد النبى النجار | C16: 246 | D16: 7 | F16: 1046.36 | G16: 24.12 | H16: 24.6 | I16: 61.5 | J16: 123 | K16: 123 | L16: 307.5 | M16: 40 | N16: 375 | O16: 150 | P16: 200 | Q16: 275 | R16: 191 | S16: 100 | T16: 165 | U16: 85 | W16: 2 | X16: 4 | AH16: 10 | AI16: 3307.08 | AK16: 296.74 | AM16: 32.97 | AN16: 32.97 | AO16: 7 | AP16: 1.7 | AR16: 26.7 | AS16: 20.4 | AU16: 1.5 | AV16: 4.5 | AW16: 2 | AX16: 0.25 | AY16: 3 | AZ16: 0.5 | BA16: 73.25 | BK16: 503.48 | BL16: 2803.6 | BM16: امل عبد النبى النجار | BN16: ثانيه | BQ16: مدرس | BU16: 625 | BV16: خامسه | BW16: خامسه | BY16: 3297.08
B17: اميره مصطفى السيد | C17: 250 | D17: 8 | F17: 1077.32 | G17: 24.12 | H17: 25 | I17: 62.5 | J17: 125 | K17: 125 | L17: 312.5 | N17: 375 | O17: 150 | P17: 200 | Q17: 275 | R17: 150 | S17: 100 | T17: 165 | U17: 85 | W17: 2 | X17: 4 | Y17: 62.5 | AH17: 10 | AI17: 3329.94 | AK17: 298.79 | AM17: 33.2 | AN17: 33.2 | AO17: 7 | AP17: 1.7 | AR17: 27.3 | AS17: 20.45 | AU17: 1.5 | AV17: 4.5 | AW17: 2 | AX17: 0.25 | AY17: 3 | AZ17: 0.5 | BA17: 75.41 | BJ17: 0.04 | BK17: 508.84 | BL17: 2821.1 | BM17: اميره مصطفى السيد | BN17: ثانيه | BQ17: مدرس | BU17: 625 | BV17: سادسه | BW17: سادسه | BY17: 3319.94
B18: رباب محمود النجار | C18: 246 | D18: 9 | F18: 1046.63 | G18: 24.12 | H18: 24.6 | I18: 61.5 | J18: 123 | K18: 123 | L18: 307.5 | N18: 375 | O18: 150 | P18: 200 | Q18: 275 | R18: 191 | S18: 100 | T18: 165 | U18: 85 | W18: 2 | X18: 4 | AH18: 10 | AI18: 3267.35 | AK18: 293.16 | AM18: 32.57 | AN18: 32.57 | AO18: 7 | AP18: 1.7 | AR18: 25.7 | AS18: 20.1 | AU18: 1.5 | AV18: 4.5 | AW18: 2 | AX18: 0.25 | AY18: 3 | AZ18: 0.5 | BA18: 73.26 | BJ18: 0.04 | BK18: 497.85 | BL18: 2769.5 | BM18: رباب محمود النجار | BN18: ثانيه | BQ18: مدرس | BU18: 625 | BY18: 3257.35
B19: مروى ناجى سليمان | C19: 246 | D19: 10 | F19: 1029.85 | G19: 4.8 | H19: 4.8 | I19: 61.5 | J19: 184.5 | K19: 123 | L19: 246 | N19: 400 | O19: 150 | P19: 200 | Q19: 225 | R19: 252 | S19: 75 | T19: 185 | U19: 65 | W19: 2 | X19: 4 | AH19: 10 | AI19: 3222.45 | AK19: 289.12 | AM19: 32.12 | AN19: 32.12 | AO19: 6.5 | AP19: 1.3 | AR19: 24.4 | AS19: 19.8 | AU19: 1.5 | AV19: 4.5 | AW19: 2 | AX19: 0.25 | AY19: 3 | AZ19: 0.5 | BA19: 72.09 | BK19: 489.2 | BL19: 2733.25 | BM19: مروى ناجى سليمان | BN19: ثالثه | BQ19: مدرس | BU19: 575 | BY19: 3212.45
B20: مروه حمدى عزالعرب | C20: 249 | D20: 11 | F20: 1043.78 | G20: 24.12 | H20: 24.9 | I20: 62.25 | J20: 186.75 | K20: 124.5 | O20: 150 | P20: 200 | Q20: 225 | R20: 572 | S20: 75 | T20: 185 | U20: 65 | W20: 2 | X20: 4 | AE20: 227.83 | AF20: 385 | AG20: 200 | AH20: 10 | AI20: 3767.13 | AK20: 338.14 | AM20: 37.57 | AN20: 37.57 | AO20: 6.5 | AP20: 1.3 | AR20: 40 | AS20: 23.85 | AU20: 1.5 | AV20: 4.5 | AW20: 2 | AX20: 0.25 | AY20: 3 | AZ20: 0.5 | BA20: 73.06 | BJ20: 0.04 | BK20: 569.78 | BL20: 3197.35 | BM20: مروه حمدى عزالعرب | BN20: ثالثه | BQ20: مدرس | BU20: 575 | BY20: 3757.13
B21: حامد ابوبكر شلبى | C21: 246 | D21: 12 | F21: 1006.15 | G21: 4.8 | H21: 4.8 | I21: 61.5 | K21: 123 | L21: 246 | O21: 150 | P21: 200 | Q21: 225 | R21: 153 | S21: 75 | T21: 185 | U21: 65 | W21: 6 | X21: 4 | AH21: 10 | AI21: 2519.25 | AK21: 225.83 | AM21: 25.09 | AN21: 25.09 | AO21: 6.5 | AP21: 1.3 | AR21: 3.5 | AS21: 14.65 | AU21: 1 | AV21: 4.5 | AW21: 2 | AX21: 0.25 | AY21: 3 | AZ21: 0.5 | BA21: 70.43 | BJ21: 0.01 | BK21: 383.65 | BL21: 2135.6 | BM21: حامد ابوبكر شلبى | BN21: ثالثه | BQ21: مدرس | BU21: 575 | BY21: 2509.25
B22: ناديه مسعد محمود | D22: 13 | H22: =IF(BQ22="مدرس",TRUNC(C22*10%,2),"") ->  | N22: =IF(BQ22="مدرس",IF(BN22="كبير ا",300,IF(BN22="كبير",325,IF(BN22="اولى",350,IF(BN22="ثانيه",375,IF(BN22="ثالثه",400,""))))),"") ->  | O22: 150 | P22: 300 | Q22: 325 | V22: 85 | AA22: 2852.14 | AB22: 303.41 | AD22: 64.44 | AI22: 4079.99 | AK22: 367.2 | AM22: 40.8 | AN22: 40.8 | AO22: 5 | AR22: 41.9 | AS22: 29.65 | AU22: 2 | BJ22: 0.04 | BK22: 527.39 | BL22: 3552.6 | BM22: ناديه مسعد محمود | BN22: اولى | BU22: 775 | BY22: 4079.99
B23: فاطمه فتح الله عبداللطيف | D23: 14 | O23: 150 | P23: 250 | Q23: 275 | V23: 65 | AA23: 2382.14 | AB23: 234.72 | AD23: 48.89 | AI23: 3405.75 | AK23: 306.52 | AM23: 34.06 | AN23: 34.06 | AO23: 5 | AR23: 32.5 | AS23: 24.8 | AU23: 1.5 | BJ23: 0.01 | BK23: 438.45 | BL23: 2967.3 | BM23: فاطمه فتح الله عبداللطيف | BN23: ثانيه | BU23: 675 | BY23: 3405.75
B24: ممدوح عبدالواحد عبدالعزيز | D24: 15 | O24: 150 | P24: 200 | Q24: 225 | V24: 55 | AA24: 2473.98 | AB24: 247.52 | AD24: 53.33 | AI24: 3404.83 | AK24: 306.43 | AM24: 34.05 | AN24: 34.05 | AO24: 5 | AR24: 32.5 | AS24: 24.8 | AU24: 1.5 | BK24: 438.33 | BL24: 2966.5 | BM24: ممدوح عبدالواحد عبدالعزيز | BN24: ثالثه | BU24: 575 | BY24: 3404.83
B25: احمد ابراهيم الغريب | D25: 16 | O25: 150 | P25: 200 | Q25: 225 | R25: 479 | V25: 55 | AA25: 1675.64 | AB25: 140.4 | AC25: 100 | AD25: 27.78 | AI25: 3052.82 | AK25: 274.75 | AM25: 30.53 | AN25: 30.53 | AO25: 5 | AR25: 19.5 | AS25: 21.55 | AU25: 1.5 | BJ25: 0.01 | BK25: 383.37 | BL25: 2669.45 | BM25: احمد ابراهيم الغريب | BN25: ثالثه | BU25: 575 | BY25: 3052.82
B26: اسماعيل عبدالمجيد سراج الدين | D26: 17 | O26: 150 | P26: 200 | Q26: 225 | R26: 479 | V26: 55 | AA26: 1675.64 | AB26: 140.4 | AC26: 100 | AD26: 27.78 | AI26: 3052.82 | AK26: 274.75 | AM26: 30.53 | AN26: 30.53 | AO26: 5 | AR26: 17.2 | AS26: 21.55 | AT26: 70 | AU26: 1.5 | BJ26: 0.01 | BK26: 451.07 | BL26: 2601.75 | BM26: اسماعيل عبدالمجيد سراج الدين | BN26: ثالثه | BU26: 575 | BY26: 3052.82
B27: السعيد احمد السعيد | D27: 18 | O27: 150 | P27: 150 | Q27: 175 | R27: 180 | V27: 50 | AA27: 1595.64 | AB27: 132.57 | AC27: 100 | AD27: 26.67 | AI27: 2559.88 | AK27: 230.39 | AM27: 25.6 | AN27: 25.6 | AO27: 5 | AR27: 4 | AS27: 17.9 | AU27: 1 | BJ27: 0.04 | BK27: 309.53 | BL27: 2250.35 | BM27: السعيد احمد السعيد | BN27: خامسه | BU27: 475 | BY27: 2559.88
AI28: 0
AI29: 0
F30: =SUM(F10:F27) -> 13846.18 | G30: 287.65 | H30: 299.6 | I30: 849.25 | J30: 1480.25 | K30: 1698.49 | L30: 4145.55 | M30: 40 | N30: 3700 | O30: 2700 | P30: 4100 | Q30: 4700 | R30: 4120.54 | S30: 1215 | T30: 2005 | U30: 1050 | V30: 365 | W30: 36 | X30: 48 | Y30: 177.08 | Z30: 0 | AA30: 12655.18 | AB30: 1199.02 | AC30: =SUM(AC10:AC29) -> 300 | AD30: 248.89 | AE30: 227.83 | AF30: 385 | AG30: 200 | AH30: 120 | AI30: 62199.51 | AJ30: 0 | AK30: 5587.12 | AL30: 0 | AM30: =TRUNC(SUM(AM10:AM27),2) -> 620.78 | AN30: =TRUNC(SUM(AN10:AN27),2) -> 620.78 | AO30: =SUM(AO10:AO27) -> 115.4 | AP30: 21 | AQ30: 0 | AR30: 604.8 | AS30: 402.1 | AT30: 70 | AU30: 27 | AV30: 54 | AW30: 24 | AX30: 3 | AY30: 36 | AZ30: 6 | BA30: 969.22 | BB30: 0 | BC30: 0 | BD30: 0 | BE30: 0 | BF30: 0 | BG30: 0 | BH30: 50 | BJ30: =SUM(BJ10:BJ27) -> 0.31 | BK30: =SUM(BK10:BK27) -> 9211.51 | BL30: =SUM(BL10:BL27) -> 52988

Sheet ثانوى1
A5: 1 | B5: 2 | C5: 3 | D5: 4 | E5: 5 | F5: 6 | G5: 7 | H5: 8 | I5: 9 | J5: 10 | K5: 11 | L5: 12 | M5: 13 | N5: 14 | O5: 15 | P5: 16 | Q5: 17 | R5: 18 | S5: 19 | T5: 20 | U5: 21 | V5: 22 | W5: 23 | X5: 24 | Y5: 25 | AA5: 26 | AB5: 27 | AD5: 28 | AE5: 29 | AF5: 30 | AG5: 31 | AH5: 32 | AI5: 33 | AJ5: 34 | AK5: 35 | AL5: 36 | AM5: 37 | AN5: 38 | AO5: 39 | AP5: 40 | AQ5: 41 | AR5: 42 | AS5: 43 | AT5: 44 | AU5: 45 | AV5: 46 | AW5: 47 | AX5: 48 | AY5: 49 | AZ5: 50 | BA5: 51 | BB5: 52 | BC5: 53 | BD5: 54 | BE5: 55 | BF5: 56 | BG5: 57 | BH5: 58 | BI5: 59 | BJ5: 60 | BK5: 61 | BL5: 62 | BM5: 63 | BN5: 64 | BO5: 65 | BP5: 66 | BQ5: 67 | BR5: 68 | BS5: 69 | BT5: 70 | BU5: 71 | BV5: 72 | BW5: 73 | BX5: 74 | BY5: 75 | BZ5: 76 | CA5: 77 | CB5: 78 | CC5: 79
F6: ثانوى | AV6: 4.5 | BJ6: ثانوى
D7: مسلسل | E7: الحالة الاجتماعية | F7: المرتب الأساسى | G7: =اعدادى!G7 -> ابريل2022 | AJ7: جـــــــــــــــــــــــــــــــــــــــــــــــــــــــــــــــارى ضرائـــــــــــــــــــــــــــــــــــــــــــــــــــــــب | AT7: إستحقــــــــــــــــــــــــــــاق هيئــــــــــــــــــــــــــــــــــــــــــــــــــــــــــــــــــــــــــــــات وشــــــــــــــــــــــــــــــــــــــــــــــــــــــركـــــــــــــــــــــــــــــــــــــات | BK7: جملة الاستقطاعات | BL7: صافى المقتضى صرفه | BM7: اسم الموظف | BN7: الدرجة
C8: اساسى 2014 | G8: 10% 2014 | H8: 10% 2015 | I8: حافز 25% | J8: أداء | K8: كادر | L8: كادرين | M8: تطوير | N8: أعباء | O8: 2019 | P8: 2020 | Q8: 2021 | R8: حافز تكميلى | S8: بدل تعليم | T8: حافز أداء | U8: مكافئة مدرس | V8: مكافئة ادارى | W8: اجتماعية | X8: إضافية | Y8: حافز دمج | Z8: حافز مدير وكيل | AA8: الأجر الوظيفى | AB8: الأجر المكمل | AC8: أجر مكمل 5% 2022 | AD8: الحافز التعويضى | AE8: 0.915 | AF8: الحد الأدنى | AG8: دكتوراه | AH8: المنحة | AI8: جملة المبالغ المستحقة | AJ8: حصة الحكومة 12% | AK8: إشتراك موظف 9% | AL8: أقساط المدة السابقة | AM8: 0.01 | AN8: إدخار 1% | AO8: 2% رعاية | AP8: 0.02 | AQ8: بدل إعارة | AR8: كسب عمل | AS8: دمغة عادية | AT8: قسط شريحة | AU8: صندوق الشهداء | AV8: نقابة مهن تعليمية | AW8: رعاية صحية | AX8: تأمين اجتماعى | AY8: نادى معلمين | AZ8: رابطة جامعيين | BA8: صندوق زمالة | BB8: مهن تطبيقية | BC8: قرض نقابة مهن تعليمية | BD8: لجنة نقابة | BE8: صندوق زمالة | BF8: بحث علمى | BG8: مهن زراعية | BH8: مهن اجتماعية | BI8: استبعاد حافز أداء | BJ8: كسر القرش | BS8: مقطوعة مجمعة
AH9: 10 | AV9: 4.5 | AW9: 2 | AX9: 0.25 | AY9: 3 | AZ9: 0.5
B10: =BM10 -> علاء عبدالكريم محمود | C10: 643.19 | D10: 1 | F10: 2003.34 | G10: 60.43 | H10: =IF(BQ10="مدرس",ROUND(C10*10%,2),"") -> 64.32 | I10: =IF(BQ10="مدرس",ROUND(C10*25%,2),"") -> 160.8 | J10: =IF(BQ10="مدرس",ROUND(IF(BN10="كبير",C10*25%,IF(BN10="كبير ا",C10*25%,IF(BN10="اولى",C10*25%,IF(BN10="ثانيه",C10*50%,IF(BN10="ثالثه",C10*75%,IF(BN10="م م",C10*125%,)))))),2),"") -> 160.8 | K10: =IF(BQ10="مدرس",ROUND(C10*50%,2),"") -> 321.6 | L10: 1286.36 | N10: =IF(BQ10="مدرس",IF(BN10="كبير ا",300,IF(BN10="كبير",325,IF(BN10="اولى",350,IF(BN10="ثانيه",375,IF(BN10="ثالثه",400,""))))),"") -> 300 | O10: 150 | P10: 350 | Q10: =IF(BN10="","",IF(BN10="كبير ا",375,IF(BN10="كبير",350,IF(BN10="اولى",325,IF(BN10="ثانيه",275,IF(BN10="ثالثه",225,IF(BN10="خامسه",175))))))) -> 375 | S10: =IF(BQ10="مدرس",IF(BN10="كبير ا",180,IF(BN10="كبير",165,IF(BN10="اولى",125,IF(BN10="ثانيه",100,IF(BN10="ثالثه",75,))))),"") -> 180 | T10: =IF(BQ10="مدرس",IF(BN10="كبير ا",140,IF(BN10="كبير",145,IF(BN10="اولى",150,IF(BN10="ثانيه",165,IF(BN10="ثالثه",185,))))),"") -> 140 | U10: =IF(BQ10="مدرس",IF(BN10="كبير ا",155,IF(BN10="كبير",140,IF(BN10="اولى",120,IF(BN10="ثانيه",85,IF(BN10="ثالثه",65,))))),"") -> 155 | V10: =IF(BQ10="مدرس","",IF(BN10="اولى",85,IF(BN10="ثانيه",65,IF(BN10="ثالثه",55,IF(BN10="رابعه",50,IF(BN10="خامسه",50,)))))) ->  | W10: 6 | X10: 4 | Z10: 250 | AH10: =IF(BQ10="مدرس",$AH$9,"") -> 10 | AI10: =ROUND(SUM(F10:AH10),2) -> 5977.65 | AK10: =ROUND(BY10*9%,2) -> 537.09 | AM10: =ROUND(BY10*1%,2) -> 59.68 | AN10: =ROUND(BY10*1%,2) -> 59.68 | AO10: 9.5 | AP10: =IF(BQ10="مدرس",IF(BN10="كبير ا",3.1,IF(BN10="كبير",2.8,IF(BN10="اولى",2.4,IF(BN10="ثانيه",1.7,IF(BN10="ثالثه",1.3,))))),"") -> 3.1 | AR10: 178 | AS10: 34.95 | AU10: 2.5 | AV10: =IF($BQ10="مدرس",$AV$9,"") -> 4.5 | AW10: =IF($BQ10="مدرس",$AW$9,"") -> 2 | AX10: =IF($BQ10="مدرس",$AX$9,"") -> 0.25 | AY10: =IF($BQ10="مدرس",$AY$9,"") -> 3 | AZ10: =IF($BQ10="مدرس",$AZ$9,"") -> 0.5 | BA10: =IF(BQ10="مدرس",ROUND(F10*7%,2),"") -> 140.23 | BJ10: 0.02 | BK10: =SUM(AJ10:BJ10) -> 1035 | BL10: =AI10-BK10 -> 4942.65 | BM10: علاء عبدالكريم محمود | BN10: كبير ا | BQ10: مدرس | BS10: =SUM(O10:Q10) -> 875 | BV10: كبير ا | BY10: =SUM(F10:AG10) -> 5967.65
B11: =BM11 -> أرزاق طلعت أحمد عبد الله | C11: 657.44 | D11: 2 | F11: 2036.89 | G11: 61.78 | H11: 65.74 | I11: =IF(BQ11="مدرس",ROUND(C11*25%,2),"") -> 164.36 | J11: 164.36 | K11: 328.72 | L11: 1314.88 | N11: 300 | O11: 150 | P11: 350 | Q11: =IF(BN11="","",IF(BN11="كبير ا",375,IF(BN11="كبير",350,IF(BN11="اولى",325,IF(BN11="ثانيه",275,IF(BN11="ثالثه",225,IF(BN11="خامسه",175))))))) -> 375 | S11: 180 | T11: 140 | U11: 155 | W11: 2 | X11: 4 | AH11: =IF(BQ11="مدرس",$AH$9,"") -> 10 | AI11: =ROUND(SUM(F11:AH11),2) -> 5802.73 | AK11: =ROUND(BY11*9%,2) -> 521.35 | AM11: =ROUND(BY11*1%,2) -> 57.93 | AN11: =ROUND(BY11*1%,2) -> 57.93 | AO11: 9.5 | AP11: 3.1 | AR11: 181 | AS11: 35.4 | AU11: 2.5 | AV11: =IF($BQ11="مدرس",$AV$9,"") -> 4.5 | AW11: =IF($BQ11="مدرس",$AW$9,"") -> 2 | AX11: =IF($BQ11="مدرس",$AX$9,"") -> 0.25 | AY11: =IF($BQ11="مدرس",$AY$9,"") -> 3 | AZ11: =IF($BQ11="مدرس",$AZ$9,"") -> 0.5 | BA11: =IF(BQ11="مدرس",ROUND(F11*7%,2),"") -> 142.58 | BJ11: 0.04 | BK11: =SUM(AJ11:BJ11) -> 1021.58 | BL11: =AI11-BK11 -> 4781.15 | BM11: أرزاق طلعت أحمد عبد الله | BN11: كبير ا | BQ11: مدرس | BS11: 875 | BV11: ثانيه | BY11: 5792.73
B12: محمد سعد السعداوى | C12: 576.69 | D12: 3 | F12: 1821.07 | G12: 53.6 | H12: 57.67 | I12: 144.17 | J12: 144.17 | K12: 288.35 | L12: 1153.37 | N12: 300 | O12: 150 | P12: 325 | Q12: 375 | S12: 180 | T12: 140 | U12: 155 | W12: 6 | X12: 4 | Z12: 150 | AH12: 10 | AI12: 5457.4 | AK12: 490.27 | AM12: 54.47 | AN12: 54.47 | AO12: 9.5 | AP12: 3.1 | AR12: 156 | AS12: 32.5 | AU12: 2 | AV12: 4.5 | AW12: 2 | AX12: 0.25 | AY12: 3 | AZ12: 0.5 | BA12: 127.47 | BH12: 50 | BJ12: 0.02 | BK12: 990.05 | BL12: 4467.35 | BM12: محمد سعد السعداوى | BN12: كبير ا | BQ12: مدرس | BS12: 850 | BV12: ثالثه | BY12: 5447.4
B13: احمد فتحى امام | C13: 462.97 | D13: 4 | F13: 1563.14 | G13: 43.01 | H13: 46.3 | I13: 115.74 | J13: 115.74 | K13: 231.49 | L13: 810.19 | N13: 325 | O13: 150 | P13: 300 | Q13: 350 | S13: 165 | T13: 145 | U13: 140 | W13: 6 | X13: 4 | AH13: 10 | AI13: 4520.61 | AK13: 405.95 | AM13: 45.11 | AN13: 45.11 | AO13: 9 | AP13: 2.8 | AR13: 90.2 | AS13: 27.5 | AU13: 2 | AV13: 4.5 | AW13: 2 | AX13: 0.25 | AY13: 3 | AZ13: 0.5 | BA13: 109.42 | BJ13: 0.02 | BK13: 747.36 | BL13: 3773.25 | BM13: احمد فتحى امام | BN13: كبير | BQ13: مدرس | BS13: 800 | BV13: خامسه | BY13: 4510.61
B14: ابراهيم العرابي زرق احمد | C14: 654.98 | D14: 5 | F14: 2036.92 | G14: 61.59 | H14: 65.5 | I14: 163.75 | J14: 163.75 | K14: 327.49 | L14: 1146.21 | N14: 325 | O14: 150 | P14: 325 | Q14: 350 | S14: 165 | T14: 145 | U14: 140 | W14: 6 | X14: 4 | AH14: 10 | AI14: 5585.21 | AK14: 501.77 | AM14: 55.75 | AN14: 55.75 | AO14: 9 | AP14: 2.8 | AR14: 170 | AS14: 33.75 | AU14: 2.5 | AV14: 4.5 | AW14: 2 | AX14: 0.25 | AY14: 3 | AZ14: 0.5 | BA14: 142.58 | BJ14: 0.01 | BK14: 984.16 | BL14: 4601.05 | BM14: ابراهيم العرابي زرق احمد | BN14: كبير | BQ14: مدرس | BS14: 825 | BV14: سادسه | BY14: 5575.21
B15: محمد العرابى رزق | C15: 545.65 | D15: 6 | F15: 1768.31 | G15: 51.39 | H15: 54.57 | I15: 136.41 | J15: 136.41 | K15: 272.83 | L15: 954.87 | N15: 325 | O15: 150 | P15: 325 | Q15: 350 | S15: 165 | T15: 145 | U15: 140 | W15: 6 | X15: 4 | AH15: 10 | AI15: 4994.79 | AK15: 448.63 | AM15: 49.85 | AN15: 49.85 | AO15: 9 | AP15: 2.8 | AR15: 139 | AS15: 30.55 | AU15: 2 | AV15: 4.5 | AW15: 2 | AX15: 0.25 | AY15: 3 | AZ15: 0.5 | BA15: 123.78 | BH15: 50 | BJ15: 0.03 | BK15: 915.74 | BL15: 4079.05 | BM15: محمد العرابى رزق | BN15: كبير | BQ15: مدرس | BS15: 825 | BY15: 4984.79
B16: حامد عبدالرحمن عاصى | C16: 526.62 | D16: 7 | F16: 1712.32 | G16: 49.48 | H16: 52.66 | I16: 131.66 | J16: 131.66 | K16: 263.31 | L16: 921.58 | N16: 325 | O16: 150 | P16: 300 | Q16: 350 | S16: 165 | T16: 145 | U16: 140 | W16: 6 | X16: 4 | AH16: 10 | AI16: 4857.67 | AK16: 436.29 | AM16: 48.48 | AN16: 48.48 | AO16: 7.9 | AP16: 2.8 | AR16: 129 | AS16: 29.1 | AU16: 2 | AV16: 4.5 | AW16: 2 | AX16: 0.25 | AY16: 3 | AZ16: 0.5 | BA16: 119.86 | BJ16: 0.01 | BK16: 834.17 | BL16: 4023.5 | BM16: حامد عبدالرحمن عاصى | BN16: كبير | BQ16: مدرس | BS16: 800 | BY16: 4847.67
B17: ممدوح احمد الغريب | C17: 592.2 | D17: 8 | F17: 1860.15 | G17: 55.65 | H17: 59.22 | I17: 148.05 | J17: 296.1 | K17: 296.1 | L17: 740.25 | N17: 375 | O17: 150 | P17: 250 | Q17: 275 | S17: 100 | T17: 165 | U17: 85 | W17: 6 | X17: 4 | AH17: 10 | AI17: 4875.52 | AK17: 437.9 | AM17: 48.66 | AN17: 48.66 | AO17: 7 | AP17: 1.7 | AR17: 132 | AS17: 29.1 | AU17: 2 | AV17: 4.5 | AW17: 2 | AX17: 0.25 | AY17: 3 | AZ17: 0.5 | BA17: 130.21 | BJ17: 0.04 | BK17: 847.52 | BL17: 4028 | BM17: ممدوح احمد الغريب | BN17: ثانيه | BQ17: مدرس | BS17: 675 | BY17: 4865.52
B18: =BM18 -> أم الخير المغازي محمد العزب | C18: 262 | D18: 9 | F18: 1166.61 | G18: 25.32 | H18: =IF(BQ18="مدرس",ROUND(C18*10%,2),"") -> 26.2 | I18: =IF(BQ18="مدرس",ROUND(C18*25%,2),"") -> 65.5 | J18: =IF(BQ18="مدرس",ROUND(IF(BN18="كبير",C18*25%,IF(BN18="كبير ا",C18*25%,IF(BN18="اولى",C18*25%,IF(BN18="ثانيه",C18*50%,IF(BN18="ثالثه",C18*75%,IF(BN18="م م",C18*125%,)))))),2),"") -> 131 | K18: =IF(BQ18="مدرس",ROUND(C18*50%,2),"") -> 131 | L18: 327.5 | N18: =IF(BQ18="مدرس",IF(BN18="كبير ا",300,IF(BN18="كبير",325,IF(BN18="اولى",350,IF(BN18="ثانيه",375,IF(BN18="ثالثه",400,""))))),"") -> 375 | O18: 150 | P18: 250 | Q18: =IF(BN18="","",IF(BN18="كبير ا",375,IF(BN18="كبير",350,IF(BN18="اولى",325,IF(BN18="ثانيه",275,IF(BN18="ثالثه",225,IF(BN18="خامسه",175))))))) -> 275 | R18: 336 | S18: =IF(BQ18="مدرس",IF(BN18="كبير ا",180,IF(BN18="كبير",165,IF(BN18="اولى",125,IF(BN18="ثانيه",100,IF(BN18="ثالثه",75,))))),"") -> 100 | T18: =IF(BQ18="مدرس",IF(BN18="كبير ا",140,IF(BN18="كبير",145,IF(BN18="اولى",150,IF(BN18="ثانيه",165,IF(BN18="ثالثه",185,))))),"") -> 165 | U18: =IF(BQ18="مدرس",IF(BN18="كبير ا",155,IF(BN18="كبير",140,IF(BN18="اولى",120,IF(BN18="ثانيه",85,IF(BN18="ثالثه",65,))))),"") -> 85 | V18: =IF(BQ18="مدرس","",IF(BN18="اولى",85,IF(BN18="ثانيه",65,IF(BN18="ثالثه",55,IF(BN18="رابعه",50,IF(BN18="خامسه",50,)))))) ->  | W18: 2 | X18: 4 | AH18: =IF(BQ18="مدرس",$AH$9,"") -> 10 | AI18: =ROUND(SUM(F18:AH18),2) -> 3625.13 | AK18: =ROUND(BY18*9%,2) -> 325.36 | AM18: =ROUND(BY18*1%,2) -> 36.15 | AN18: =ROUND(BY18*1%,2) -> 36.15 | AO18: 7 | AP18: =IF(BQ18="مدرس",IF(BN18="كبير ا",3.1,IF(BN18="كبير",2.8,IF(BN18="اولى",2.4,IF(BN18="ثانيه",1.7,IF(BN18="ثالثه",1.3,))))),"") -> 1.7 | AR18: 35.8 | AS18: 22.35 | AU18: 1.5 | AV18: 4.5 | AW18: 2 | AX18: 0.25 | AY18: 3 | AZ18: 0.5 | BA18: 81.66 | BJ18: 0.01 | BK18: =SUM(AJ18:BJ18) -> 557.93 | BL18: =AI18-BK18 -> 3067.2 | BM18: أم الخير المغازي محمد العزب | BN18: ثانيه | BQ18: مدرس | BS18: =SUM(O18:Q18) -> 675 | BY18: =SUM(F18:AG18) -> 3615.13
B19: نبيله محمود ابراهيم | C19: 253 | D19: 10 | F19: 1081.91 | G19: 24.42 | H19: 25.3 | I19: 63.25 | J19: 126.5 | K19: 126.5 | L19: 316.25 | N19: 375 | O19: 150 | P19: 200 | Q19: 275 | R19: 137 | S19: 100 | T19: 165 | U19: 85 | W19: 2 | X19: 4 | AH19: 10 | AI19: 3267.13 | AK19: 293.14 | AM19: 32.57 | AN19: 32.57 | AO19: 7 | AP19: 1.7 | AR19: 25.7 | AS19: 20 | AU19: 1.5 | AV19: 4.5 | AW19: 2 | AX19: 0.25 | AY19: 3 | AZ19: 0.5 | BA19: 75.73 | BJ19: 0.02 | BK19: 500.18 | BL19: 2766.95 | BM19: نبيله محمود ابراهيم | BN19: ثانيه | BQ19: مدرس | BS19: 625 | BY19: 3257.13
B20: محمود مصطفى محمود | C20: 264 | D20: 11 | F20: 1141.53 | G20: 24.92 | H20: 25.8 | I20: 66 | J20: 132 | K20: 132 | L20: 330 | N20: 375 | O20: 150 | P20: 250 | Q20: 275 | R20: 338 | S20: 100 | T20: 165 | U20: 85 | W20: 6 | X20: 4 | AH20: 10 | AI20: 3610.25 | AK20: 324.02 | AM20: 36 | AN20: 36 | AO20: 7 | AP20: 1.7 | AR20: 35.4 | AS20: 22.35 | AU20: 1.5 | AV20: 4.5 | AW20: 2 | AX20: 0.25 | AY20: 3 | AZ20: 0.5 | BA20: 79.91 | BJ20: 0.02 | BK20: 554.15 | BL20: 3056.1 | BM20: محمود مصطفى محمود | BN20: ثانيه | BQ20: مدرس | BS20: 675 | BY20: 3600.25
B21: لبنى عبدالرحيم يوسف العواد | C21: 246 | D21: 12 | F21: 1029.85 | G21: 4.8 | H21: 4.8 | I21: 61.5 | J21: 184.5 | K21: 123 | L21: 246 | N21: 400 | O21: 150 | P21: 200 | Q21: 225 | R21: 248 | S21: 75 | T21: 185 | U21: 65 | W21: 2 | X21: 4 | AH21: 10 | AI21: 3218.45 | AK21: 288.76 | AM21: 32.08 | AN21: 32.08 | AO21: 6.5 | AP21: 1.3 | AR21: 24.4 | AS21: 19.8 | AU21: 1.5 | AV21: 4.5 | AW21: 2 | AX21: 0.25 | AY21: 3 | AZ21: 0.5 | BA21: 72.09 | BJ21: 0.04 | BK21: 488.8 | BL21: 2729.65 | BM21: لبنى عبدالرحيم يوسف العواد | BN21: ثالثه | BQ21: مدرس | BS21: 575 | BY21: 3208.45
B22: نجلاء جلال محمود | C22: 246 | D22: 13 | F22: 1029.85 | G22: 4.8 | H22: 4.8 | I22: 61.5 | J22: 184.5 | K22: 123 | L22: 246 | N22: 400 | O22: 150 | P22: 200 | Q22: 225 | R22: 248 | S22: 75 | T22: 185 | U22: 65 | W22: 2 | X22: 4 | AH22: 10 | AI22: 3218.45 | AK22: 288.76 | AM22: 32.08 | AN22: 32.08 | AO22: 6.5 | AP22: 1.3 | AR22: 24.4 | AS22: 19.8 | AU22: 1.5 | AV22: 4.5 | AW22: 2 | AX22: 0.25 | AY22: 3 | AZ22: 0.5 | BA22: 72.09 | BJ22: 0.04 | BK22: 488.8 | BL22: 2729.65 | BM22: نجلاء جلال محمود | BN22: ثالثه | BQ22: مدرس | BS22: 575 | BY22: 3208.45
B24: 0 | H24: =IF(BQ24="مدرس",ROUND(C24*10%,2),"") ->  | I24: =IF(BQ24="مدرس",C24*25%,"") ->  | V24: 0 | AH24: =IF(BQ24="مدرس",AH23,"") ->  | AI24: 0 | AK24: 0 | AM24: 0 | AN24: 0 | BA24: =IF(BQ24="مدرس",TRUNC(F24*7%,2),"") -> 
B25: 0 | F25: =SUM(F10:F23) -> 20251.89 | G25: 521.19 | H25: 552.88 | I25: 1482.69 | J25: 2071.49 | K25: 2965.39 | L25: 9793.46 | M25: 0 | N25: 4500 | O25: 1950 | P25: 3625 | Q25: 4075 | R25: 1307 | S25: 1750 | T25: 2030 | U25: 1495 | V25: 0 | W25: 58 | X25: 52 | Y25: 0 | Z25: 400 | AA25: 0 | AB25: 0 | AD25: 0 | AE25: 0 | AF25: 0 | AG25: 0 | AH25: 130 | AI25: 59010.99 | AJ25: 0 | AK25: 5299.29 | AL25: 0 | AM25: 588.81 | AN25: =SUM(AN10:AN23) -> 588.81 | AO25: 104.4 | AP25: 29.9 | AQ25: 0 | AR25: 1320.9 | AS25: 357.15 | AT25: 0 | AU25: 25 | AV25: 58.5 | AW25: 26 | AX25: 3.25 | AY25: 39 | AZ25: 6.5 | BA25: 1417.61 | BB25: 0 | BC25: 0 | BD25: 0 | BE25: 0 | BF25: 0 | BG25: 0 | BH25: 100 | BJ25: =SUM(BJ10:BJ24) -> 0.32 | BK25: =TRUNC(SUM(BK10:BK24),2) -> 9965.44 | BL25: =SUM(BL10:BL24) -> 49045.55
B26: 0
B27: 0 | F27: =اعدادى!F35 -> 35769.72 | G27: =اعدادى!G35 -> 994.98 | H27: =اعدادى!H35 -> 1061.08 | I27: =اعدادى!I35 -> 2652.7 | J27: =اعدادى!J35 -> 2975.1 | K27: =اعدادى!K35 ->  | L27: =اعدادى!L35 -> 18485.48 | M27: =اعدادى!M35 -> 0 | N27: =اعدادى!N35 -> 7300 | O27: =اعدادى!O35 -> 3300 | P27: =اعدادى!P35 -> 6775 | Q27: =اعدادى!Q35 -> 7450 | R27: =اعدادى!R35 -> 1933 | S27: =اعدادى!S35 -> 3325 | T27: =اعدادى!T35 -> 3260 | U27: =اعدادى!U35 -> 2875 | V27: =اعدادى!V35 -> 0 | W27: =اعدادى!W35 -> 78 | X27: =اعدادى!X35 -> 88 | Y27: =اعدادى!Y35 -> 173.82 | Z27: =اعدادى!Z35 -> 250 | AA27: =اعدادى!AA35 -> 0 | AB27: =اعدادى!AB35 -> 0 | AD27: =اعدادى!AD35 -> 0 | AE27: =اعدادى!AE35 -> 0 | AF27: =اعدادى!AF35 -> 0 | AG27: =اعدادى!AG35 -> 0 | AH27: =اعدادى!AH35 -> 220 | AI27: =اعدادى!AI35 -> 104272.24 | AJ27: =اعدادى!AJ35 -> 0 | AK27: =اعدادى!AK35 -> 9364.67 | AL27: =اعدادى!AL35 -> 2.82 | AM27: =اعدادى!AM35 -> 1040.51 | AN27: =اعدادى!AN35 -> 1040.51 | AO27: =اعدادى!AO35 -> 189.2 | AP27: =اعدادى!AP35 -> 57.5 | AQ27: =اعدادى!AQ35 -> 90 | AR27: =اعدادى!AR35 -> 2427.8 | AS27: =اعدادى!AS35 -> 636.3 | AT27: =اعدادى!AT35 -> 0 | AU27: =اعدادى!AU35 -> 42.5 | AV27: =اعدادى!AV35 -> 99 | AW27: =اعدادى!AW35 -> 44 | AX27: =اعدادى!AX35 -> 5.5 | AY27: =اعدادى!AY35 -> 66 | AZ27: =اعدادى!AZ35 -> 11 | BA27: =اعدادى!BA35 -> 2503.87 | BB27: =اعدادى!BB35 -> 9 | BC27: =اعدادى!BC35 -> 250 | BD27: =اعدادى!BD35 -> 0 | BE27: =اعدادى!BE35 -> 0 | BF27: =اعدادى!BF35 -> 0 | BG27: =اعدادى!BG35 -> 0 | BH27: =اعدادى!BH35 -> 0 | BI27: =اعدادى!BI35 -> 279.3 | BJ27: =اعدادى!BJ35 -> 0.36 | BK27: =اعدادى!BK35 -> 18159.84 | BL27: =اعدادى!BL35 -> 86112.4
B28: 0
B29: 0 | F29: ='اعدادى 1'!F30 -> 13846.18 | G29: ='اعدادى 1'!G30 -> 287.65 | H29: ='اعدادى 1'!H30 -> 299.6 | I29: ='اعدادى 1'!I30 -> 849.25 | J29: ='اعدادى 1'!J30 -> 1480.25 | K29: ='اعدادى 1'!K30 -> 1698.49 | L29: ='اعدادى 1'!L30 -> 4145.55 | M29: ='اعدادى 1'!M30 -> 40 | N29: ='اعدادى 1'!N30 -> 3700 | O29: ='اعدادى 1'!O30 -> 2700 | P29: ='اعدادى 1'!P30 -> 4100 | Q29: ='اعدادى 1'!Q30 -> 4700 | R29: ='اعدادى 1'!R30 -> 4120.54 | S29: ='اعدادى 1'!S30 -> 1215 | T29: ='اعدادى 1'!T30 -> 2005 | U29: ='اعدادى 1'!U30 -> 1050 | V29: ='اعدادى 1'!V30 -> 365 | W29: ='اعدادى 1'!W30 -> 36 | X29: ='اعدادى 1'!X30 -> 48 | Y29: ='اعدادى 1'!Y30 -> 177.08 | Z29: ='اعدادى 1'!Z30 -> 0 | AA29: ='اعدادى 1'!AA30 -> 12655.18 | AB29: ='اعدادى 1'!AB30 -> 1199.02 | AC29: ='اعدادى 1'!AC30 -> 300 | AD29: ='اعدادى 1'!AD30 -> 248.89 | AE29: ='اعدادى 1'!AE30 -> 227.83 | AF29: ='اعدادى 1'!AF30 -> 385 | AG29: ='اعدادى 1'!AG30 -> 200 | AH29: ='اعدادى 1'!AH30 -> 120 | AI29: ='اعدادى 1'!AI30 -> 62199.51 | AJ29: ='اعدادى 1'!AJ30 -> 0 | AK29: ='اعدادى 1'!AK30 -> 5587.12 | AL29: ='اعدادى 1'!AL30 -> 0 | AM29: ='اعدادى 1'!AM30 -> 620.78 | AN29: ='اعدادى 1'!AN30 -> 620.78 | AO29: ='اعدادى 1'!AO30 -> 115.4 | AP29: ='اعدادى 1'!AP30 -> 21 | AQ29: ='اعدادى 1'!AQ30 -> 0 | AR29: ='اعدادى 1'!AR30 -> 604.8 | AS29: ='اعدادى 1'!AS30 -> 402.1 | AT29: ='اعدادى 1'!AT30 -> 70 | AU29: ='اعدادى 1'!AU30 -> 27 | AV29: ='اعدادى 1'!AV30 -> 54 | AW29: ='اعدادى 1'!AW30 -> 24 | AX29: ='اعدادى 1'!AX30 -> 3 | AY29: ='اعدادى 1'!AY30 -> 36 | AZ29: ='اعدادى 1'!AZ30 -> 6 | BA29: ='اعدادى 1'!BA30 -> 969.22 | BB29: ='اعدادى 1'!BB30 -> 0 | BC29: ='اعدادى 1'!BC30 -> 0 | BD29: ='اعدادى 1'!BD30 -> 0 | BE29: ='اعدادى 1'!BE30 -> 0 | BF29: ='اعدادى 1'!BF30 -> 0 | BG29: ='اعدادى 1'!BG30 -> 0 | BH29: ='اعدادى 1'!BH30 -> 50 | BJ29: ='اعدادى 1'!BJ30 -> 0.31 | BK29: ='اعدادى 1'!BK30 -> 9211.51 | BL29: ='اعدادى 1'!BL30 -> 52988 | BM29: ='اعدادى 1'!BM30 -> 0 | BN29: ='اعدادى 1'!BN30 -> 0
B30: 0
B31: 0
B32: 0
F33: =SUM(F25:F32) -> 69867.79 | G33: =SUM(G25:G32) -> 1803.82 | H33: 1913.56 | I33: 4984.64 | J33: 6526.84 | K33: 4663.88 | L33: 32424.49 | M33: 40 | N33: 15500 | O33: 7950 | P33: 14500 | Q33: 16225 | R33: 7360.54 | S33: 6290 | T33: 7295 | U33: 5420 | V33: 365 | W33: 172 | X33: 188 | Y33: 350.9 | Z33: 650 | AA33: 12655.18 | AB33: 1199.02 | AC33: 300 | AD33: 248.89 | AE33: 227.83 | AF33: 385 | AG33: 200 | AH33: 470 | AI33: 225482.74 | AJ33: 0 | AK33: 20251.08 | AL33: 2.82 | AM33: 2250.1 | AN33: 2250.1 | AO33: 409 | AP33: 108.4 | AQ33: 90 | AR33: 4353.5 | AS33: 1395.55 | AT33: 70 | AU33: 94.5 | AV33: 211.5 | AW33: 94 | AX33: 11.75 | AY33: 141 | AZ33: 23.5 | BA33: 4890.7 | BB33: 9 | BC33: 250 | BD33: 0 | BE33: 0 | BF33: 0 | BG33: 0 | BH33: 150 | BI33: =SUM(BI10:BI32) -> 279.3 | BJ33: =SUM(BJ25:BJ32) -> 0.99 | BK33: =SUM(BK25:BK32) -> 37336.79 | BL33: 188145.95

Sheet بنك
A5: 1 | B5: 2 | C5: 3 | D5: 4 | E5: 5 | F5: 6 | G5: 7 | H5: 8 | I5: 9 | J5: 10 | K5: 11 | L5: 12 | M5: 13 | N5: 14 | O5: 15 | P5: 16 | Q5: 17 | R5: 18 | S5: 19 | T5: 20 | U5: 21 | V5: 22 | W5: 23 | X5: 24 | Y5: 25 | AA5: 26 | AB5: 27 | AD5: 28 | AE5: 29 | AF5: 30 | AG5: 31 | AH5: 32 | AI5: 33 | AJ5: 34 | AK5: 35 | AL5: 36 | AM5: 37 | AN5: 38 | AO5: 39 | AP5: 40 | AQ5: 41 | AR5: 42 | AS5: 43 | AT5: 44 | AU5: 45 | AV5: 46 | AW5: 47 | AX5: 48 | AY5: 49 | AZ5: 50 | BA5: 51 | BB5: 52 | BC5: 53 | BD5: 54 | BE5: 55 | BF5: 56 | BG5: 57 | BH5: 58 | BI5: 59 | BJ5: 60 | BK5: 61 | BL5: 62 | BM5: 63 | BN5: 64 | BO5: 65 | BQ5: 66 | BR5: 67 | BS5: 68 | BT5: 69 | BU5: 70 | BV5: 71 | BW5: 72
F6: بنك | BL6: بنك
D7: مسلسل | E7: الحالة الاجتماعية | F7: المرتب الأساسى | G7: =اعدادى!G7 -> ابريل2022 | AJ7: جـــــــــــــــــــــــــــــــــــــــــــــــــــــــــــــــارى ضرائـــــــــــــــــــــــــــــــــــــــــــــــــــــــب | AT7: إستحقــــــــــــــــــــــــــــاق هيئــــــــــــــــــــــــــــــــــــــــــــــــــــــــــــــــــــــــــــــات وشــــــــــــــــــــــــــــــــــــــــــــــــــــــركـــــــــــــــــــــــــــــــــــــات | BK7: جملة الاستقطاعات | BL7: صافى المقتضى صرفه | BM7: اسم الموظف | BN7: الدرجة | BO7: اسم البنك
C8: اساسى 2014 | G8: 10% 2014 | H8: 10% 2015 | I8: حافز 25% | J8: أداء | K8: كادر | L8: كادرين | M8: تطوير | N8: أعباء | O8: 2019 | P8: 2020 | Q8: 2021 | R8: حافز تكميلى | S8: بدل تعليم | T8: حافز أداء | U8: مكافئة مدرس | V8: مكافئة إدارى | W8: اجتماعية | X8: اضافية | Y8: حافز دمج | Z8: حافز مدير وكيل | AA8: الأجر الوظيفى | AB8: الأجر المكمل | AC8: أجر مكمل 5% 2022 | AD8: الحافز التعويضى | AE8: 0.915 | AF8: الحد الأدنى | AG8: دكتوراه | AH8: المنحة | AI8: جملة المبالغ المستحقة | AJ8: حصة الحكومة 12% | AK8: إشتراك موظف 9% | AL8: أقساط المدة السابقة | AM8: 0.01 | AN8: إدخار 1% | AO8: 2% رعاية | AP8: 0.02 | AQ8: بدل إعارة | AR8: كسب عمل | AS8: دمغة عادية | AT8: قسط شريحة | AU8: صندوق الشهداء | AV8: نقابة مهن تعليمية | AW8: رعاية صحية | AX8: تأمين اجتماعى | AY8: نادى معلمين | AZ8: رابطة جامعيين | BA8: صندوق زمالة | BB8: مهن تطبيقية | BC8: نقابة مهن تعليمية | BD8: لجنة نقابة | BE8: صندوق زمالة | BF8: مهن اجتماعية | BG8: مهن زراعية | BH8: جزاءات | BI8: مهن اجتماعية | BJ8: كسر القرش | BS8: مقطوعة مجمعة
AH9: 10 | AO9: 5 | AV9: 4.5 | AW9: 2 | AX9: 0.25 | AY9: 3 | AZ9: 0.5 | BC9: قرض
B10: =BM10 -> حمدى طه العيسوى | C10: 747.84 | D10: 1 | F10: 2299.91 | G10: 70.24 | H10: =IF(BQ10="مدرس",ROUND(C10*10%,2),"") -> 74.78 | I10: =IF(BQ10="مدرس",ROUND(C10*25%,2),"") -> 186.96 | J10: =IF(BQ10="مدرس",IF(BN10="كبير",ROUND(C10*25%,2),IF(BN10="كبير ا",ROUND(C10*25%,2),IF(BN10="اولى",ROUND(C10*25%,2),IF(BN10="ثانيه",ROUND(C10*50%,2),IF(BN10="ثالثه",ROUND(C10*75%,2),IF(BN10="م م",ROUND(C10*125%,2))))))),"") -> 186.96 | K10: =IF(BQ10="مدرس",ROUND(C10*50%,2),"") -> 373.92 | L10: 1495.68 | N10: 300 | O10: 150 | P10: 350 | Q10: 375 | S10: 180 | T10: =IF(BQ10="مدرس",IF(BN10="كبير ا",140,IF(BN10="كبير",145,IF(BN10="اولى",150,IF(BN10="ثانيه",165,IF(BN10="ثالثه",185,))))),"") -> 140 | U10: 155 | W10: 6 | X10: 4 | Z10: 150 | AH10: =IF(BQ10="مدرس",$AH$9,"") -> 10 | AI10: =SUM(F10:AH10) -> 6508.45 | AK10: =ROUND(BY10*9%,2) -> 584.86 | AM10: =ROUND(BY10*1%,2) -> 64.98 | AN10: =ROUND(BY10*1%,2) -> 64.98 | AO10: 9.5 | AP10: =IF(BQ10="مدرس",IF(BN10="كبير ا",3.1,IF(BN10="كبير",2.8,IF(BN10="اولى",2.4,IF(BN10="ثانيه",1.7,IF(BN10="ثالثه",1.3,))))),"") -> 3.1 | AR10: 197 | AS10: 41.15 | AU10: 2.5 | AV10: =IF($BQ10="مدرس",$AV$9,"") -> 4.5 | AW10: =IF($BQ10="مدرس",$AW$9,"") -> 2 | AX10: =IF($BQ10="مدرس",$AX$9,"") -> 0.25 | AY10: =IF($BQ10="مدرس",$AY$9,"") -> 3 | AZ10: =IF($BQ10="مدرس",$AZ$9,"") -> 0.5 | BA10: =IF(BQ10="مدرس",ROUND(F10*7%,2),"") -> 160.99 | BJ10: 0.04 | BK10: =SUM(AJ10:BJ10) -> 1139.35 | BL10: =AI10-BK10 -> 5369.1 | BM10: حمدى طه العيسوى | BN10: كبير ا | BO10: البنك التجارى الدولى | BQ10: مدرس | BV10: كبير ا | BY10: =SUM(F10:AG10) -> 6498.45
B11: =BM11 -> السعيد عبد النبي السيد علي | C11: 579.83 | D11: 2 | F11: 1829.42 | G11: 53.9 | H11: =IF(BQ11="مدرس",ROUND(C11*10%,2),"") -> 57.98 | I11: =IF(BQ11="مدرس",ROUND(C11*25%,2),"") -> 144.96 | J11: =IF(BQ11="مدرس",IF(BN11="كبير",ROUND(C11*25%,2),IF(BN11="كبير ا",ROUND(C11*25%,2),IF(BN11="اولى",ROUND(C11*25%,2),IF(BN11="ثانيه",ROUND(C11*50%,2),IF(BN11="ثالثه",ROUND(C11*75%,2),IF(BN11="م م",ROUND(C11*125%,2))))))),"") -> 144.96 | K11: =IF(BQ11="مدرس",ROUND(C11*50%,2),"") -> 289.92 | L11: 1159.64 | N11: =IF(BQ11="مدرس",IF(BN11="كبير ا",300,IF(BN11="كبير",325,IF(BN11="اولى",350,IF(BN11="ثانيه",375,IF(BN11="ثالثه",400,""))))),"") -> 300 | O11: 150 | P11: 325 | Q11: =IF(BN11="","",IF(BN11="كبير ا",375,IF(BN11="كبير",350,IF(BN11="اولى",325,IF(BN11="ثانيه",275,IF(BN11="ثالثه",225,IF(BN11="خامسه",175))))))) -> 375 | S11: =IF(BQ11="مدرس",IF(BN11="كبير ا",180,IF(BN11="كبير",165,IF(BN11="اولى",125,IF(BN11="ثانيه",100,IF(BN11="ثالثه",75,))))),"") -> 180 | T11: 140 | U11: =IF(BQ11="مدرس",IF(BN11="كبير ا",155,IF(BN11="كبير",140,IF(BN11="اولى",120,IF(BN11="ثانيه",85,IF(BN11="ثالثه",65,))))),"") -> 155 | V11: =IF(BQ11="مدرس","",IF(BN11="اولى",85,IF(BN11="ثانيه",65,IF(BN11="ثالثه",55,IF(BN11="رابعه",50,IF(BN11="خامسه",50,)))))) ->  | W11: 6 | X11: 4 | AH11: =IF(BQ11="مدرس",$AH$9,"") -> 10 | AI11: =SUM(F11:AH11) -> 5325.78 | AK11: =ROUND(BY11*9%,2) -> 478.42 | AM11: =ROUND(BY11*1%,2) -> 53.16 | AN11: =ROUND(BY11*1%,2) -> 53.16 | AO11: 9.5 | AP11: 3.1 | AR11: 157 | AS11: 32.6 | AU11: 2 | AV11: =IF($BQ11="مدرس",$AV$9,"") -> 4.5 | AW11: =IF($BQ11="مدرس",$AW$9,"") -> 2 | AX11: =IF($BQ11="مدرس",$AX$9,"") -> 0.25 | AY11: =IF($BQ11="مدرس",$AY$9,"") -> 3 | AZ11: =IF($BQ11="مدرس",$AZ$9,"") -> 0.5 | BA11: =IF(BQ11="مدرس",ROUND(F11*7%,2),"") -> 128.06 | BJ11: 0.03 | BK11: =SUM(AJ11:BJ11) -> 927.28 | BL11: =AI11-BK11 -> 4398.5 | BM11: السعيد عبد النبي السيد علي | BN11: كبير ا | BO11: ناصر بشبيش | BQ11: مدرس | BV11: كبير ا | BY11: =SUM(F11:AG11) -> 5315.78
B12: =BM12 -> فاطمه جابر عباس جادالله | C12: 690.85 | D12: 3 | F12: 2127.85 | G12: 64.92 | H12: =IF(BQ12="مدرس",ROUND(C12*10%,2),"") -> 69.09 | I12: =IF(BQ12="مدرس",ROUND(C12*25%,2),"") -> 172.71 | J12: =IF(BQ12="مدرس",IF(BN12="كبير",ROUND(C12*25%,2),IF(BN12="كبير ا",ROUND(C12*25%,2),IF(BN12="اولى",ROUND(C12*25%,2),IF(BN12="ثانيه",ROUND(C12*50%,2),IF(BN12="ثالثه",ROUND(C12*75%,2),IF(BN12="م م",ROUND(C12*125%,2))))))),"") -> 172.71 | K12: =IF(BQ12="مدرس",ROUND(C12*50%,2),"") -> 345.43 | L12: 1381.68 | N12: 300 | O12: 150 | P12: 350 | Q12: =IF(BN12="","",IF(BN12="كبير ا",375,IF(BN12="كبير",350,IF(BN12="اولى",325,IF(BN12="ثانيه",275,IF(BN12="ثالثه",225,IF(BN12="خامسه",175))))))) -> 375 | S12: 180 | T12: 140 | U12: 155 | W12: 2 | X12: 4 | AH12: =IF(BQ12="مدرس",$AH$9,"") -> 10 | AI12: =SUM(F12:AH12) -> 6000.39 | AK12: =ROUND(BY12*9%,2) -> 539.14 | AM12: =ROUND(BY12*1%,2) -> 59.9 | AN12: =ROUND(BY12*1%,2) -> 59.9 | AO12: 9.5 | AP12: 3.1 | AQ12: 6.07 | AR12: 191.3 | AS12: 36.5 | AU12: 2.5 | AV12: 4.5 | AW12: 2 | AX12: 0.25 | AY12: 3 | AZ12: 0.5 | BA12: =IF(BQ12="مدرس",ROUND(F12*7%,2),"") -> 148.95 | BJ12: 0.03 | BK12: 1067.14 | BL12: 4933.25 | BM12: فاطمه جابر عباس جادالله | BN12: كبير ا | BO12: القاهرة المحلة | BQ12: مدرس | BV12: كبير | BY12: =SUM(F12:AG12) -> 5990.39
B13: رجاء صلاح محمد محمود | C13: 486.69 | D13: 4 | F13: 1618.05 | G13: 45.76 | H13: 48.67 | I13: 121.67 | J13: 121.67 | K13: 243.35 | L13: 851.7 | N13: 325 | O13: 150 | P13: 325 | Q13: 350 | S13: 165 | T13: 145 | U13: 140 | W13: 2 | X13: 4 | Y13: 121.67 | AH13: 10 | AI13: 4788.54 | AK13: 430.07 | AM13: 47.79 | AN13: 47.79 | AO13: 9 | AP13: 2.8 | AR13: 129 | AS13: 29.4 | AU13: 2 | AV13: 4.5 | AW13: 2 | AX13: 0.25 | AY13: 3 | AZ13: 0.5 | BA13: 113.26 | BF13: 50 | BJ13: 0.03 | BK13: 871.39 | BL13: 3917.15 | BM13: رجاء صلاح محمد محمود | BN13: كبير | BO13: الاسكندرية - نبروه | BQ13: مدرس | BV13: اولى | BY13: 4778.54
B14: فتحى المغازى محمد | C14: 525.58 | D14: 5 | F14: 1709.21 | G14: 49.36 | H14: =IF(BQ14="مدرس",ROUND(C14*10%,2),"") -> 52.56 | I14: =IF(BQ14="مدرس",ROUND(C14*25%,2),"") -> 131.4 | J14: =IF(BQ14="مدرس",IF(BN14="كبير",ROUND(C14*25%,2),IF(BN14="كبير ا",ROUND(C14*25%,2),IF(BN14="اولى",ROUND(C14*25%,2),IF(BN14="ثانيه",ROUND(C14*50%,2),IF(BN14="ثالثه",ROUND(C14*75%,2),IF(BN14="م م",ROUND(C14*125%,2))))))),"") -> 131.4 | K14: =IF(BQ14="مدرس",ROUND(C14*50%,2),"") -> 262.79 | L14: 919.76 | N14: 325 | O14: 150 | P14: 325 | Q14: 350 | S14: 165 | T14: 145 | U14: 140 | W14: 6 | X14: 4 | AH14: =IF(BQ14="مدرس",$AH$9,"") -> 10 | AI14: =SUM(F14:AH14) -> 4876.48 | AK14: 437.98 | AM14: 48.66 | AN14: 48.66 | AO14: 9 | AP14: 2.8 | AR14: 132 | AS14: 29.7 | AU14: 2 | AV14: 4.5 | AW14: 2 | AX14: 0.25 | AY14: 3 | AZ14: 0.5 | BA14: =IF(BQ14="مدرس",ROUND(F14*7%,2),"") -> 119.64 | BB14: 9 | BJ14: 0.04 | BK14: 849.73 | BL14: 4026.75 | BM14: فتحى المغازى محمد العزب | BN14: كبير | BO14: البنك الأهلى | BQ14: مدرس | BY14: =SUM(F14:AG14) -> 4866.48
B15: السيد بدير السيد محمود | C15: 487.09 | D15: 6 | F15: 1618.98 | G15: 45.8 | H15: 48.71 | I15: 121.77 | J15: 121.77 | K15: 243.55 | L15: 852.4 | N15: 325 | O15: 150 | P15: 325 | Q15: 350 | S15: 165 | T15: 145 | U15: 140 | W15: 6 | X15: 4 | AH15: 10 | AI15: 4672.98 | AK15: 419.67 | AM15: 46.63 | AN15: 46.63 | AO15: 9 | AP15: 2.8 | AR15: 96.5 | AS15: 28.5 | AU15: 2 | AV15: 4.5 | AW15: 2 | AX15: 0.25 | AY15: 3 | AZ15: 0.5 | BA15: 113.33 | BJ15: 0.02 | BK15: 775.33 | BL15: 3897.65 | BM15: السيد بدير السيد محمود | BN15: كبير | BO15: ناصر -بشبيش | BQ15: مدرس | BV15: ثانيه | BY15: 4662.98
B16: نعيمه المغاورى طه السيد | C16: 548.27 | D16: 7 | F16: 1773.69 | G16: 51.53 | H16: 54.83 | I16: 137.07 | J16: 137.07 | K16: 274.14 | L16: 959.45 | N16: 325 | O16: 150 | P16: 325 | Q16: 350 | S16: 165 | T16: 145 | U16: 140 | W16: 2 | X16: 4 | AH16: 10 | AI16: 5003.78 | AK16: 449.44 | AM16: 49.94 | AN16: 49.94 | AO16: 9 | AP16: 2.8 | AR16: 139.6 | AS16: 30.4 | AU16: 2 | AV16: 4.5 | AW16: 2 | AX16: 0.25 | AY16: 3 | AZ16: 0.5 | BA16: 124.16 | BK16: 867.53 | BL16: 4136.25 | BM16: نعيمه المغاورى طه السيد | BN16: كبير | BO16: مصر المحلة | BQ16: مدرس | BV16: ثالثه | BY16: 4993.78
B17: حنان راشد بركات الذهبى | C17: 462.97 | D17: 8 | F17: 1563.12 | G17: 43.01 | H17: 46.3 | I17: 115.74 | J17: 115.74 | K17: 231.49 | L17: 810.19 | N17: 325 | O17: 150 | P17: 300 | Q17: 350 | S17: 165 | T17: 145 | U17: 140 | W17: 2 | X17: 4 | AH17: 10 | AI17: 4516.59 | AK17: 405.59 | AM17: 45.07 | AN17: 45.07 | AO17: 9 | AP17: 2.8 | AR17: 89.7 | AS17: 27.5 | AU17: 2 | AV17: 4.5 | AW17: 2 | AX17: 0.25 | AY17: 3 | AZ17: 0.5 | BA17: 109.42 | BJ17: 0.04 | BK17: 746.44 | BL17: 3770.15 | BM17: حنان راشد بركات الذهبى | BN17: كبير | BO17: القاهرة المحلة | BQ17: مدرس | BV17: رابعه | BY17: 4506.59
B18: نجلاء فتحى عبدالمتعال الحايس | C18: 461.58 | D18: 9 | F18: 1560.43 | G18: 42.87 | H18: 46.16 | I18: 115.4 | J18: 115.4 | K18: 230.79 | L18: 808.12 | N18: 325 | O18: 150 | P18: 300 | Q18: 350 | S18: 165 | T18: 145 | U18: 140 | W18: 2 | X18: 4 | AH18: 10 | AI18: 4510.17 | AK18: 405.02 | AM18: 45 | AN18: 45 | AO18: 9 | AP18: 2.8 | AR18: 89.7 | AS18: 27.5 | AU18: 2 | AV18: 4.5 | AW18: 2 | AX18: 0.25 | AY18: 3 | AZ18: 0.5 | BA18: 109.23 | BJ18: 0.02 | BK18: 745.52 | BL18: 3764.65 | BM18: نجلاء فتحى عبدالمتعال الحايس | BN18: كبير | BO18: ناصر -بشبيش | BQ18: مدرس | BV18: خامسه | BY18: 4500.17
B19: رحاب فؤاد مجاهد | C19: 359.64 | D19: 10 | F19: 1357.58 | G19: 33.81 | H19: 35.96 | I19: 89.91 | J19: 89.91 | K19: 179.82 | L19: 539.46 | N19: 350 | O19: 150 | P19: 300 | Q19: 325 | R19: 274 | S19: 125 | T19: 150 | U19: 120 | W19: 2 | X19: 4 | AH19: 10 | AI19: 4136.45 | AK19: 371.38 | AM19: 41.26 | AN19: 41.26 | AO19: 7.9 | AP19: 2.4 | AQ19: 4.89 | AR19: 78.1 | AS19: 25.5 | AU19: 2 | AV19: 4.5 | AW19: 2 | AX19: 0.25 | AY19: 3 | AZ19: 0.5 | BA19: 95.03 | BG19: 7.1 | BJ19: 0.03 | BK19: 687.1 | BL19: 3449.35 | BM19: رحاب فؤاد مجاهد | BN19: اولى | BO19: ناصر -بشبيش | BQ19: مدرس | BV19: سادسه | BY19: 4126.45
B20: محمد ابوالنجا محمد ابوالنجا | C20: 512.7 | D20: 11 | F20: 1665.8 | G20: 48.19 | H20: 51.27 | I20: 128.18 | J20: 128.18 | K20: 256.35 | L20: 769.08 | N20: 350 | O20: 150 | P20: 300 | Q20: 325 | S20: 125 | T20: 150 | U20: 120 | W20: 6 | X20: 4 | AH20: 10 | AI20: 4587.05 | AK20: 411.93 | AM20: 45.77 | AN20: 45.77 | AO20: 7.9 | AP20: 2.4 | AR20: 92.6 | AS20: 27.7 | AU20: 2 | AV20: 4.5 | AW20: 2 | AX20: 0.25 | AY20: 3 | AZ20: 0.5 | BA20: 116.61 | BJ20: 0.02 | BK20: 762.95 | BL20: 3824.1 | BM20: محمد ابوالنجا محمد ابوالنجا | BN20: اولى | BO20: فيصل الإسلامى | BQ20: مدرس | BY20: 4577.05
B21: محمد فتحى عبدالمعطى بدر | C21: 246 | D21: 12 | F21: 1046.63 | G21: 24.12 | H21: 24.6 | I21: 61.5 | J21: 123 | K21: 123 | L21: 307.5 | M21: 40 | N21: 375 | O21: 150 | P21: 200 | Q21: 275 | R21: 189 | S21: 100 | T21: 165 | U21: 85 | W21: 4 | X21: 4 | AH21: 10 | AI21: 3307.35 | AK21: 296.76 | AM21: 32.97 | AN21: 32.97 | AO21: 7 | AP21: 1.7 | AR21: 26.7 | AS21: 20.4 | AU21: 1.5 | AV21: 4.5 | AW21: 2 | AX21: 0.25 | AY21: 3 | AZ21: 0.5 | BA21: 73.26 | BJ21: 0.04 | BK21: 503.55 | BL21: 2803.8 | BM21: محمد فتحى عبدالمعطى بدر | BN21: ثانيه | BO21: الأهلى المحلة | BQ21: مدرس | BY21: 3297.35
B22: ايمان محمد ابراهيم محمود | C22: 258 | D22: 13 | F22: 1154.67 | G22: 24.92 | H22: 25.8 | I22: 64.5 | J22: 129 | K22: 129 | L22: 322.5 | N22: 375 | O22: 150 | P22: 250 | Q22: 275 | R22: 360 | S22: 100 | T22: 165 | U22: 85 | W22: 2 | X22: 4 | AH22: 10 | AI22: 3626.39 | AK22: 325.48 | AM22: 36.16 | AN22: 36.16 | AO22: 7 | AP22: 1.7 | AR22: 35.8 | AS22: 22.4 | AU22: 1.5 | AV22: 4.5 | AW22: 2 | AX22: 0.25 | AY22: 3 | AZ22: 0.5 | BA22: 80.83 | BJ22: 0.01 | BK22: 557.29 | BL22: 3069.1 | BM22: ايمان محمد ابراهيم محمود | BN22: ثانيه | BO22: مصر المحلة | BQ22: مدرس | BY22: 3616.39
A23: 945.29 | B23: عبد الحليم انور مخيمر محمد | D23: 14 | O23: 150 | P23: 300 | Q23: 325 | V23: 85 | AA23: 2886.61 | AB23: 344.91 | AC23: 134.9 | AD23: 73.33 | AI23: 4299.75 | AK23: 386.98 | AM23: 43 | AN23: 43 | AO23: 5 | AR23: 47.5 | AS23: 30.3 | AU23: 2 | BB23: 9 | BJ23: 0.02 | BK23: 566.8 | BL23: 3732.95 | BM23: عبد الحليم انور مخيمر محمد | BN23: اولى | BO23: الأهلى المحلة | BY23: 4299.75
A24: 593.88 | B24: رمضان الصباحى السعداوي ابوشناف | D24: 15 | O24: 150 | P24: 250 | Q24: 275 | R24: 144 | V24: 65 | AA24: 2276 | AB24: 216.69 | AD24: 47.78 | AI24: 3424.47 | AK24: 308.2 | AL24: 18.52 | AM24: 34.24 | AN24: 34.24 | AO24: 5 | AR24: 32.2 | AS24: 24.95 | AU24: 1.5 | BB24: 9 | BJ24: 0.02 | BK24: 467.87 | BL24: 2956.6 | BM24: رمضان الصباحى السعداوي ابوشناف | BN24: ثانيه | BO24: ناصر -بشبيش | BY24: 3424.47
A25: 676.45 | B25: حسن شان غازي سليمان غازي | D25: 16 | O25: 150 | P25: 200 | Q25: 225 | V25: 55 | AA25: 2469.47 | AB25: 246.82 | AD25: 53.33 | AI25: 3399.62 | AK25: 305.97 | AM25: 34 | AN25: 34 | AO25: 5 | AR25: 32.2 | AS25: 24.7 | AU25: 1.5 | BK25: 437.37 | BL25: 2962.25 | BM25: حسن شان غازي سليمان غازي | BN25: ثالثه | BO25: ناصر -بشبيش | BY25: 3399.62
A26: 678.27 | B26: عبدالحميد عبدالمنعم عبدالحليم | D26: 17 | O26: 150 | P26: 200 | Q26: 225 | V26: 55 | AA26: 2474.16 | AB26: 247.48 | AD26: 54.44 | AI26: 3406.08 | AK26: 306.55 | AL26: 3.55 | AM26: 34.06 | AN26: 34.06 | AO26: 5 | AR26: 37.7 | AS26: 24.75 | AU26: 1.5 | BJ26: 0.01 | BK26: 447.18 | BL26: 2958.9 | BM26: عبدالحميد عبدالمنعم عبدالحليم | BN26: ثالثه | BO26: ناصر -بشبيش | BY26: 3406.08
AK27: 0 | BK27: 0 | BL27: 0
B28: 0 | I28: =IF(BQ28="مدرس",TRUNC(C28*25%,2),"") ->  | J28: =IF(BQ28="مدرس",IF(BN28="كبير",TRUNC(C28*25%,2),IF(BN28="كبير ا",TRUNC(C28*25%,2),IF(BN28="اولى",TRUNC(C28*25%,2),IF(BN28="ثانيه",TRUNC(C28*50%,2),IF(BN28="ثالثه",TRUNC(C28*75%,2),IF(BN28="م م",trunic(C28*125%,2))))))),"") ->  | V28: 0 | AI28: 0 | AK28: 0 | AM28: 0 | AN28: 0 | BK28: 0 | BL28: 0 | BY28: 0
B29: 0 | J29: =IF(BQ29="مدرس",IF(BN29="كبير",TRUNC(C29*25%,2),IF(BN29="كبير ا",TRUNC(C29*25%,2),IF(BN29="اولى",TRUNC(C29*25%,2),IF(BN29="ثانيه",TRUNC(C29*50%,2),IF(BN29="ثالثه",TRUNC(C29*75%,2),IF(BN29="م م",trunic(C29*125%,2))))))),"") ->  | V29: 0 | AI29: 0 | AK29: 0 | AM29: 0 | AN29: 0 | BK29: 0 | BL29: 0 | BY29: 0
B30: 0 | G30: =C30*10% -> 0 | H30: =IF(BQ30="مدرس",TRUNC(C30*10%,2),"") ->  | J30: =IF(BQ30="مدرس",IF(BN30="كبير",TRUNC(C30*25%,2),IF(BN30="كبير ا",TRUNC(C30*25%,2),IF(BN30="اولى",TRUNC(C30*25%,2),IF(BN30="ثانيه",TRUNC(C30*50%,2),IF(BN30="ثالثه",TRUNC(C30*75%,2),IF(BN30="م م",trunic(C30*125%,2))))))),"") ->  | K30: =IF(BQ30="مدرس",TRUNC(C30*50%,2),"") ->  | L30: =IF(BN30="كبير ا",C30*200%,IF(BN30="كبير",C30*175%,IF(BN30="اولى",C30*150%,IF(BN30="ثانيه",C30*100%,IF(BN30="ثالثه",C30*75%,))))) -> 0 | V30: 0 | AH30: =IF(BQ30="مدرس",AH29,"") ->  | AI30: 0 | AK30: 0 | AM30: 0 | AN30: 0 | AV30: =IF($BQ30="مدرس",AV29,"") ->  | AW30: =IF($BQ30="مدرس",AW29,"") ->  | AX30: =IF($BQ30="مدرس",AX29,"") ->  | AY30: =IF($BQ30="مدرس",AY29,"") ->  | AZ30: =IF($BQ30="مدرس",AZ29,"") ->  | BA30: =IF(BQ30="مدرس",TRUNC(F30*7%,2),"") ->  | BK30: =TRUNC(SUM(AJ30:BJ30),2) -> 0 | BL30: 0 | BY30: 0
B31: 0 | G31: =C31*10% -> 0 | J31: =IF(BQ31="مدرس",IF(BN31="كبير",TRUNC(C31*25%,2),IF(BN31="كبير ا",TRUNC(C31*25%,2),IF(BN31="اولى",TRUNC(C31*25%,2),IF(BN31="ثانيه",TRUNC(C31*50%,2),IF(BN31="ثالثه",TRUNC(C31*75%,2),IF(BN31="م م",trunic(C31*125%,2))))))),"") ->  | L31: =IF(BN31="كبير ا",C31*200%,IF(BN31="كبير",C31*175%,IF(BN31="اولى",C31*150%,IF(BN31="ثانيه",C31*100%,IF(BN31="ثالثه",C31*75%,))))) -> 0 | V31: 0 | AI31: 0 | AK31: 0 | AM31: 0 | AN31: 0 | BK31: 0 | BL31: 0 | BY31: 0
F32: =SUM(F10:F31) -> 21325.34 | G32: =SUM(G10:G31) -> 598.43 | H32: 636.71 | I32: 1591.77 | J32: 1717.77 | K32: 3183.55 | L32: 11177.16 | M32: =SUM(M10:M31) -> 40 | N32: =SUM(N10:N31) -> 4300 | O32: =SUM(O10:O31) -> 2550 | P32: =SUM(P10:P31) -> 4925 | Q32: =SUM(Q10:Q31) -> 5475 | R32: 967 | S32: 1980 | T32: 1920 | U32: 1715 | V32: 260 | W32: 48 | X32: 52 | Y32: =SUM(Y10:Y31) -> 121.67 | Z32: =SUM(Z10:Z31) -> 150 | AA32: =SUM(AA10:AA31) -> 10106.24 | AB32: 1055.9 | AC32: 134.9 | AD32: 228.88 | AE32: 0 | AF32: 0 | AG32: 0 | AH32: =SUM(AH10:AH31) -> 130 | AI32: =SUM(AI10:AI31) -> 76390.32 | AJ32: =SUM(AJ10:AJ31) -> 0 | AK32: 6863.44 | AL32: 22.07 | AM32: 762.59 | AN32: 762.59 | AO32: 132.3 | AP32: 34.3 | AQ32: 10.96 | AR32: 1604.6 | AS32: 483.95 | AT32: 0 | AU32: 32.5 | AV32: =SUM(AV10:AV31) -> 58.5 | AW32: =SUM(AW10:AW31) -> 26 | AX32: =SUM(AX10:AX31) -> 3.25 | AY32: =SUM(AY10:AY31) -> 39 | AZ32: =SUM(AZ10:AZ31) -> 6.5 | BA32: =SUM(BA10:BA31) -> 1492.77 | BB32: =SUM(BB10:BB31) -> 27 | BC32: =SUM(BC11:BC31) -> 0 | BD32: 0 | BE32: 0 | BF32: 50 | BG32: =SUM(BG10:BG31) -> 7.1 | BH32: 0 | BJ32: =SUM(BJ10:BJ31) -> 0.4 | BK32: =SUM(BK10:BK31) -> 12419.82 | BL32: =SUM(BL10:BL31) -> 63970.5
BL33: =SUM(F32:AH32) -> 76390.32
BL34: =BL33-BK32 -> 63970.5

Sheet خلفية فارغة
B6: جنيه | C6: قسم | D6: فرع | E6: فصل | F6: بنك | G6: المرتب الأساسى
G7: اساسى | AB7: وزارة التربية والتعليم
G8: 2014 10%
G9: 2015 10% | AB9: محافظة الغربية
G10: حافز 25%
G11: أداء | AB11: مدرسة ميت السراج المتكاملة
H12: كادر
H13: كادرين
H14: تطوير
H15: اعباء | J15: كشف المستقطع لحساب المعاشات عن شهر ابريل سنة 2022
H16: علاوة مقطوعة 2019
H17: علاوة مقطوعة 2020
H18: علاوة مقطوعة 2021 | N18: بيان اجمالى | R18: المبالغ
H19: حافز تكميلى
H20: بدل معلم | N20: حصة الحكومة 12% | R20: =E42 -> 0
H21: حافز أداء
H22: مكافئة مدرس | N22: حصة الموظفين 9% | R22: =E43 -> 0
H23: مكافئة إدارى
H24: علاوة اجتماعية | N24: اصابة عمل 1% | R24: =E45 -> 0
H25: علاوة اضافية
H26: دمج | N26: 1% | R26: =R24 -> 0 | AA26: كشف الماهيات والمرتبات للعاملين
H27: الأجر الوظيفى
H28: الأجر المكمل | N28: 1% | R28: =R24 -> 0
H29: الحافز التعويضى
H30: 91.5% | N30: 1.25% | R30: =E49 -> 0 | AD30: عن شهر ابريل عام 2022
H31: الحد الأدنى
H32: دكتوراه | N32: ادخار 3% | R32: =E48 -> 0
H33: اصابة عمل 1%
H34: ادخار 1.25% | N34: مدة سابقة | R34: =E44 -> 0
H35: تأمين صحى 3%
H36: حصة الحكومة 12% | N36: بدل إعارة | R36: =E50 -> 0
H37: اجمالى خاضع معاشات
H38: المنحة | N38: الجملة | R38: =SUM(R20:U37) -> 0
C39: جملة المبالغ المستحقة
C40: صافى كلى | E40: صافى جزئى | H40: جارى المعاشات
H42: حصة الحكومة 12%
H43: إشتراك موظف 9%
H44: أقساط المدد السابقة
H45: 0.01
H46: إدخار 1%
H47: إدخار 1%
H48: إدخار 3% | X48: اقـــــــــــــــــــــــــــــــــــــــــــــــــــــــــــــرار
H49: إصابة عمل 1.25%
H50: بدل اعارة | X50: أقر أنا / .....................................مسئول ماهيات المدرسة بأنى مسئول عن الملف أثناء الدفع الاليكترونى وأى تعديل أو أخطاء اقوم بتصحيحها..... وهذا إقرار منى بذلك ....
H51: جارى الضرائب
H52: كسب عمل
H53: دمغة عادية
H54: دمغة توقيع
H55: دمغة تنمية موارد
H56: استحقاق هيئات وشركات
H57: نقابة مهن تعليمية
H58: رعاية صحية
H59: تأمين اجتماعى
H60: نادى معلمين
H61: رابطة جامعيين
H62: صندوق زمالة
H63: مهن تطبيقية
H64: قسط شركة اورانج
H65: قرض حسن نقابة مهن تعليمية
H66: لجنة نقابية
H67: بحث علمى
H68: صندوق زمالة
H69: 2% صندوق رعاية
H70: 2% عمولة نقابية
H71: جزاءات
B72: =C42+C52+C57 -> 0 | H72: صندوق شهداء
H73: كسر القرش
B74: =B39-B72 -> 0 | C74: الجملة | E74: =NoToTxt(B74,"جنيه","قرشاً") -> صفر | I74: لا غير
B77: رئيس الوحدة | D77: وكيل القسم | F77: رئيس القسم | H77: مدير الإدارة

Sheet خلفية (3)
B6: جنيه | C6: قسم | D6: فرع | E6: فصل | F6: بنك | G6: المرتب الأساسى
B7: =ثانوى1!F33 -> 69867.79 | G7: اساسى | AB7: وزارة التربية والتعليم
B8: =ثانوى1!G33 -> 1803.82 | G8: 2014 10%
B9: =ثانوى1!H33 -> 1913.56 | G9: 2015 10% | AB9: محافظة الغربية
B10: =ثانوى1!I33 -> 4984.64 | G10: حافز 25%
B11: =ثانوى1!J33 -> 6526.84 | G11: أداء | AB11: مدرسة ميت السراج المتكاملة
B12: =ثانوى1!K33 -> 4663.88 | H12: كادر
B13: =ثانوى1!L33 -> 32424.49 | H13: كادرين
B14: =ثانوى1!M33 -> 40 | H14: تطوير
B15: =ثانوى1!N33 -> 15500 | H15: اعباء | J15: كشف المستقطع لحساب المعاشات عن شهر ابريل سنة 2022
B16: =ثانوى1!O33 -> 7950 | H16: علاوة مقطوعة 2019
B17: =ثانوى1!P33 -> 14500 | H17: علاوة مقطوعة 2020
B18: =ثانوى1!Q33 -> 16225 | H18: علاوة مقطوعة 2021 | N18: بيان اجمالى | R18: المبالغ
B19: =ثانوى1!R33 -> 7360.54 | H19: حافز تكميلى
B20: =ثانوى1!S33 -> 6290 | H20: بدل معلم | N20: حصة الحكومة 12% | R20: =E43 -> 26286.8856
B21: =ثانوى1!T33 -> 7295 | H21: حافز أداء
B22: =ثانوى1!U33 -> 5420 | H22: مكافئة مدرس | N22: حصة الموظفين 9% | R22: =E44 -> 20251.08
B23: =ثانوى1!V33 -> 365 | H23: مكافئة إدارى
B24: =ثانوى1!W33 -> 172 | H24: علاوة اجتماعية | N24: اصابة عمل 1% | R24: =E46 -> 2250.1
B25: =ثانوى1!X33 -> 188 | H25: علاوة اضافية
B26: =ثانوى1!Y33 -> 350.9 | H26: دمج | N26: 1% | R26: =R24 -> 2250.1 | AA26: كشف الماهيات والمرتبات للعاملين
B27: =ثانوى1!AA33 -> 12655.18 | H27: الأجر الوظيفى
B28: =ثانوى1!AB33 -> 1199.02 | H28: الأجر المكمل | N28: 1% | R28: =R24 -> 2250.1
B29: =ثانوى1!AC33 -> 300 | H29: الأجر المكمل 5% 2022
B30: =ثانوى1!AD33 -> 248.89 | H30: الحافز التعويضى
B31: =ثانوى1!AE33 -> 227.83 | H31: 91.5% | N31: 1.25% | R31: =E50 -> 2738.21725 | AD31: عن شهر ابريل عام 2022
B32: =ثانوى1!AF33 -> 385 | H32: الحد الأدنى
B33: =ثانوى1!AG33 -> 200 | H33: دكتوراه | N33: ادخار 3% | R33: =E49 -> 6571.7214
B34: =ثانوى1!AM33 -> 2250.1 | H34: اصابة عمل 1%
B35: =B38*1.25% -> 2738.21725 | H35: ادخار 1.25% | N35: مدة سابقة | R35: =E45 -> 2.82
B36: =B38*3% -> 6571.7214 | H36: تأمين صحى 3%
B37: =B38*12% -> 26286.8856 | H37: حصة الحكومة 12% | N37: بدل إعارة | R37: =E51 -> 90
B38: =SUM(B7:B33) -> 219057.38 | H38: اجمالى خاضع معاشات
B39: =ثانوى1!AH33 -> 470 | H39: المنحة | N39: الجملة | R39: =SUM(R20:U38) -> 62691.02425
B40: =ROUND(SUM(B34:B39),2) -> 257374.3 | C40: جملة المبالغ المستحقة
C41: صافى كلى | E41: صافى جزئى | H41: جارى المعاشات
C43: =SUM(E43:F51) -> 62691.02425 | E43: =B37 -> 26286.8856 | H43: حصة الحكومة 12%
E44: =ثانوى1!AK33 -> 20251.08 | H44: إشتراك موظف 9%
E45: =ثانوى1!AL33 -> 2.82 | H45: أقساط المدد السابقة
E46: =B34 -> 2250.1 | H46: 0.01
E47: =E46 -> 2250.1 | H47: إدخار 1%
E48: =E47 -> 2250.1 | H48: إدخار 1%
E49: =B36 -> 6571.7214 | H49: إدخار 3% | X49: اقـــــــــــــــــــــــــــــــــــــــــــــــــــــــــــــرار
E50: =B35 -> 2738.21725 | H50: إصابة عمل 1.25%
E51: =ثانوى1!AQ33 -> 90 | H51: بدل اعارة | X51: أقر أنا / .....................................مسئول ماهيات المدرسة بأنى مسئول عن الملف أثناء الدفع الاليكترونى وأى تعديل أو أخطاء اقوم بتصحيحها..... وهذا إقرار منى بذلك ....
H52: جارى الضرائب
C53: =SUM(E53:F56) -> 5749.05 | E53: =ثانوى1!AR33 -> 4353.5 | H53: كسب عمل
E54: =ثانوى1!AS33 -> 1395.55 | H54: دمغة عادية
H55: دمغة توقيع
H56: دمغة تنمية موارد
H57: استحقاق هيئات وشركات
C58: =SUM(E58:F75) -> 6743.64 | E58: =ثانوى1!AV33 -> 211.5 | H58: نقابة مهن تعليمية
E59: =ثانوى1!AW33 -> 94 | H59: رعاية صحية
E60: =ثانوى1!AX33 -> 11.75 | H60: تأمين اجتماعى
E61: =ثانوى1!AY33 -> 141 | H61: نادى معلمين
E62: =ثانوى1!AZ33 -> 23.5 | H62: رابطة جامعيين
E63: =ثانوى1!BA33 -> 4890.7 | H63: صندوق زمالة
E64: =ثانوى1!BB33 -> 9 | H64: مهن تطبيقية
E65: =ثانوى1!AT33 -> 70 | H65: قسط شركة اورانج
E66: =ثانوى1!BC33 -> 250 | H66: قرض حسن نقابة مهن تعليمية
E67: =ثانوى1!BD33 -> 0 | H67: لجنة نقابية
E68: =ثانوى1!BF33 -> 0 | H68: بحث علمى
E69: =ثانوى1!BE33 -> 0 | H69: صندوق زمالة
E70: =ثانوى1!AO33 -> 409 | H70: 2% صندوق رعاية
E71: =ثانوى1!AP33 -> 108.4 | H71: 2% عمولة نقابية
E72: =ثانوى1!BH33 -> 150 | H72: جزاءات
E73: =ثانوى1!BI33 -> 279.3 | H73: استبعاد حافز أداء
B74: =C43+C53+C58 -> 75183.71425 | E74: =ثانوى1!AU33 -> 94.5 | H74: صندوق شهداء
E75: =ثانوى1!BJ33 -> 0.99 | H75: كسر القرش
B76: =B40-B74 -> 182190.5857 | C76: الجملة | E76: =NoToTxt(B76,"جنيه","قرشاً") -> فقط مائة واثنان وثمانون ألف ومائة وتسعون جنيه وتسعة وخمسون قرشاً | J76: لا غير
B79: رئيس الوحدة | D79: وكيل القسم | F79: رئيس القسم | H79: مدير الإدارة
B85: 187567.45

Sheet خلفية بنك
B6: جنيه | C6: قسم | D6: فرع | E6: فصل | F6: بنك | G6: المرتب الأساسى
B7: =بنك!F32 -> 21325.34 | G7: اساسى | AB7: وزارة التربية والتعليم
B8: =بنك!G32 -> 598.43 | G8: 2014 10%
B9: =بنك!H32 -> 636.71 | G9: 2015 10% | AB9: محافظة الغربية
B10: =بنك!I32 -> 1591.77 | G10: حافز 25%
B11: =بنك!J32 -> 1717.77 | G11: أداء | AB11: مدرسة ميت السراج المتكاملة
B12: =بنك!K32 -> 3183.55 | G12: كادر
B13: =بنك!L32 -> 11177.16 | G13: كادرين
B14: =بنك!M32 -> 40 | G14: تطوير
B15: =بنك!N32 -> 4300 | G15: اعباء | J15: كشف المستقطع لحساب المعاشات عن شهر ابريل سنة 2022
B16: =بنك!O32 -> 2550 | G16: علاوة مقطوعة 2019
B17: =بنك!P32 -> 4925 | G17: علاوة مقطوعة 2020
B18: =بنك!Q32 -> 5475 | G18: علاوة مقطوعة 2021 | N18: بيان اجمالى | R18: المبالغ
B19: =بنك!R32 -> 967 | G19: حافز تكميلى
B20: =بنك!S32 -> 1980 | G20: بدل معلم | N20: حصة الحكومة 12% | R20: =E42 -> 9133.2384
B21: =بنك!T32 -> 1920 | G21: حافز أداء
B22: =بنك!U32 -> 1715 | G22: مكافئة مدرس | N22: حصة الموظفين 9% | R22: =E43 -> 6863.44
B23: =بنك!V32 -> 260 | G23: مكافئة إدارى
B24: =بنك!W32 -> 48 | G24: علاوة اجتماعية | N24: اصابة عمل 1% | R24: =E45 -> 762.59
B25: =بنك!X32 -> 52 | G25: علاوة اضافية
B26: =بنك!Y32 -> 121.67 | G26: دمج | N26: 1% | R26: =R24 -> 762.59 | AA26: كشف الماهيات والمرتبات للعاملين
B27: =بنك!AA32 -> 10106.24 | G27: الأجر الوظيفى
B28: =بنك!AB32 -> 1055.9 | G28: الأجر المكمل | N28: 1% | R28: =R24 -> 762.59
B29: =بنك!AD32 -> 228.88 | G29: الحافز التعويضى
B30: =بنك!AE32 -> 0 | G30: 91.5% | N30: 1.25% | R30: =E49 -> 951.379 | AD30: عن شهر ابريل عام 2022
B31: =بنك!AF32 -> 0 | G31: الحد الأدنى
B32: =بنك!AC32 -> 134.9 | G32: أجر مكمل 5% 2022 | N32: ادخار 3% | R32: =E48 -> 2283.3096
B33: =بنك!AM32 -> 762.59 | G33: اصابة عمل 1%
B34: =B37*1.25% -> 951.379 | G34: ادخار 1.25% | N34: مدة سابقة | R34: =E44 -> 22.07
B35: =B37*3% -> 2283.3096 | G35: تأمين صحى 3%
B36: =B37*12% -> 9133.2384 | G36: حصة الحكومة 12% | N36: بدل إعارة | R36: =E50 -> 10.96
B37: =SUM(B7:B32) -> 76110.32 | G37: اجمالى خاضع معاشات
B38: =بنك!AH32 -> 130 | G38: المنحة | N38: الجملة | R38: =SUM(R20:U37) -> 21552.167
B39: =ROUND(SUM(B33:B38),2) -> 89370.84 | C39: جملة المبالغ المستحقة
C40: صافى كلى | E40: صافى جزئى | G40: جارى المعاشات
C42: =SUM(E42:F50) -> 21552.167 | E42: =B36 -> 9133.2384 | G42: حصة الحكومة 12%
E43: =بنك!AK32 -> 6863.44 | G43: إشتراك موظف 9%
E44: =بنك!AL32 -> 22.07 | G44: أقساط المدد السابقة
E45: =B33 -> 762.59 | G45: 0.01
E46: =E45 -> 762.59 | G46: إدخار 1%
E47: =E46 -> 762.59 | G47: إدخار 1%
E48: =B35 -> 2283.3096 | G48: إدخار 3% | X48: اقـــــــــــــــــــــــــــــــــــــــــــــــــــــــــــــرار
E49: =B34 -> 951.379 | G49: إصابة عمل 1.25%
E50: =بنك!AQ32 -> 10.96 | G50: بدل اعارة | X50: أقر أنا / .....................................مسئول ماهيات المدرسة بأنى مسئول عن الملف أثناء الدفع الاليكترونى وأى تعديل أو أخطاء اقوم بتصحيحها..... وهذا إقرار منى بذلك ....
G51: جارى الضرائب
C52: =SUM(E52:F55) -> 2088.55 | E52: =بنك!AR32 -> 1604.6 | G52: كسب عمل
E53: =بنك!AS32 -> 483.95 | G53: دمغة عادية
G54: دمغة توقيع
G55: دمغة تنمية موارد
G56: استحقاق هيئات وشركات
C57: =SUM(E57:F74) -> 1909.62 | E57: =بنك!AV32 -> 58.5 | G57: نقابة مهن تعليمية
E58: =بنك!AW32 -> 26 | G58: رعاية صحية
E59: =بنك!AX32 -> 3.25 | G59: تأمين اجتماعى
E60: =بنك!AY32 -> 39 | G60: نادى معلمين
E61: =بنك!AZ32 -> 6.5 | G61: رابطة جامعيين
E62: =بنك!BE32 -> 0 | G62: صندوق زمالة
E63: =بنك!BB32 -> 27 | G63: مهن تطبيقية
E64: =بنك!BG32 -> 7.1 | G64: مهن زراعية
E65: =بنك!AT32 -> 0 | G65: قسط شركة اورانج
E66: =بنك!BC32 -> 0 | G66: قرض حسن نقابة مهن تعليمية
E67: =بنك!BD32 -> 0 | G67: لجنة نقابية
E68: =بنك!BF32 -> 50 | G68: بحث علمى
E69: =بنك!BA32 -> 1492.77 | G69: صندوق زمالة
E70: =بنك!AO32 -> 132.3 | G70: 2% صندوق رعاية
E71: =بنك!AP32 -> 34.3 | G71: 2% عمولة نقابية
E72: =بنك!BH32 -> 0 | G72: جزاءات
B73: =C42+C52+C57 -> 25550.337 | E73: =بنك!AU32 -> 32.5 | G73: صندوق شهداء
E74: =بنك!BJ32 -> 0.4 | G74: كسر القرش
B75: =B39-B73 -> 63820.503 | C75: الجملة | D75: =NoToTxt(B75,"جنيه","قرشاً") -> فقط ثلاثة وستون ألف وثمانمائة وعشرون جنيه وخمسون قرشاً | I75: لا غير
B78: رئيس الوحدة وكيل القسم رئيس القسم مدير الإدارة
E86: ح

Sheet مفردات مدرس
B1: إدارة : شرق المحلة التعليمية | F1: إدارة الموارد البشرية - ماهيات
B2: مدرسة ميت السراج المتكاملة ع | F2: بيان مفردات مرتب فى 2021/7/1
B3: السيد الأستاذ / .................................................................. الآتى بيان مرتب
A4: 25 | B4: السيد / | C4: =VLOOKUP(A4,اعدادى!D10:BR89,62,0) -> محمد محمد الجمل | G4: الوظيفة | H4: =VLOOKUP(A4,اعدادى!D10:BR89,67,0) -> معلم أول
B6: الدرجة المالية : | C6: =VLOOKUP(A4,اعدادى!D10:BR89,63,0) -> ثانيه | F6: الحالة الاجتماعية | G6: متزوج ويعول
B8: جنيه | C8: بيـــــــــــــــــــان | F8: مستقطع | G8: بيـــــــــــــــــــان
B9: =VLOOKUP(A4,اعدادى!D10:BR89,3,0) -> 1176.92 | C9: الاساسي | F9: =B31 -> 433.37 | G9: 12% تأمين الشيخوخة
B10: =VLOOKUP(A4,اعدادى!D10:BR89,4,0) -> 25.52 | C10: 10% 2014م | F10: =B32 -> 36.11 | G10: 1% مكافاة
B11: =VLOOKUP(A4,اعدادى!D10:BR89,5,0) -> 26.4 | C11: 10% 2015م | F11: =B33 -> 45.14 | G11: 1.25% اصابة عمل
B12: =VLOOKUP(A4,اعدادى!D10:BR89,6,0) -> 66 | C12: 25% حافز | F12: =B34 -> 108.34 | G12: 3% المرض
B13: =VLOOKUP(A4,اعدادى!D10:BR89,20,0) -> 6 | C13: علاوة اجتماعية | F13: =ROUND(B29*9%,2) -> 325.02 | G13: 9% شيخوخة وعجز ووفاة
B14: =VLOOKUP(A4,اعدادى!D10:BR89,21,0) -> 4 | C14: علاوة اضافية | F14: =F10 -> 36.11 | G14: 1% مكافاة
B15: =VLOOKUP(A4,اعدادى!D10:BR89,15,0) -> 312.54 | C15: حافز تكميلى | F15: =F10 -> 36.11 | G15: 1% تامين مرض
B16: =VLOOKUP(A4,اعدادى!D10:BR89,8,0) -> 132 | C16: كادر
B17: =VLOOKUP(A4,اعدادى!D10:BR89,9,0) -> 330 | C17: كادرين | F17: =VLOOKUP(A4,اعدادى!D10:BR89,40,0) -> 0 | G17: اعارة
B18: =VLOOKUP(A4,اعدادى!D10:BR89,7,0) -> 132 | C18: اداء | F18: =VLOOKUP(A4,اعدادى!D10:BR89,35,0) -> 0 | G18: مدة سابقة
B19: =VLOOKUP(A4,اعدادى!D10:BR89,11,0) -> 375 | C19: اعباء | G19: استبدال
B20: =VLOOKUP(A4,اعدادى!D10:BS89,68,0) -> 675 | C20: مقطوعة مجمعة | F20: =VLOOKUP(A4,اعدادى!D10:BR89,41,0) -> 35.1 | G20: كسب عمل
B21: =VLOOKUP(A4,اعدادى!D10:BS89,10,0) -> 0 | C21: تطوير | F21: =VLOOKUP(A4,اعدادى!D10:BR89,42,0) -> 22.2 | G21: دمغة عادية
B22: =VLOOKUP(A4,اعدادى!D10:BS89,18,0) -> 85 | C22: مكافئة مدرس 212 | G22: ايرادات
B23: =VLOOKUP(A4,اعدادى!D10:BS89,17,0) -> 165 | C23: حافز اداء قرار 212 | F23: =VLOOKUP(A4,اعدادى!D10:BR89,45,0) -> 4.5 | G23: نقابة مهن تعليمية
B24: =VLOOKUP(A4,اعدادى!D10:BS89,16,0) -> 100 | C24: بدل معلم قرار 212 | F24: =VLOOKUP(A4,اعدادى!D10:BR89,46,0) -> 2 | G24: رعاية صحية
B25: =VLOOKUP(A4,اعدادى!D10:BS89,22,0) -> 0 | C25: حافز دمج | F25: =VLOOKUP(A4,اعدادى!D10:BR89,56,0) -> 0 | G25: مهن زراعية
B26: =VLOOKUP(A4,اعدادى!D10:BS89,30,0) -> 0 | C26: دكتوراه | F26: =VLOOKUP(A4,اعدادى!D10:BS89,58,0) -> 0 | G26: مهن اجتماعية
B27: =VLOOKUP(A4,اعدادى!D10:BS89,28,0) -> 0 | C27: 91.5% | F27: =VLOOKUP(A4,اعدادى!D10:BR89,47,0) -> 0.25 | G27: تامين جماعى
B28: =VLOOKUP(A4,اعدادى!D10:BS89,29,0) -> 0 | C28: الحد الأدنى | F28: =VLOOKUP(A4,اعدادى!D10:BR89,48,0) -> 3 | G28: نادى معلمين
B29: =ROUND(SUM(B9:B28),2) -> 3611.38 | C29: المجموع | F29: =VLOOKUP(A4,اعدادى!D10:BR89,49,0) -> 0.5 | G29: رابطة جامعيين
B30: =VLOOKUP(A4,اعدادى!D10:BR89,31,0) -> 10 | C30: منحة عيد العمال | F30: =VLOOKUP(A4,اعدادى!D10:BR89,50,0) -> 82.38 | G30: 7% صندوق زمالة معلمين
B31: =ROUND(B29*12%,2) -> 433.37 | C31: 12% شيخوخة وعجز ووفاة | F31: =VLOOKUP(A4,اعدادى!D10:BR89,54,0) -> 0 | G31: صندوق زمالة بطنطا
B32: =ROUND(B29*1%,2) -> 36.11 | C32: 1% مكافاة | F32: =VLOOKUP(A4,اعدادى!D10:BR89,55,0) -> 0 | G32: لجنة نقابية بالقاهرة
B33: =ROUND(B29*1.25%,2) -> 45.14 | C33: 1.25% اصابة عمل | F33: =VLOOKUP(A4,اعدادى!D10:BR89,56,0) -> 0 | G33: بحث علمى
B34: =ROUND(B29*3%,2) -> 108.34 | C34: 3% المرض | F34: =VLOOKUP(A4,اعدادى!D10:BR89,52,0) -> 0 | G34: تطبيقية
B35: =ROUND(SUM(B29:B34),2) -> 4244.34 | C35: الجملة | F35: =VLOOKUP(A4,اعدادى!D10:BR89,44,0) -> 1.5 | G35: صندوق تكريم الشهداء
B36: =F41 -> 1180.34 | C36: جملة المستقطع | F36: =VLOOKUP(A4,اعدادى!D10:BR89,38,0) -> 7 | G36: رعاية صحية 2%
B37: =B35-B36 -> 3064 | C37: الصافى | F37: =VLOOKUP(A4,اعدادى!D10:BR89,39,0) -> 1.7 | G37: عمولة نقابة 2%
F38: =VLOOKUP(A4,اعدادى!D10:BR89,57,0) -> 0 | G38: جزاءات
F39: =VLOOKUP(A4,اعدادى!D10:BR89,52,0) -> 0 | G39: قرض نقابة
F40: =VLOOKUP(A4,اعدادى!D10:BR89,59,0) -> 0.01 | G40: كسر القرش
F41: =SUM(F9:F40) -> 1180.34 | G41: جملة استقطاعات
B42: =NoToTxt(B37,"جنيه","قرشاً") -> فقط ثلاثة آلاف وأربعة وستون جنيه | H42: لا غير
B43: رئيس الوحدة | D43: رئيس القسم | G43: مدير الموارد البشرية

Sheet مفردات إدارى
B1: إدارة : شرق المحلة التعليمية | F1: إدارة الموارد البشرية - ماهيات
B2: مدرسة ميت السراج المتكاملة ع | F2: بيان مفردات مرتب فى 2021/7/1
B3: السيد الأستاذ / ................................................................................. الآتى بيان مرتب
A4: 36 | B4: السيد / | C4: =VLOOKUP(A4,اعدادى!D10:BR89,60,0) -> 438.45 | G4: الوظيفة | H4: =VLOOKUP(A4,اعدادى!D10:BR89,65,0) -> 0
B5: غير قابلة للصرف
B6: الدرجة المالية : | C6: =VLOOKUP(A4,اعدادى!D10:BR89,61,0) -> 2967.3 | F6: الحالة الاجتماعية | G6: متزوج ويعول
B8: جنيه | C8: بيـــــــــــــــــــان | F8: مستقطع | G8: بيـــــــــــــــــــان
B9: =VLOOKUP(A4,اعدادى!D10:BX89,67,0) -> 0 | C9: الاساسى الوهمى | F9: =B21 -> 402.82 | G9: 12% تأمين الشيخوخة
B10: =VLOOKUP(A4,اعدادى!D10:BX89,23,0) -> 0 | C10: الأجر الوظيفى | F10: =B22 -> 100.71 | G10: 3% تأمين المرض
B11: =VLOOKUP(A4,اعدادى!D10:BX89,24,0) -> 2382.14 | C11: الأجر المكمل | F11: =B24 -> 41.96 | G11: 1.25% تأمين اصابة عمل
B12: =VLOOKUP(A4,اعدادى!D10:BX89,25,0) -> 234.72 | C12: حافز تعويضى | F12: =ROUND(B19*9%,2) -> 302.12 | G12: 9% تأمين الشيخوخة
B13: =VLOOKUP(A4,اعدادى!D10:BX89,15,0) -> 0 | C13: علاوة مقطوعة 2019 | F13: =B23 -> 33.57 | G13: 1% اشتراك المكافاة
B14: =VLOOKUP(A4,اعدادى!D10:BX89,12,0) -> 150 | C14: حافز مقطوع 2019م | F14: =F13 -> 33.57 | G14: 1% اشتراك المكافاة
B15: =VLOOKUP(A4,اعدادى!D10:BX89,13,0) -> 250 | C15: حافز مقطوع 2020م | F15: =F13 -> 33.57 | G15: 1% تأمين المرض
B16: =VLOOKUP(A4,اعدادى!D10:BX89,14,0) -> 275 | C16: مقطوعة 2021 | F16: =VLOOKUP(A4,اعدادى!D10:BR89,33,0) -> 0 | G16: مدة سابقة
B17: =VLOOKUP(A4,اعدادى!D10:BX89,19,0) -> 65 | C17: مكافئة إداريين | F17: =VLOOKUP(A4,اعدادى!D10:BR89,38,0) -> 5 | G17: قسط اعارة
B18: =VLOOKUP(A4,اعدادى!D10:BX89,18,0) ->  | C18: حافز تكميلى | G18: استبدال
B19: =ROUND(SUM(B10:B18),2) -> 3356.86 | C19: جملة خاضع معاشات | F19: =VLOOKUP(A4,اعدادى!D10:BR89,41,0) -> 32.5 | G19: قسط شركة أورانج
B21: =ROUND(B19*12%,2) -> 402.82 | C21: 12% تأمين الشيخوخة | F21: =VLOOKUP(A4,اعدادى!D10:BR89,39,0) ->  | G21: كسب عمل
B22: =ROUND(B19*3%,2) -> 100.71 | C22: 3% تأمين المرض | F22: =VLOOKUP(A4,اعدادى!D10:BR89,40,0) -> 0 | G22: دمغة عادية
B23: =ROUND(B19*1%,2) -> 33.57 | C23: 1%اشتراك مكافئة
B24: =ROUND(B19*1.25%,2) -> 41.96 | C24: 1.25% تأمين إصابة عمل | F24: =VLOOKUP(A4,اعدادى!D10:BR89,43,0) -> 0 | G24: نقابة مهن تعليمية
F25: =VLOOKUP(A4,اعدادى!D10:BR89,44,0) -> 1.5 | G25: رعاية صحية
F26: =VLOOKUP(A4,اعدادى!D10:BR89,54,0) -> 0 | G26: مهن زراعية
F27: =VLOOKUP(A4,اعدادى!D10:BS89,56,0) -> 0 | G27: مهن اجتماعية
F28: =VLOOKUP(A4,اعدادى!D10:BR89,45,0) ->  | G28: تامين جماعى
F29: =VLOOKUP(A4,اعدادى!D10:BR89,46,0) ->  | G29: نادى معلمين
F30: =VLOOKUP(A4,اعدادى!D10:BR89,47,0) ->  | G30: رابطة جامعيين
F31: =VLOOKUP(A4,اعدادى!D10:BR89,48,0) ->  | G31: 7% صندوق زمالة معلمين
F32: =VLOOKUP(A4,اعدادى!D10:BR89,52,0) -> 0 | G32: صندوق زمالة بطنطا
F33: =VLOOKUP(A4,اعدادى!D10:BR89,51,0) -> 0 | G33: لجنة نقابية بالقاهرة
F34: =VLOOKUP(A4,اعدادى!D10:BR89,53,0) -> 0 | G34: بحث علمى
F35: =VLOOKUP(A4,اعدادى!D10:BR89,49,0) ->  | G35: تطبيقية
B36: =ROUND(SUM(B19:B35),2) -> 3935.92 | C36: جملة المستحق | F36: =VLOOKUP(A4,اعدادى!D10:BR89,42,0) -> 24.8 | G36: صندوق تكريم الشهداء
B37: =F42 -> 1080.24 | C37: جملة المستقطع | F37: =VLOOKUP(A4,اعدادى!D10:BR89,36,0) -> 34.06 | G37: رعاية صحية 2%
B38: =B36-B37 -> 2855.68 | C38: الصافى | F38: =VLOOKUP(A4,اعدادى!D10:BR89,37,0) -> 34.06 | G38: عمولة نقابة 2%
F39: =VLOOKUP(A4,اعدادى!D10:BR89,55,0) -> 0 | G39: جزاءات
F40: =VLOOKUP(A4,اعدادى!D10:BR89,50,0) ->  | G40: قرض نقابة
F41: =VLOOKUP(A4,اعدادى!D10:BR89,57,0) -> 0 | G41: كسر القرش
F42: =SUM(F9:F41) -> 1080.24 | G42: جملة استقطاعات
B43: =NoToTxt(B38,"جنيه","قرشاً") -> فقط ألفان وثمانمائة وخمسة وخمسون جنيه وثمانية وستون قرشاً | H43: لاغير
B44: رئيس الوحدة | D44: رئيس القسم | G44: مدير الموارد البشرية

Sheet بيان استقطاعات
A1: مديرية التربية والتعليم بطنطا | I1: مديرية التربية والتعليم بطنطا | Q1: مديرية التربية والتعليم بطنطا | Y1: مديرية التربية والتعليم بطنطا
A2: مدرسة ميت السراج المتكاملة | I2: مدرسة ميت السراج المتكاملة | Q2: مدرسة ميت السراج المتكاملة | Y2: مدرسة ميت السراج المتكاملة
A5: بيان المستحق عن صندوق زمالة | F5: عن شهر ابريل سنة 2022 | H5: بيان المستحق عن نقابة مهن تعليمية | N5: =F5 -> عن شهر ابريل سنة 2022 | P5: بيان المستحق عن صندوق الشهداء | V5: =F5 -> عن شهر ابريل سنة 2022 | X5: بيان المستحق عن صندوق الشهداء | AD5: =F5 -> عن شهر ابريل سنة 2022
A7: عدد | B7: اسم الموظف | C7: قيمة القسط | E7: عدد | F7: اسم الموظف | G7: قيمة القسط | I7: عدد | J7: اسم الموظف | K7: قيمة القسط | M7: عدد | N7: اسم الموظف | O7: قيمة القسط | Q7: عدد | R7: اسم الموظف | S7: قيمة القسط | U7: عدد | V7: اسم الموظف | W7: قيمة القسط | Y7: عدد | Z7: اسم الموظف | AA7: قيمة القسط | AC7: عدد | AD7: اسم الموظف | AE7: قيمة القسط
A8: 1 | B8: وصال حسين بلحه | C8: 150.1 | E8: 31 | F8: رباب محمود النجار | G8: 73.26 | I8: 1 | J8: وصال حسين بلحه | K8: 4.5 | M8: 31 | N8: رباب محمود النجار | O8: 4.5 | Q8: 1 | R8: وصال حسين بلحه | S8: 2.5 | U8: 31 | V8: رباب محمود النجار | W8: 1.5 | Y8: 1 | Z8: ناديه مسعد محمود | AA8: 2
A9: 2 | B9: عاطف عبدالعظيم النجار | C9: 127.47 | E9: 32 | F9: مروى ناجى سليمان | G9: 72.09 | I9: 2 | J9: عاطف عبدالعظيم النجار | K9: 4.5 | M9: 32 | N9: مروى ناجى سليمان | O9: 4.5 | Q9: 2 | R9: عاطف عبدالعظيم النجار | S9: 2 | U9: 32 | V9: مروى ناجى سليمان | W9: 1.5 | Y9: 2 | Z9: فاطمه فتح الله عبداللطيف | AA9: 1.5
A10: 3 | B10: مسعد ونس عبدالحميد | C10: 131.8 | E10: 33 | F10: مروه حمدى عزالعرب | G10: 73.06 | I10: 3 | J10: مسعد ونس عبدالحميد | K10: 4.5 | M10: 33 | N10: مروه حمدى عزالعرب | O10: 4.5 | Q10: 3 | R10: مسعد ونس عبدالحميد | S10: 2 | U10: 33 | V10: مروه حمدى عزالعرب | W10: 1.5 | Y10: 3 | Z10: ممدوح عبدالواحد عبدالعزيز | AA10: 1.5
A11: 4 | B11: محمد صالحين محمد | C11: 127.78 | E11: 34 | F11: حامد ابوبكر شلبى | G11: 70.43 | I11: 4 | J11: محمد صالحين محمد | K11: 4.5 | M11: 34 | N11: حامد ابوبكر شلبى | O11: 4.5 | Q11: 4 | R11: محمد صالحين محمد | S11: 2 | U11: 34 | V11: حامد ابوبكر شلبى | W11: 1 | Y11: 4 | Z11: احمد ابراهيم الغريب | AA11: 1.5
A12: 5 | B12: لبنى حمدى محمد | C12: 149.97 | E12: 35 | F12: علاء عبدالكريم محمود | G12: 140.23 | I12: 5 | J12: لبنى حمدى محمد | K12: 4.5 | M12: 35 | N12: علاء عبدالكريم محمود | O12: 4.5 | Q12: 5 | R12: لبنى حمدى محمد | S12: 2.5 | U12: 35 | V12: علاء عبدالكريم محمود | W12: 2.5 | Y12: 5 | Z12: اسماعيل عبدالمحسن سراج الدين | AA12: 1.5
A13: 6 | B13: جيهان فتحى محمود | C13: 124.16 | E13: 36 | F13: ارزاق طلعت احمد | G13: 142.58 | I13: 6 | J13: جيهان فتحى محمود | K13: 4.5 | M13: 36 | N13: ارزاق طلعت احمد | O13: 4.5 | Q13: 6 | R13: جيهان فتحى محمود | S13: 2 | U13: 36 | V13: حمدى طه العيسوى | W13: 2.5 | Y13: 6 | Z13: السعيد احمد السعيد | AA13: 1
A14: 7 | B14: محمد نجاح نصر | C14: 120.63 | E14: 37 | F14: محمد سعد السعداوى | G14: 127.47 | I14: 7 | J14: محمد نجاح نصر | K14: 4.5 | M14: 37 | N14: محمد سعد السعداوى | O14: 4.5 | Q14: 7 | R14: محمد نجاح نصر | S14: 2 | U14: 37 | V14: ارزاق طلعت احمد | W14: 2.5 | Y14: 7 | Z14: عبدالحليم انور صالح | AA14: 2
A15: 8 | B15: زينات البيلى حسب ا لله | C15: 116.69 | E15: 38 | F15: احمد فتحى امام | G15: 109.41 | I15: 8 | J15: زينات البيلى حسب ا لله | K15: 4.5 | M15: 38 | N15: احمد فتحى امام | O15: 4.5 | Q15: 8 | R15: زينات البيلى حسب ا لله | S15: 2 | U15: 38 | V15: محمد سعد السعداوى | W15: 2 | Y15: 8 | Z15: رمضان الصباحى السعداوى | AA15: 1.5
A16: 9 | B16: هاله المغازى محمد | C16: 113.33 | E16: 39 | F16: ابراهيم العرابى رزق | G16: 142.58 | I16: 9 | J16: هاله المغازى محمد | K16: 4.5 | M16: 39 | N16: ابراهيم العرابى رزق | O16: 4.5 | Q16: 9 | R16: هاله المغازى محمد | S16: 2 | U16: 39 | V16: فتحى المغازى محمد | W16: 2 | Y16: 9 | Z16: حسن شان غازى سليمان | AA16: 1.5
A17: 10 | B17: خالد ابوالنصر ميسره | C17: 111.08 | E17: 40 | F17: محمد العرابى رزق | G17: 123.78 | I17: 10 | J17: خالد ابوالنصر ميسره | K17: 4.5 | M17: 40 | N17: محمد العرابى رزق | O17: 4.5 | Q17: 10 | R17: خالد ابوالنصر ميسره | S17: 2 | U17: 40 | V17: احمد فتحى امام | W17: 2 | Y17: 10 | Z17: عبدالحميد عبدالمنعم عبدالحليم | AA17: 1.5
A18: 11 | B18: سماح حجازى بدر | C18: 109.42 | E18: 41 | F18: حامد عبدالرحمن عاصى | G18: 119.86 | I18: 11 | J18: سماح حجازى بدر | K18: 4.5 | M18: 41 | N18: حامد عبدالرحمن عاصى | O18: 4.5 | Q18: 11 | R18: سماح حجازى بدر | S18: 2 | U18: 41 | V18: ابراهيم العرابى رزق | W18: 2.5 | Y18: 11
A19: 12 | B19: علاء ابراهيم النمراوى | C19: 106.87 | E19: 42 | F19: ممدوح احمد الغريب | G19: 130.21 | I19: 12 | J19: علاء ابراهيم النمراوى | K19: 4.5 | M19: 42 | N19: ممدوح احمد الغريب | O19: 4.5 | Q19: 12 | R19: علاء ابراهيم النمراوى | S19: 2 | U19: 42 | V19: محمد العرابى رزق | W19: 2
A20: 13 | B20: سمير محمود البيلى | C20: 119.77 | E20: 43 | F20: ام الخير المغازى محمد | G20: 81.66 | I20: 13 | J20: سمير محمود البيلى | K20: 4.5 | M20: 43 | N20: ام الخير المغازى محمد | O20: 4.5 | Q20: 13 | R20: سمير محمود البيلى | S20: 2 | U20: 43 | V20: حامد عبدالرحمن عاصى | W20: 2
A21: 14 | B21: محمد رجب حسن | C21: 113.09 | E21: 44 | F21: نبيله محمود ابراهيم | G21: 75.73 | I21: 14 | J21: محمد رجب حسن | K21: 4.5 | M21: 44 | N21: نبيله محمود ابراهيم | O21: 4.5 | Q21: 14 | R21: محمد رجب حسن | S21: 2 | U21: 44 | V21: ممدوح احمد الغريب | W21: 2
A22: 15 | B22: مجدى يوسف الجندى | C22: 139.28 | E22: 45 | F22: محمود مصطفى محمود | G22: 79.9 | I22: 15 | J22: مجدى يوسف الجندى | K22: 4.5 | M22: 45 | N22: محمود مصطفى محمود | O22: 4.5 | Q22: 15 | R22: مجدى يوسف الجندى | S22: 2.5 | U22: 45 | V22: نبيله محمود ابراهيم | W22: 1.5
A23: 16 | B23: عاصم احمد عاصم | C23: 93.81 | E23: 46 | F23: لبنى عبدالرحيم يوسف العواد | G23: 72.08 | I23: 16 | J23: عاصم احمد عاصم | K23: 4.5 | M23: 46 | N23: لبنى عبدالرحيم يوسف العواد | O23: 4.5 | Q23: 16 | R23: عاصم احمد عاصم | S23: 1.5 | U23: 46 | V23: محمود مصطفى محمود | W23: 1.5
A24: 17 | B24: نهاد عبدالعزيز بدير | C24: 94.8 | E24: 47 | F24: نجلاء جلال محمود | G24: 72.08 | I24: 17 | J24: نهاد عبدالعزيز البيلى | K24: 4.5 | M24: 47 | N24: نجلاء جلال محمود | O24: 4.5 | Q24: 17 | R24: نهاد عبدالعزيز البيلى | S24: 1.5 | U24: 47 | V24: لبنى عبدالرحمن يوسف | W24: 1.5
A25: 18 | B25: محمود شحاته محمد | C25: 94.34 | E25: 48 | F25: حمدى طه العيسوى | G25: 160.99 | I25: 18 | J25: محمود شحاته محمد | K25: 4.5 | M25: 48 | N25: حمدى طه العيسوى | O25: 4.5 | Q25: 18 | R25: محمود شحاته محمد | S25: 1.5 | U25: 48 | V25: نجلاء جلال محمود | W25: 1.5
A26: 19 | B26: محمد الحايس البدراوى | C26: 116.97 | E26: 49 | F26: السعيد عبدالنبى السيد | G26: 128.06 | I26: 19 | J26: محمد الحايس البدراوى | K26: 4.5 | M26: 49 | N26: السعيد عبدالنبى السيد | O26: 4.5 | Q26: 19 | R26: محمد الحايس البدراوى | S26: 2 | U26: 49 | V26: ام الخير المغازى محمد | W26: 1.5
A27: 20 | B27: شيماء رأفت محمد | C27: 79.19 | E27: 50 | F27: فاطمه جابر عباس | G27: 148.95 | I27: 20 | J27: شيماء رأفت محمد | K27: 4.5 | M27: 50 | N27: فاطمه جابر عباس | O27: 4.5 | Q27: 20 | R27: شيماء رأفت محمد | S27: 1.5 | U27: 50 | V27: السعيد عبدالنبى السيد | W27: 2
A28: 21 | B28: شهيره السعيد عبدالغنى | C28: 81.66 | E28: 51 | F28: رجاء صلاح محمد | G28: 113.26 | I28: 21 | J28: شهيره السعيد عبدالغنى | K28: 4.5 | M28: 51 | N28: رجاء صلاح محمد | O28: 4.5 | Q28: 21 | R28: شهيره السعيد عبدالغنى | S28: 1.5 | U28: 51 | V28: فاطمه جابر عباس | W28: 2.5
A29: 22 | B29: هبه عبدالعزيز صلاح | C29: 81.66 | E29: 52 | F29: فتحى المغازى محمد | G29: 119.64 | I29: 22 | J29: هبه عبدالعزيز صلاح | K29: 4.5 | M29: 52 | N29: فتحى المغازى محمد | O29: 4.5 | Q29: 22 | R29: هبه عبدالعزيز صلاح | S29: 1.5 | U29: 52 | V29: رجاء صلاح محمد | W29: 2
A30: 23 | B30: ابراهيم كمال ايوب | C30: 108.52 | E30: 53 | F30: السيد بدير السيد | G30: 113.33 | I30: 23 | J30: ابراهيم كمال ايوب | K30: 4.5 | M30: 53 | N30: السيد بدير السيد | O30: 4.5 | Q30: 23 | R30: ابراهيم كمال ايوب | S30: 2 | U30: 53 | V30: السيد بدير السيد | W30: 2
A31: 24 | B31: نجلاء حسنى ابراهيم | C31: 102.8 | E31: 54 | F31: نعيمه المغاورى طه | G31: 124.16 | I31: 24 | J31: نجلاء حسنى ابراهيم | K31: 4.5 | M31: 54 | N31: نعيمه المغاورى طه | O31: 4.5 | Q31: 24 | R31: نجلاء حسنى ابراهيم | S31: 1.5 | U31: 54 | V31: نعيمه المغازى طه | W31: 2
A32: 25 | B32: محمد محمد الجمل | C32: 82.38 | E32: 55 | F32: حنان راشد بركات | G32: 109.42 | I32: 25 | J32: محمد محمد الجمل | K32: 4.5 | M32: 55 | N32: حنان راشد بركات | O32: 4.5 | Q32: 25 | R32: محمد محمد الجمل | S32: 1.5 | U32: 55 | V32: حنان راشد بركات | W32: 2
A33: 26 | B33: سعدية السعيد عبدالغنى | C33: 79.64 | E33: 56 | F33: نجلاء فتحى عبدالمتعال | G33: 109.23 | I33: 26 | J33: سعدية السعيد عبدالغنى | K33: 4.5 | M33: 56 | N33: نجلاء فتحى عبدالمتعال | O33: 4.5 | Q33: 26 | R33: سعدية السعيد عبدالغنى | S33: 1.5 | U33: 56 | V33: نجلاء فتحى عبدالمتعال | W33: 2
A34: 27 | B34: مروه عبدالعزيز بدير | C34: 79.19 | E34: 57 | F34: رحاب فؤاد مجاهد | G34: 95.03 | I34: 27 | J34: مروه عبدالعزيز بدير | K34: 4.5 | M34: 57 | N34: رحاب فؤاد مجاهد | O34: 4.5 | Q34: 27 | R34: مروه عبدالعزيز بدير | S34: 1.5 | U34: 57 | V34: رحاب فؤاد مجاهد | W34: 2
A35: 28 | B35: نعمه محمد يونس | C35: 79.19 | E35: 58 | F35: محمد ابوالنجا محمد | G35: 116.61 | I35: 28 | J35: نعمه محمد يونس | K35: 4.5 | M35: 58 | N35: محمد ابوالنجا محمد | O35: 4.5 | Q35: 28 | R35: نعمه محمد يونس | S35: 1.5 | U35: 58 | V35: محمد ابوالنجا محمد | W35: 2
A36: 29 | B36: امل عبد النبى النجار | C36: 73.25 | E36: 59 | F36: محمد فتحى بدر | G36: 73.26 | I36: 29 | J36: امل عبد النبى النجار | K36: 4.5 | M36: 59 | N36: محمد فتحى بدر | O36: 4.5 | Q36: 29 | R36: امل عبد النبى النجار | S36: 1.5 | U36: 59 | V36: محمد فتحى بدر | W36: 1.5
A37: 30 | B37: اميره مصطفى السيد | C37: 75.41 | E37: 60 | F37: ايمان محمد ابراهيم | G37: 80.83 | I37: 30 | J37: اميره مصطفى السيد | K37: 4.5 | M37: 60 | N37: ايمان محمد ابراهيم | O37: 4.5 | Q37: 30 | R37: اميره مصطفى السيد | S37: 1.5 | U37: 60 | V37: ايمان محمد ابراهيم | W37: 1.5
U38: 61
C39: =SUM(C8:C37) -> 3184.25 | G39: =SUM(G8:G38) -> 3199.18 | K39: =SUM(K8:K38) -> 135 | O39: =SUM(O8:O38) -> 135 | S39: =SUM(S8:S37) -> 55 | W39: =SUM(W8:W38) -> 56.5 | AA39: =SUM(AA8:AA37) -> 15.5 | AE39: =SUM(AE8:AE38) -> 0
A40: الجملة | G40: =C39+G39 -> 6383.43 | I40: الجملة | O40: =K39+O39 -> 270 | Q40: الجملة | W40: =S39+W39 -> 111.5 | Y40: الجملة | AE40: =AA39+AE39 -> 15.5

Sheet استقطاعات 2
A1: إدارة شرق المحلة التعليمية | G1: إدارة شرق المحلة التعليمية
A2: مدرسة ميت السراج المتكاملة | G2: مدرسة ميت السراج المتكاملة
A4: بيان المستحق المهن التطبيقية | G4: بيان المستحق قسط شركة اورانج
A5: عن شهر ابريل سنة 2022 | G5: =A5 -> عن شهر ابريل سنة 2022
A7: عدد | B7: اسم الموظف | C7: قيمة القسط | G7: عدد | H7: اسم الموظف | I7: قيمة القسط
A8: 1 | B8: خالد ابوالنصر ميسره | C8: 9 | G8: 1 | H8: اسماعيل عبدالمجيد سراج الدين | I8: 70
A9: 2 | B9: فتحى المغازى محمد | C9: 9
A10: 3 | B10: عبدالحليم انور صالح | C10: 9
A11: 4 | B11: رمضان الصباحى السعداوى | C11: 9
A13: الجملة | C13: 45 | G13: الجملة | I13: 70
A15: إدارة شرق المحلة التعليمية | G15: إدارة شرق المحلة التعليمية
A16: مدرسة ميت السراج المتكاملة | G16: مدرسة ميت السراج المتكاملة
A18: بيان المستحق المهن الزراعية | G18: بيان المستحق بدل إعارة
A19: =A5 -> عن شهر ابريل سنة 2022 | G19: =A5 -> عن شهر ابريل سنة 2022
A21: عدد | B21: اسم الموظف | C21: قيمة القسط | G21: عدد | H21: اسم الموظف | I21: قيمة القسط | R21: المهن الاجتماعية كل 6 شهور 50 جنية لكل فر مشترك بالنقابة تخصم فى يناير ويوليو
A22: 1 | B22: رحاب فؤاد مجاهد | C22: 7.1 | G22: 1 | H22: مسعد ونس عبدالحميد | I22: 90
A25: الجملة | C25: 7.1 | G25: الجملة | I25: =SUM(I22:I24) -> 90
A27: إدارة شرق المحلة التعليمية | G27: إدارة شرق المحلة التعليمية
A28: مدرسة ميت السراج المتكاملة | G28: مدرسة ميت السراج المتكاملة
A30: بيان المستحق قرض حسن نقابة مهن تعليمية | G30: بيان المستحق استبعاد حافز الأداء
A31: =A5 -> عن شهر ابريل سنة 2022 | G31: =A5 -> عن شهر ابريل سنة 2022
A33: عدد | B33: اسم الموظف | C33: قيمة القسط | G33: عدد | H33: استبعاد حافز الأداء | I33: قيمة الخصم
A34: 1 | B34: مسعد ونس عبدالحميد | C34: 250 | G34: 1 | H34: لبنى حمدى محمد | I34: 279.3
A37: الجملة | C37: 250 | I37: =I34+I35+I36 -> 279.3
